Workbook

Sheet 1. Read Me
A1: General Information: At the top of each sheet is a brief set of instructions for that particular sheet. Below is a bit of information about each one.
P2: CAHOST: Streamlining the Johnson-Neyman Technique for Two-Way Interactions
A3: Quick Instructions for Easy Use: | P3: Copyright (C) 2017 Stephen W. Carden, Nicholas S. Holtzman, Michael J. Strube.
A4: • First, enter raw data in sheet "2. Enter Raw Data". You may also enter variable names and change the significance level.
A5: • Second, verify in sheet "4. Error Check" that there are no problems with the data. | P5: The calculations in this workbook are free software: you can redistribute it and/or modify
A6: • Third, on sheet "5. Johnson-Neyman Figure", highlight the graphic and click "Create Figure". | P6: it under the terms of the GNU General Public License as published by
A7: You're done! See below for more advanced instruction. | P7: the Free Software Foundation, either version 3 of the License, or
P8: (at your option) any later version.
A9: This is CAHOST version 1.0. To check for a more recent release, please visit
A10: https://sites.google.com/a/georgiasouthern.edu/stephen-carden/research | P10: This program is distributed in the hope that it will be useful,
A11: You may also contact scarden@georgiasouthern.edu | P11: but WITHOUT ANY WARRANTY; without even the implied warranty of
P12: MERCHANTABILITY or FITNESS FOR A PARTICULAR PURPOSE. See the
A13: Sheet-by-sheet information: | P13: GNU General Public License for more details.
A14: 2. Enter Raw Data
A15: This sheet is where one enters the raw data and significance level for the analysis. | P15: A copy of the GNU General Public License may be found at
A16: In the parlance of Hayes (2013) Introduction to Mediation, Moderation, and Conditional Process Analysis, this is Model 1 (on page 442). | P16: <http://www.gnu.org/licenses/gpl-3.0>.
A17: The interaction term is also automated on subsequent sheets.
A18: On the right side of the sheet are some example data sets that can be placed into the lefthand portion for experimentation.
A19: Note that it is only the lefthand portion that is active in the subsequent calculations.
A21: 3. HC3
A22: No action is required on this sheet. The calculations are displayed for the benefit of advanced users, and can be safely ignored by the typical user.
A23: HC3 stands for heteroskedastic consistent (the third variety of estimator). A review can be found in Hayes & Cai (2007).
A24: Broadly, this sheet consists of matrix algebra manipulations that accomplish multiple regression, using HC3.
A25: Matrix references on the top of the page provide for an easy way to call up the matrices when needed.
A26: HC3 can be found by scrolling to the far right of the sheet.
A28: 4. Error Check
A29: This sheet checks for any errors that could hinder the completion of the Johnson-Neyman technique.
A30: The first check is for missing data.
A31: The second check ensures that the data matrix is invertible.
A32: The third check ensures that the HC3 matrix calculations do not result in a division by zero.
A33: The fourth check is for variance or covariance values that return a trivial figure.
A35: 5. Johnson-Neyman Figure
A36: The Johson-Neyman figure is shown at the far right side of this sheet.
A37: To update the figure, highlight it (click on it anywhere) and then click the button “Create Figure”.
A38: In the graph, you will see the trendline.
A39: The graph also features filled space between the confidence bands.
A40: It also includes (if applicable) bars indicating the region of significance.
A41: If further editing is needed, it can be pasted into Word. For more advanced editing, paste into PowerPoint, save as an "Enhanced Windows Metafile", and open for editing in an advanced editor such as Photoshop, Inkscape, Gimp, etc.
A43: 6. Simple Slopes
A44: No action is required on this sheet.
A45: Two simple slope plots are created. The first includes only slopes at low and high values of the moderator. The second also includes the slope at the average value of the moderator. The user may use whichever they prefer.
A46: This sheet is taken almost straight from Jason W. Miller (at Michigan State University as of Fall 2016), with whom I’ve been in contact.
A47: He has kindly granted permission to use his spreadsheet as a model for sheet 6.
A51: Citations
A52: Hayes AF, Cai L (2007). Using heteroskedasticity-consistent standard error estimators in
A53: OLS regression: An introduction and software implementation." Behavior Research Methods, 39(4), 709{722.
A55: Hayes AF (2013). Introduction to Mediation, Moderation, and Conditional Process Analysis:
A56: A Regression-Based Approach. The Guilford Press.

Sheet 2. Enter Raw Data
A1: Instructions for this sheet: On the left, enter up to 1,000 observations. The significance level can be changed if desired. Do not include observations with missing variables; that needs to be handled prior to pasting it in this sheet.
A2: Tip: Cutting and pasting is discouraged, as later cell references may attempt to folow the pasted data, breaking the workbook. It is better to copy, paste, and delete.
H3: All of these cells are simply for data storage. Data here is not used in any subsequent calculations.
B4: Significance level, α: | C4: 0.05
B5: Variable name for Y: | C5: Liking
B6: Variable name for X: | C6: Protest
B7: Variable name for M: | C7: Sexism
B8: Enter raw data below
H9: Data for Figure 1 in article. | L9: Data for Figure 2 in article. | P9: Data for Figure 3 in article. | T9: Data for Figure 4 in article. | X9: Data for Figure 5 in article. Aiken & West (1991); partial data from Table 7.2 | AB9: Data for Figure 6 in article. | AF9: Data for Figure 7 in article.
B10: Response (Y) | C10: Focal Predictor (X) | D10: Moderator (M) | H10: Response (Y) | I10: Focal Predictor (X) | J10: Moderator (M) | L10: Response (Y) | M10: Focal Predictor (X) | N10: Moderator (M) | P10: Response (Y) | Q10: Focal Predictor (X) | R10: Moderator (M) | T10: Response (Y) | U10: Focal Predictor (X) | V10: Moderator (M) | X10: Response (Y) | Y10: Focal Predictor (X) | Z10: Moderator (M) | AB10: Response (Y) | AC10: Focal Predictor (X) | AD10: Moderator (M) | AF10: Response (Y) | AG10: Focal Predictor (X) | AH10: Moderator (M)
B11: 4.83 | C11: 1 | D11: 4.87 | H11: 2 | I11: 1.5 | J11: -0.6 | L11: 2 | M11: -1.5 | N11: 0.5 | P11: 20 | Q11: 2 | R11: 0 | T11: 20 | U11: 2 | V11: 0 | X11: 28219 | Y11: 0 | Z11: 2.18 | AB11: 4 | AC11: -2.4 | AD11: 0.6 | AF11: 4.83 | AG11: 1 | AH11: 4.87
B12: 4.5 | C12: 0 | D12: 4.25 | H12: 3 | I12: -1.5 | J12: -0.6 | L12: 3 | M12: 1.5 | N12: 0.5 | P12: 30 | Q12: 2 | R12: 2 | T12: 30 | U12: 2 | V12: 2 | X12: 27946 | Y12: 0 | Z12: 1.93 | AB12: 0 | AC12: 0.6 | AD12: -1.4 | AF12: 4.5 | AG12: 0 | AH12: 4.25
B13: 5.5 | C13: 1 | D13: 5 | H13: 2 | I13: 0.5 | J13: 1.4 | L13: 2 | M13: -0.5 | N13: -1.4 | P13: 30 | Q13: 2 | R13: 1 | T13: 30 | U13: 2 | V13: 1 | X13: 28053 | Y13: 0 | Z13: 2.31 | AB13: 0 | AC13: -0.4 | AD13: 0.6 | AF13: 5.5 | AG13: 1 | AH13: 5
B14: 5.66 | C14: 1 | D14: 5.5 | H14: 2 | I14: 0.5 | J14: -1.6 | L14: 2 | M14: -0.5 | N14: 1.6 | P14: 35 | Q14: 14 | R14: 4 | T14: 30 | U14: 4 | V14: 0 | X14: 28209 | Y14: 0 | Z14: 2.45 | AB14: 0 | AC14: 0.6 | AD14: 1.6 | AF14: 5.66 | AG14: 1 | AH14: 5.5
B15: 6.16 | C15: 1 | D15: 5.62 | H15: 4 | I15: 0.5 | J15: 0.4 | L15: 4 | M15: -0.5 | N15: -0.4 | P15: 30 | Q15: 2 | R15: 0 | T15: 30 | U15: 2 | V15: 0 | X15: 27899 | Y15: 0 | Z15: 2.35 | AB15: 0 | AC15: 0.6 | AD15: 1.6 | AF15: 6.16 | AG15: 1 | AH15: 5.62
B16: 6 | C16: 1 | D16: 5.75 | H16: 4 | I16: -0.5 | J16: 0.4 | L16: 4 | M16: 0.5 | N16: -0.4 | P16: 35 | Q16: 14 | R16: 4 | T16: 35 | U16: 10 | V16: 4 | X16: 28295 | Y16: 0 | Z16: 2.44 | AB16: 4 | AC16: -1.4 | AD16: -1.4 | AF16: 6 | AG16: 1 | AH16: 5.75
B17: 4.66 | C17: 1 | D17: 5.12 | H17: 0 | I17: 1.5 | J17: -1.6 | L17: 0 | M17: -1.5 | N17: 1.6 | P17: 40 | Q17: 2 | R17: 4 | T17: 35 | U17: 2 | V17: 4 | X17: 27672 | Y17: 0 | Z17: 2.13 | AB17: 1 | AC17: 1.6 | AD17: -1.4 | AF17: 4.66 | AG17: 1 | AH17: 5.12
B18: 6.5 | C18: 0 | D18: 6.62 | H18: 1 | I18: -2.5 | J18: 2.4 | L18: 1 | M18: 2.5 | N18: -2.4 | P18: 25 | Q18: 4 | R18: 3 | T18: 25 | U18: 4 | V18: 3 | X18: 27756 | Y18: 0 | Z18: 2.22 | AB18: 4 | AC18: 1.6 | AD18: -1.4 | AF18: 6.5 | AG18: 0 | AH18: 6.62
B19: 1 | C19: 0 | D19: 5.75 | H19: 1 | I19: 0.5 | J19: -0.6 | L19: 1 | M19: -0.5 | N19: 0.6 | P19: 35 | Q19: -2 | R19: 0 | T19: 35 | U19: -2 | V19: 0 | X19: 28065 | Y19: 0 | Z19: 3.41 | AB19: 2 | AC19: -1.4 | AD19: 0.6 | AF19: 1 | AG19: 0 | AH19: 5.75
B20: 6.83 | C20: 0 | D20: 4.62 | H20: 2 | I20: -0.5 | J20: 0.4 | L20: 2 | M20: 0.5 | N20: -0.4 | P20: 20 | Q20: -2 | R20: 5 | T20: 20 | U20: -2 | V20: 5 | X20: 27885 | Y20: 0 | Z20: 2.58 | AB20: 3 | AC20: 0.6 | AD20: 0.6 | AF20: 6.83 | AG20: 0 | AH20: 4.62
B21: 5 | C21: 1 | D21: 4.75 | P21: 25 | Q21: 2 | R21: 0 | T21: 25 | U21: 2 | V21: 0 | X21: 23942 | Y21: 1 | Z21: 2.78 | AF21: 5 | AG21: 1 | AH21: 4.75
B22: 5.66 | C22: 1 | D22: 6.12 | P22: 30 | Q22: 0 | R22: 0 | T22: 30 | U22: 0 | V22: 0 | X22: 23205 | Y22: 1 | Z22: 2.5 | AF22: 5.66 | AG22: 1 | AH22: 6.12
B23: 5.83 | C23: 0 | D23: 4.87 | P23: 0 | Q23: -10 | R23: 0 | T23: 30 | U23: 0 | V23: 0 | X23: 23962 | Y23: 1 | Z23: 2.92 | AF23: 5.83 | AG23: 0 | AH23: 4.87
B24: 6.5 | C24: 1 | D24: 5.87 | P24: 30 | Q24: 4 | R24: 0 | T24: 30 | U24: 4 | V24: 0 | X24: 24369 | Y24: 1 | Z24: 3.08 | AF24: 6.5 | AG24: 1 | AH24: 5.87
B25: 4.5 | C25: 1 | D25: 4.87 | P25: 30 | Q25: 2 | R25: 0 | T25: 30 | U25: 2 | V25: 0 | X25: 23840 | Y25: 1 | Z25: 2.96 | AF25: 4.5 | AG25: 1 | AH25: 4.87
B26: 4.83 | C26: 0 | D26: 4.62 | P26: 35 | Q26: 14 | R26: 4 | T26: 35 | U26: 10 | V26: 4 | X26: 24452 | Y26: 1 | Z26: 3.06 | AF26: 4.83 | AG26: 0 | AH26: 4.62
B27: 6.16 | C27: 1 | D27: 4.5 | P27: 35 | Q27: 2 | R27: 4 | T27: 35 | U27: 2 | V27: 4 | X27: 23218 | Y27: 1 | Z27: 2.72 | AF27: 6.16 | AG27: 1 | AH27: 4.5
B28: 4.33 | C28: 1 | D28: 5.5 | P28: 20 | Q28: 4 | R28: 3 | T28: 20 | U28: 4 | V28: 3 | X28: 23455 | Y28: 1 | Z28: 2.82 | AF28: 4.33 | AG28: 1 | AH28: 5.5
B29: 4.83 | C29: 1 | D29: 4.25 | P29: 35 | Q29: -2 | R29: 0 | T29: 35 | U29: -2 | V29: 0 | X29: 25790 | Y29: 1 | Z29: 4 | AF29: 4.83 | AG29: 1 | AH29: 4.25
B30: 5 | C30: 1 | D30: 4.25 | P30: 0 | Q30: -11 | R30: 5 | T30: 0 | U30: -1 | V30: 5 | X30: 24206 | Y30: 1 | Z30: 3.22 | AF30: 5 | AG30: 1 | AH30: 4.25
B31: 6.5 | C31: 1 | D31: 5.25 | P31: 20 | Q31: 2 | R31: 0 | X31: 23506 | Y31: 1 | Z31: 2.83 | AF31: 6.5 | AG31: 1 | AH31: 5.25
B32: 7 | C32: 1 | D32: 5 | P32: 30 | Q32: 2 | R32: 2 | X32: 22961 | Y32: 1 | Z32: 2.52 | AF32: 7 | AG32: 1 | AH32: 5
B33: 5.33 | C33: 1 | D33: 5.75 | P33: 30 | Q33: 2 | R33: 1 | X33: 24868 | Y33: 1 | Z33: 3.36 | AF33: 5.33 | AG33: 1 | AH33: 5.75
B34: 5.5 | C34: 1 | D34: 2.87 | P34: 35 | Q34: 14 | R34: 4 | X34: 24223 | Y34: 1 | Z34: 3.18 | AF34: 5.5 | AG34: 1 | AH34: 2.87
B35: 7 | C35: 1 | D35: 5.5 | P35: 30 | Q35: 2 | R35: 0 | X35: 24004 | Y35: 1 | Z35: 2.91 | AF35: 7 | AG35: 1 | AH35: 5.5
B36: 5.5 | C36: 0 | D36: 5.5 | P36: 35 | Q36: 14 | R36: 4 | AF36: 5.5 | AG36: 0 | AH36: 5.5
B37: 5 | C37: 1 | D37: 4.62 | P37: 40 | Q37: 2 | R37: 4 | AF37: 5 | AG37: 1 | AH37: 4.62
B38: 6.83 | C38: 1 | D38: 4.37 | P38: 25 | Q38: 4 | R38: 3 | AF38: 6.83 | AG38: 1 | AH38: 4.37
B39: 4.83 | C39: 0 | D39: 4.37 | P39: 35 | Q39: -2 | R39: 0 | AF39: 4.83 | AG39: 0 | AH39: 4.37
B40: 6.66 | C40: 1 | D40: 5.62 | P40: 20 | Q40: -2 | R40: 5 | AF40: 6.66 | AG40: 1 | AH40: 5.62
B41: 6 | C41: 1 | D41: 5.12 | P41: 25 | Q41: 2 | R41: 0 | AF41: 6 | AG41: 1 | AH41: 5.12
B42: 6.33 | C42: 1 | D42: 4.37 | P42: 30 | Q42: 0 | R42: 0 | AF42: 6.33 | AG42: 1 | AH42: 4.37
B43: 5.33 | C43: 0 | D43: 4.75 | P43: 0 | Q43: -10 | R43: 0 | AF43: 5.33 | AG43: 0 | AH43: 4.75
B44: 5.5 | C44: 1 | D44: 4.62 | P44: 30 | Q44: 4 | R44: 0 | AF44: 5.5 | AG44: 1 | AH44: 4.62
B45: 5.83 | C45: 1 | D45: 5.12 | P45: 30 | Q45: 2 | R45: 0 | AF45: 5.83 | AG45: 1 | AH45: 5.12
B46: 5.83 | C46: 1 | D46: 4.5 | P46: 35 | Q46: 14 | R46: 4 | AF46: 5.83 | AG46: 1 | AH46: 4.5
B47: 6.83 | C47: 1 | D47: 5.37 | P47: 35 | Q47: 2 | R47: 4 | AF47: 6.83 | AG47: 1 | AH47: 5.37
B48: 5.5 | C48: 1 | D48: 4.75 | P48: 20 | Q48: 4 | R48: 3 | AF48: 5.5 | AG48: 1 | AH48: 4.75
B49: 5.33 | C49: 1 | D49: 4.87 | P49: 35 | Q49: -2 | R49: 0 | AF49: 5.33 | AG49: 1 | AH49: 4.87
B50: 5.33 | C50: 0 | D50: 5.12 | P50: 0 | Q50: -11 | R50: 5 | AF50: 5.33 | AG50: 0 | AH50: 5.12
B51: 7 | C51: 1 | D51: 5.37 | AF51: 7 | AG51: 1 | AH51: 5.37
B52: 4.83 | C52: 1 | D52: 4 | AF52: 4.83 | AG52: 1 | AH52: 4
B53: 6.16 | C53: 0 | D53: 5.62 | AF53: 6.16 | AG53: 0 | AH53: 5.62
B54: 5.5 | C54: 0 | D54: 4.25 | AF54: 5.5 | AG54: 0 | AH54: 4.25
B55: 4.83 | C55: 0 | D55: 6.37 | AF55: 4.83 | AG55: 0 | AH55: 6.37
B56: 6.33 | C56: 1 | D56: 5.25 | AF56: 6.33 | AG56: 1 | AH56: 5.25
B57: 6 | C57: 0 | D57: 6 | AF57: 6 | AG57: 0 | AH57: 6
B58: 5.16 | C58: 1 | D58: 4.62 | AF58: 5.16 | AG58: 1 | AH58: 4.62
B59: 5.83 | C59: 1 | D59: 4.37 | AF59: 5.83 | AG59: 1 | AH59: 4.37
B60: 7 | C60: 1 | D60: 6.12 | AF60: 7 | AG60: 1 | AH60: 6.12
B61: 6.33 | C61: 1 | D61: 3.62 | AF61: 6.33 | AG61: 1 | AH61: 3.62
B62: 6.33 | C62: 1 | D62: 6 | AF62: 6.33 | AG62: 1 | AH62: 6
B63: 6.33 | C63: 1 | D63: 7 | AF63: 6.33 | AG63: 1 | AH63: 7
B64: 5.66 | C64: 1 | D64: 5.87 | AF64: 5.66 | AG64: 1 | AH64: 5.87
B65: 5.33 | C65: 0 | D65: 5.5 | AF65: 5.33 | AG65: 0 | AH65: 5.5
B66: 5.5 | C66: 0 | D66: 5.12 | AF66: 5.5 | AG66: 0 | AH66: 5.12
B67: 4.66 | C67: 1 | D67: 3.75 | AF67: 4.66 | AG67: 1 | AH67: 3.75
B68: 4.66 | C68: 1 | D68: 5.25 | AF68: 4.66 | AG68: 1 | AH68: 5.25
B69: 3.83 | C69: 1 | D69: 3.87 | AF69: 3.83 | AG69: 1 | AH69: 3.87
B70: 6.83 | C70: 1 | D70: 5.5 | AF70: 6.83 | AG70: 1 | AH70: 5.5
B71: 6.83 | C71: 1 | D71: 6.37 | AF71: 6.83 | AG71: 1 | AH71: 6.37
B72: 7 | C72: 1 | D72: 5.25 | AF72: 7 | AG72: 1 | AH72: 5.25
B73: 5.16 | C73: 1 | D73: 5.5 | AF73: 5.16 | AG73: 1 | AH73: 5.5
B74: 6.83 | C74: 0 | D74: 4 | AF74: 6.83 | AG74: 0 | AH74: 4
B75: 6.33 | C75: 1 | D75: 5.87 | AF75: 6.33 | AG75: 1 | AH75: 5.87
B76: 5.5 | C76: 1 | D76: 4.87 | AF76: 5.5 | AG76: 1 | AH76: 4.87
B77: 6.66 | C77: 1 | D77: 4.87 | AF77: 6.66 | AG77: 1 | AH77: 4.87
B78: 5.16 | C78: 1 | D78: 3.5 | AF78: 5.16 | AG78: 1 | AH78: 3.5
B79: 6.33 | C79: 1 | D79: 4.12 | AF79: 6.33 | AG79: 1 | AH79: 4.12
B80: 4.16 | C80: 0 | D80: 5.5 | AF80: 4.16 | AG80: 0 | AH80: 5.5
B81: 6 | C81: 0 | D81: 4 | AF81: 6 | AG81: 0 | AH81: 4
B82: 6.5 | C82: 1 | D82: 5.12 | AF82: 6.5 | AG82: 1 | AH82: 5.12
B83: 6.33 | C83: 1 | D83: 4.62 | AF83: 6.33 | AG83: 1 | AH83: 4.62
B84: 3.66 | C84: 0 | D84: 5.87 | AF84: 3.66 | AG84: 0 | AH84: 5.87
B85: 5.16 | C85: 0 | D85: 5 | AF85: 5.16 | AG85: 0 | AH85: 5
B86: 4.16 | C86: 1 | D86: 4.87 | AF86: 4.16 | AG86: 1 | AH86: 4.87
B87: 5.83 | C87: 1 | D87: 5.75 | AF87: 5.83 | AG87: 1 | AH87: 5.75
B88: 5.16 | C88: 0 | D88: 5.25 | AF88: 5.16 | AG88: 0 | AH88: 5.25
B89: 7 | C89: 0 | D89: 4.75 | AF89: 7 | AG89: 0 | AH89: 4.75
B90: 4 | C90: 1 | D90: 4.37 | AF90: 4 | AG90: 1 | AH90: 4.37
B91: 6.5 | C91: 1 | D91: 4.5 | AF91: 6.5 | AG91: 1 | AH91: 4.5
B92: 6.5 | C92: 0 | D92: 4.12 | AF92: 6.5 | AG92: 0 | AH92: 4.12
B93: 6.33 | C93: 1 | D93: 6.5 | AF93: 6.33 | AG93: 1 | AH93: 6.5
B94: 7 | C94: 0 | D94: 6.5 | AF94: 7 | AG94: 0 | AH94: 6.5
B95: 5.66 | C95: 1 | D95: 4 | AF95: 5.66 | AG95: 1 | AH95: 4
B96: 6.5 | C96: 1 | D96: 4.25 | AF96: 6.5 | AG96: 1 | AH96: 4.25
B97: 5.66 | C97: 1 | D97: 4.75 | AF97: 5.66 | AG97: 1 | AH97: 4.75
B98: 5.66 | C98: 1 | D98: 5.5 | AF98: 5.66 | AG98: 1 | AH98: 5.5
B99: 6.33 | C99: 1 | D99: 4.75 | AF99: 6.33 | AG99: 1 | AH99: 4.75
B100: 5.83 | C100: 0 | D100: 4.25 | AF100: 5.83 | AG100: 0 | AH100: 4.25
B101: 6.66 | C101: 1 | D101: 6 | AF101: 6.66 | AG101: 1 | AH101: 6
B102: 5.16 | C102: 1 | D102: 4.5 | AF102: 5.16 | AG102: 1 | AH102: 4.5
B103: 5 | C103: 1 | D103: 5.75 | AF103: 5 | AG103: 1 | AH103: 5.75
B104: 5 | C104: 0 | D104: 4.25 | AF104: 5 | AG104: 0 | AH104: 4.25
B105: 4.5 | C105: 1 | D105: 4.62 | AF105: 4.5 | AG105: 1 | AH105: 4.62
B106: 5.16 | C106: 1 | D106: 5.62 | AF106: 5.16 | AG106: 1 | AH106: 5.62
B107: 6.83 | C107: 1 | D107: 5 | AF107: 6.83 | AG107: 1 | AH107: 5
B108: 2.33 | C108: 0 | D108: 6.5 | AF108: 2.33 | AG108: 0 | AH108: 6.5
B109: 5.33 | C109: 0 | D109: 5.12 | AF109: 5.33 | AG109: 0 | AH109: 5.12
B110: 6.66 | C110: 0 | D110: 5.62 | AF110: 6.66 | AG110: 0 | AH110: 5.62
B111: 7 | C111: 1 | D111: 5.5 | AF111: 7 | AG111: 1 | AH111: 5.5
B112: 6 | C112: 1 | D112: 6.5 | AF112: 6 | AG112: 1 | AH112: 6.5
B113: 5.66 | C113: 1 | D113: 4.25 | AF113: 5.66 | AG113: 1 | AH113: 4.25
B114: 6.5 | C114: 1 | D114: 6 | AF114: 6.5 | AG114: 1 | AH114: 6
B115: 4.83 | C115: 0 | D115: 4.25 | AF115: 4.83 | AG115: 0 | AH115: 4.25
B116: 6.5 | C116: 0 | D116: 4.75 | AF116: 6.5 | AG116: 0 | AH116: 4.75
B117: 3.66 | C117: 1 | D117: 4.75 | AF117: 3.66 | AG117: 1 | AH117: 4.75
B118: 6 | C118: 1 | D118: 6 | AF118: 6 | AG118: 1 | AH118: 6
B119: 6 | C119: 1 | D119: 4.5 | AF119: 6 | AG119: 1 | AH119: 4.5
B120: 7 | C120: 1 | D120: 6.25 | AF120: 7 | AG120: 1 | AH120: 6.25
B121: 5 | C121: 1 | D121: 6.62 | AF121: 5 | AG121: 1 | AH121: 6.62
B122: 4.5 | C122: 0 | D122: 4.5 | AF122: 4.5 | AG122: 0 | AH122: 4.5
B123: 4.5 | C123: 0 | D123: 4.62 | AF123: 4.5 | AG123: 0 | AH123: 4.62
B124: 5.83 | C124: 1 | D124: 5.75 | AF124: 5.83 | AG124: 1 | AH124: 5.75
B125: 4.5 | C125: 1 | D125: 5.12 | AF125: 4.5 | AG125: 1 | AH125: 5.12
B126: 4 | C126: 1 | D126: 5.37 | AF126: 4 | AG126: 1 | AH126: 5.37
B127: 7 | C127: 1 | D127: 6.37 | AF127: 7 | AG127: 1 | AH127: 6.37
B128: 4.66 | C128: 0 | D128: 6.37 | AF128: 4.66 | AG128: 0 | AH128: 6.37
B129: 6.16 | C129: 0 | D129: 4.75 | AF129: 6.16 | AG129: 0 | AH129: 4.75
B130: 7 | C130: 1 | D130: 5 | AF130: 7 | AG130: 1 | AH130: 5
B131: 7 | C131: 0 | D131: 4.12 | AF131: 7 | AG131: 0 | AH131: 4.12
B132: 2.33 | C132: 0 | D132: 5.87 | AF132: 2.33 | AG132: 0 | AH132: 5.87
B133: 6.33 | C133: 1 | D133: 7 | AF133: 6.33 | AG133: 1 | AH133: 7
B134: 6.83 | C134: 1 | D134: 5.5 | AF134: 6.83 | AG134: 1 | AH134: 5.5
B135: 6.16 | C135: 0 | D135: 5 | AF135: 6.16 | AG135: 0 | AH135: 5
B136: 4.66 | C136: 0 | D136: 4.37 | AF136: 4.66 | AG136: 0 | AH136: 4.37
B137: 6 | C137: 0 | D137: 5.25 | AF137: 6 | AG137: 0 | AH137: 5.25
B138: 4.83 | C138: 1 | D138: 5.25 | AF138: 4.83 | AG138: 1 | AH138: 5.25
B139: 6 | C139: 1 | D139: 5.37 | AF139: 6 | AG139: 1 | AH139: 5.37

Sheet 3. HC3
A1: Instructions for this sheet: No action required. These calculations are displayed for the benefit of advanced users, and can be safely ignored by the typical user. | AMW1: t
A3: =ROW(B8) -> 8 | B3: =COUNT(C8:C1007) -> 129 | C3: =A3+B3-1 -> 136 | D3: =ADDRESS(A3,A4,4) -> B8 | E3: Matrix Reference | G3: =ROW(H8) -> 8 | H3: =COUNT(I8:I1007) -> 129 | I3: =G3+H3-1 -> 136 | J3: =ADDRESS(G3,G4,4) -> H8 | K3: Matrix Reference | P3: Determinant | U3: =ROW(V8) -> 8 | V3: =COUNT(X8:X1007) -> 129 | W3: =U3+V3-1 -> 136 | X3: =ADDRESS(U3,U4,4) -> X8 | Y3: Matrix reference | Z3: . | AA3: Note: This is not in use when HC3 is used. | AE3: Note: This is not in use when HC3 is used. | AL3: =ROW(AK8) -> 8 | AM3: =COUNT(AK8:AMV11)/4 -> 129 | AN3: =AL3+AM3-1 -> 136 | AO3: =ADDRESS(AL3,AL4,4) -> AK8 | AP3: Matrix reference | ANE3: =ROW(AND8) -> 8 | ANF3: =COUNT(ANE8:BZP11)/4 -> 129 | ANG3: =ANE3+ANF3-1 -> 136 | ANH3: =ADDRESS(ANE3,ANE4,4) -> ANE8 | ANI3: Matrix reference
A4: =COLUMN(B8) -> 2 | B4: 1 | C4: =A4+B4-1 -> 2 | D4: =ADDRESS(C3,C4,4) -> B136 | E4: =CONCATENATE(D3,":",D4) -> B8:B136 | G4: =COLUMN(H8) -> 8 | H4: 4 | I4: =G4+H4-1 -> 11 | J4: =ADDRESS(I3,I4,4) -> K136 | K4: =CONCATENATE(J3,":",J4) -> H8:K136 | P4: =MDETERM(MMULT(TRANSPOSE(INDIRECT(K4)+0),INDIRECT(K4)+0)) -> 4667978.244 | U4: =COLUMN(X11) -> 24 | V4: 1 | W4: =U4 -> 24 | X4: =ADDRESS(W3,W4,4) -> X136 | Y4: =CONCATENATE(X3,":",X4) -> X8:X136 | AL4: =COLUMN(AK11) -> 37 | AM4: =COUNT(AK8:AMV11)/4 -> 129 | AN4: =AL4+AM4-1 -> 165 | AO4: =ADDRESS(AN3,AN4,4) -> FI136 | AP4: =CONCATENATE(AO3,":",AO4) -> AK8:FI136 | ANE4: =COLUMN(ANE11) -> 1045 | ANF4: =COUNT(ANE8:BZP11)/4 -> 129 | ANG4: =ANE4+ANF4-1 -> 1173 | ANH4: =ADDRESS(ANG3,ANG4,4) -> ASC136 | ANI4: =CONCATENATE(ANH3,":",ANH4) -> ANE8:ASC136
A6: This pulls the data from the first sheet… | H6: X | M6: (XTX)-1 | R6: Unstandardized Regression Weights | U6: Fitted Values and Residuals | AE6: Covariance Matrix | AK6: H = Hat Matrix = X(XTX)-1XT | AMX6: These are the squared errors. | ANA6: (e2)/ (1-H)2 | AND6: This is the diagonal matrix with entries (e2)/ (1-H)2 | BZR6: HC3 (From Hayes & Cai, 2007)
B7: Y | C7: X | D7: M | E7: All Present? | H7: Intercept | I7: X | J7: M | K7: X*M | S7: B̂ | W7: Ŷ | X7: Y - Ŷ | AC7: Value | AF7: γ0 or B0 | AG7: γ1 or B1 | AH7: γ2 or B2 | AI7: γ3 or B3 | AK7: 1 | AL7: =AK7+1 -> 2 | AM7: 3 | AN7: 4 | AO7: 5 | AP7: 6 | AQ7: 7 | AR7: 8 | AS7: 9 | AT7: 10 | AU7: 11 | AV7: 12 | AW7: 13 | AX7: 14 | AY7: 15 | AZ7: 16 | BA7: 17 | BB7: 18 | BC7: 19 | BD7: 20 | BE7: 21 | BF7: 22 | BG7: 23 | BH7: 24 | BI7: 25 | BJ7: 26 | BK7: 27 | BL7: 28 | BM7: 29 | BN7: 30 | BO7: 31 | BP7: 32 | BQ7: 33 | BR7: 34 | BS7: 35 | BT7: 36 | BU7: 37 | BV7: 38 | BW7: 39 | BX7: 40 | BY7: 41 | BZ7: 42 | CA7: 43 | CB7: 44 | CC7: 45 | CD7: 46 | CE7: 47 | CF7: 48 | CG7: 49 | CH7: 50 | CI7: 51 | CJ7: 52 | CK7: 53 | CL7: 54 | CM7: 55 | CN7: 56 | CO7: 57 | CP7: 58 | CQ7: 59 | CR7: 60 | CS7: 61 | CT7: 62 | CU7: 63 | CV7: 64 | CW7: 65 | CX7: =CW7+1 -> 66 | CY7: 67 | CZ7: 68 | DA7: 69 | DB7: 70 | DC7: 71 | DD7: 72 | DE7: 73 | DF7: 74 | DG7: 75 | DH7: 76 | DI7: 77 | DJ7: 78 | DK7: 79 | DL7: 80 | DM7: 81 | DN7: 82 | DO7: 83 | DP7: 84 | DQ7: 85 | DR7: 86 | DS7: 87 | DT7: 88 | DU7: 89 | DV7: 90 | DW7: 91 | DX7: 92 | DY7: 93 | DZ7: 94 | EA7: 95 | EB7: 96 | EC7: 97 | ED7: 98 | EE7: 99 | EF7: 100 | EG7: 101 | EH7: 102 | EI7: 103 | EJ7: 104 | EK7: 105 | EL7: 106 | EM7: 107 | EN7: 108 | EO7: 109 | EP7: 110 | EQ7: 111 | ER7: 112 | ES7: 113 | ET7: 114 | EU7: 115 | EV7: 116 | EW7: 117 | EX7: 118 | EY7: 119 | EZ7: 120 | FA7: 121 | FB7: 122 | FC7: 123 | FD7: 124 | FE7: 125 | FF7: 126 | FG7: 127 | FH7: 128 | FI7: 129 | FJ7: =FI7+1 -> 130 | FK7: 131 | FL7: 132 | FM7: 133 | FN7: 134 | FO7: 135 | FP7: 136 | FQ7: 137 | FR7: 138 | FS7: 139 | FT7: 140 | FU7: 141 | FV7: 142 | FW7: 143 | FX7: 144 | FY7: 145 | FZ7: 146 | GA7: 147 | GB7: 148 | GC7: 149 | GD7: 150 | GE7: 151 | GF7: 152 | GG7: 153 | GH7: 154 | GI7: 155 | GJ7: 156 | GK7: 157 | GL7: 158 | GM7: 159 | GN7: 160 | GO7: 161 | GP7: 162 | GQ7: 163 | GR7: 164 | GS7: 165 | GT7: 166 | GU7: 167 | GV7: 168 | GW7: 169 | GX7: 170 | GY7: 171 | GZ7: 172 | HA7: 173 | HB7: 174 | HC7: 175 | HD7: 176 | HE7: 177 | HF7: 178 | HG7: 179 | HH7: 180 | HI7: 181 | HJ7: 182 | HK7: 183 | HL7: 184 | HM7: 185 | HN7: 186 | HO7: 187 | HP7: 188 | HQ7: 189 | HR7: 190 | HS7: 191 | HT7: 192 | HU7: 193 | HV7: =HU7+1 -> 194 | HW7: 195 | HX7: 196 | HY7: 197 | HZ7: 198 | IA7: 199 | IB7: 200 | IC7: 201 | ID7: 202 | IE7: 203 | IF7: 204 | IG7: 205 | IH7: 206 | II7: 207 | IJ7: 208 | IK7: 209 | IL7: 210 | IM7: 211 | IN7: 212 | IO7: 213 | IP7: 214 | IQ7: 215 | IR7: 216 | IS7: 217 | IT7: 218 | IU7: 219 | IV7: 220 | IW7: 221 | IX7: 222 | IY7: 223 | IZ7: 224 | JA7: 225 | JB7: 226 | JC7: 227 | JD7: 228 | JE7: 229 | JF7: 230 | JG7: 231 | JH7: 232 | JI7: 233 | JJ7: 234 | JK7: 235 | JL7: 236 | JM7: 237 | JN7: 238 | JO7: 239 | JP7: 240 | JQ7: 241 | JR7: 242 | JS7: 243 | JT7: 244 | JU7: 245 | JV7: 246 | JW7: 247 | JX7: 248 | JY7: 249 | JZ7: 250 | KA7: 251 | KB7: 252 | KC7: 253 | KD7: 254 | KE7: 255 | KF7: 256 | KG7: 257 | KH7: =KG7+1 -> 258 | KI7: 259 | KJ7: 260 | KK7: 261 | KL7: 262 | KM7: 263 | KN7: 264 | KO7: 265 | KP7: 266 | KQ7: 267 | KR7: 268 | KS7: 269 | KT7: 270 | KU7: 271 | KV7: 272 | KW7: 273 | KX7: 274 | KY7: 275 | KZ7: 276 | LA7: 277 | LB7: 278 | LC7: 279 | LD7: 280 | LE7: 281 | LF7: 282 | LG7: 283 | LH7: 284 | LI7: 285 | LJ7: 286 | LK7: 287 | LL7: 288 | LM7: 289 | LN7: 290 | LO7: 291 | LP7: 292 | LQ7: 293 | LR7: 294 | LS7: 295 | LT7: 296 | LU7: 297 | LV7: 298 | LW7: 299 | LX7: 300 | LY7: 301 | LZ7: 302 | MA7: 303 | MB7: 304 | MC7: 305 | MD7: 306 | ME7: 307 | MF7: 308 | MG7: 309 | MH7: 310 | MI7: 311 | MJ7: 312 | MK7: 313 | ML7: 314 | MM7: 315 | MN7: 316 | MO7: 317 | MP7: 318 | MQ7: 319 | MR7: 320 | MS7: 321 | MT7: =MS7+1 -> 322 | MU7: 323 | MV7: 324 | MW7: 325 | MX7: 326 | MY7: 327 | MZ7: 328 | NA7: 329 | NB7: 330 | NC7: 331 | ND7: 332 | NE7: 333 | NF7: 334 | NG7: 335 | NH7: 336 | NI7: 337 | NJ7: 338 | NK7: 339 | NL7: 340 | NM7: 341 | NN7: 342 | NO7: 343 | NP7: 344 | NQ7: 345 | NR7: 346 | NS7: 347 | NT7: 348 | NU7: 349 | NV7: 350 | NW7: 351 | NX7: 352 | NY7: 353 | NZ7: 354 | OA7: 355 | OB7: 356 | OC7: 357 | OD7: 358 | OE7: 359 | OF7: 360 | OG7: 361 | OH7: 362 | OI7: 363 | OJ7: 364 | OK7: 365 | OL7: 366 | OM7: 367 | ON7: 368 | OO7: 369 | OP7: 370 | OQ7: 371 | OR7: 372 | OS7: 373 | OT7: 374 | OU7: 375 | OV7: 376 | OW7: 377 | OX7: 378 | OY7: 379 | OZ7: 380 | PA7: 381 | PB7: 382 | PC7: 383 | PD7: 384 | PE7: 385 | PF7: =PE7+1 -> 386 | PG7: 387 | PH7: 388 | PI7: 389 | PJ7: 390 | PK7: 391 | PL7: 392 | PM7: 393 | PN7: 394 | PO7: 395 | PP7: 396 | PQ7: 397 | PR7: 398 | PS7: 399 | PT7: 400 | PU7: 401 | PV7: 402 | PW7: 403 | PX7: 404 | PY7: 405 | PZ7: 406 | QA7: 407 | QB7: 408 | QC7: 409 | QD7: 410 | QE7: 411 | QF7: 412 | QG7: 413 | QH7: 414 | QI7: 415 | QJ7: 416 | QK7: 417 | QL7: 418 | QM7: 419 | QN7: 420 | QO7: 421 | QP7: 422 | QQ7: 423 | QR7: 424 | QS7: 425 | QT7: 426 | QU7: 427 | QV7: 428 | QW7: 429 | QX7: 430 | QY7: 431 | QZ7: 432 | RA7: 433 | RB7: 434 | RC7: 435 | RD7: 436 | RE7: 437 | RF7: 438 | RG7: 439 | RH7: 440 | RI7: 441 | RJ7: 442 | RK7: 443 | RL7: 444 | RM7: 445 | RN7: 446 | RO7: 447 | RP7: 448 | RQ7: 449 | RR7: =RQ7+1 -> 450 | RS7: 451 | RT7: 452 | RU7: 453 | RV7: 454 | RW7: 455 | RX7: 456 | RY7: 457 | RZ7: 458 | SA7: 459 | SB7: 460 | SC7: 461 | SD7: 462 | SE7: 463 | SF7: 464 | SG7: 465 | SH7: 466 | SI7: 467 | SJ7: 468 | SK7: 469 | SL7: 470 | SM7: 471 | SN7: 472 | SO7: 473 | SP7: 474 | SQ7: 475 | SR7: 476 | SS7: 477 | ST7: 478 | SU7: 479 | SV7: 480 | SW7: 481 | SX7: 482 | SY7: 483 | SZ7: 484 | TA7: 485 | TB7: 486 | TC7: 487 | TD7: 488 | TE7: 489 | TF7: 490 | TG7: 491 | TH7: 492 | TI7: 493 | TJ7: 494 | TK7: 495 | TL7: 496 | TM7: 497 | TN7: 498 | TO7: 499 | TP7: 500 | TQ7: 501 | TR7: 502 | TS7: 503 | TT7: 504 | TU7: 505 | TV7: 506 | TW7: 507 | TX7: 508 | TY7: 509 | TZ7: 510 | UA7: 511 | UB7: 512 | UC7: 513 | UD7: =UC7+1 -> 514 | UE7: 515 | UF7: 516 | UG7: 517 | UH7: 518 | UI7: 519 | UJ7: 520 | UK7: 521 | UL7: 522 | UM7: 523 | UN7: 524 | UO7: 525 | UP7: 526 | UQ7: 527 | UR7: 528 | US7: 529 | UT7: 530 | UU7: 531 | UV7: 532 | UW7: 533 | UX7: 534 | UY7: 535 | UZ7: 536 | VA7: 537 | VB7: 538 | VC7: 539 | VD7: 540 | VE7: 541 | VF7: 542 | VG7: 543 | VH7: 544 | VI7: 545 | VJ7: 546 | VK7: 547 | VL7: 548 | VM7: 549 | VN7: 550 | VO7: 551 | VP7: 552 | VQ7: 553 | VR7: 554 | VS7: 555 | VT7: 556 | VU7: 557 | VV7: 558 | VW7: 559 | VX7: 560 | VY7: 561 | VZ7: 562 | WA7: 563 | WB7: 564 | WC7: 565 | WD7: 566 | WE7: 567 | WF7: 568 | WG7: 569 | WH7: 570 | WI7: 571 | WJ7: 572 | WK7: 573 | WL7: 574 | WM7: 575 | WN7: 576 | WO7: 577 | WP7: =WO7+1 -> 578 | WQ7: 579 | WR7: 580 | WS7: 581 | WT7: 582 | WU7: 583 | WV7: 584 | WW7: 585 | WX7: 586 | WY7: 587 | WZ7: 588 | XA7: 589 | XB7: 590 | XC7: 591 | XD7: 592 | XE7: 593 | XF7: 594 | XG7: 595 | XH7: 596 | XI7: 597 | XJ7: 598 | XK7: 599 | XL7: 600 | XM7: 601 | XN7: 602 | XO7: 603 | XP7: 604 | XQ7: 605 | XR7: 606 | XS7: 607 | XT7: 608 | XU7: 609 | XV7: 610 | XW7: 611 | XX7: 612 | XY7: 613 | XZ7: 614 | YA7: 615 | YB7: 616 | YC7: 617 | YD7: 618 | YE7: 619 | YF7: 620 | YG7: 621 | YH7: 622 | YI7: 623 | YJ7: 624 | YK7: 625 | YL7: 626 | YM7: 627 | YN7: 628 | YO7: 629 | YP7: 630 | YQ7: 631 | YR7: 632 | YS7: 633 | YT7: 634 | YU7: 635 | YV7: 636 | YW7: 637 | YX7: 638 | YY7: 639 | YZ7: 640 | ZA7: 641 | ZB7: =ZA7+1 -> 642 | ZC7: 643 | ZD7: 644 | ZE7: 645 | ZF7: 646 | ZG7: 647 | ZH7: 648 | ZI7: 649 | ZJ7: 650 | ZK7: 651 | ZL7: 652 | ZM7: 653 | ZN7: 654 | ZO7: 655 | ZP7: 656 | ZQ7: 657 | ZR7: 658 | ZS7: 659 | ZT7: 660 | ZU7: 661 | ZV7: 662 | ZW7: 663 | ZX7: 664 | ZY7: 665 | ZZ7: 666 | AAA7: 667 | AAB7: 668 | AAC7: 669 | AAD7: 670 | AAE7: 671 | AAF7: 672 | AAG7: 673 | AAH7: 674 | AAI7: 675 | AAJ7: 676 | AAK7: 677 | AAL7: 678 | AAM7: 679 | AAN7: 680 | AAO7: 681 | AAP7: 682 | AAQ7: 683 | AAR7: 684 | AAS7: 685 | AAT7: 686 | AAU7: 687 | AAV7: 688 | AAW7: 689 | AAX7: 690 | AAY7: 691 | AAZ7: 692 | ABA7: 693 | ABB7: 694 | ABC7: 695 | ABD7: 696 | ABE7: 697 | ABF7: 698 | ABG7: 699 | ABH7: 700 | ABI7: 701 | ABJ7: 702 | ABK7: 703 | ABL7: 704 | ABM7: 705 | ABN7: =ABM7+1 -> 706 | ABO7: 707 | ABP7: 708 | ABQ7: 709 | ABR7: 710 | ABS7: 711 | ABT7: 712 | ABU7: 713 | ABV7: 714 | ABW7: 715 | ABX7: 716 | ABY7: 717 | ABZ7: 718 | ACA7: 719 | ACB7: 720 | ACC7: 721 | ACD7: 722 | ACE7: 723 | ACF7: 724 | ACG7: 725 | ACH7: 726 | ACI7: 727 | ACJ7: 728 | ACK7: 729 | ACL7: 730 | ACM7: 731 | ACN7: 732 | ACO7: 733 | ACP7: 734 | ACQ7: 735 | ACR7: 736 | ACS7: 737 | ACT7: 738 | ACU7: 739 | ACV7: 740 | ACW7: 741 | ACX7: 742 | ACY7: 743 | ACZ7: 744 | ADA7: 745 | ADB7: 746 | ADC7: 747 | ADD7: 748 | ADE7: 749 | ADF7: 750 | ADG7: 751 | ADH7: 752 | ADI7: 753 | ADJ7: 754 | ADK7: 755 | ADL7: 756 | ADM7: 757 | ADN7: 758 | ADO7: 759 | ADP7: 760 | ADQ7: 761 | ADR7: 762 | ADS7: 763 | ADT7: 764 | ADU7: 765 | ADV7: 766 | ADW7: 767 | ADX7: 768 | ADY7: 769 | ADZ7: =ADY7+1 -> 770 | AEA7: 771 | AEB7: 772 | AEC7: 773 | AED7: 774 | AEE7: 775 | AEF7: 776 | AEG7: 777 | AEH7: 778 | AEI7: 779 | AEJ7: 780 | AEK7: 781 | AEL7: 782 | AEM7: 783 | AEN7: 784 | AEO7: 785 | AEP7: 786 | AEQ7: 787 | AER7: 788 | AES7: 789 | AET7: 790 | AEU7: 791 | AEV7: 792 | AEW7: 793 | AEX7: 794 | AEY7: 795 | AEZ7: 796 | AFA7: 797 | AFB7: 798 | AFC7: 799 | AFD7: 800 | AFE7: 801 | AFF7: 802 | AFG7: 803 | AFH7: 804 | AFI7: 805 | AFJ7: 806 | AFK7: 807 | AFL7: 808 | AFM7: 809 | AFN7: 810 | AFO7: 811 | AFP7: 812 | AFQ7: 813 | AFR7: 814 | AFS7: 815 | AFT7: 816 | AFU7: 817 | AFV7: 818 | AFW7: 819 | AFX7: 820 | AFY7: 821 | AFZ7: 822 | AGA7: 823 | AGB7: 824 | AGC7: 825 | AGD7: 826 | AGE7: 827 | AGF7: 828 | AGG7: 829 | AGH7: 830 | AGI7: 831 | AGJ7: 832 | AGK7: 833 | AGL7: =AGK7+1 -> 834 | AGM7: 835 | AGN7: 836 | AGO7: 837 | AGP7: 838 | AGQ7: 839 | AGR7: 840 | AGS7: 841 | AGT7: 842 | AGU7: 843 | AGV7: 844 | AGW7: 845 | AGX7: 846 | AGY7: 847 | AGZ7: 848 | AHA7: 849 | AHB7: 850 | AHC7: 851 | AHD7: 852 | AHE7: 853 | AHF7: 854 | AHG7: 855 | AHH7: 856 | AHI7: 857 | AHJ7: 858 | AHK7: 859 | AHL7: 860 | AHM7: 861 | AHN7: 862 | AHO7: 863 | AHP7: 864 | AHQ7: 865 | AHR7: 866 | AHS7: 867 | AHT7: 868 | AHU7: 869 | AHV7: 870 | AHW7: 871 | AHX7: 872 | AHY7: 873 | AHZ7: 874 | AIA7: 875 | AIB7: 876 | AIC7: 877 | AID7: 878 | AIE7: 879 | AIF7: 880 | AIG7: 881 | AIH7: 882 | AII7: 883 | AIJ7: 884 | AIK7: 885 | AIL7: 886 | AIM7: 887 | AIN7: 888 | AIO7: 889 | AIP7: 890 | AIQ7: 891 | AIR7: 892 | AIS7: 893 | AIT7: 894 | AIU7: 895 | AIV7: 896 | AIW7: 897 | AIX7: =AIW7+1 -> 898 | AIY7: 899 | AIZ7: 900 | AJA7: 901 | AJB7: 902 | AJC7: 903 | AJD7: 904 | AJE7: 905 | AJF7: 906 | AJG7: 907 | AJH7: 908 | AJI7: 909 | AJJ7: 910 | AJK7: 911 | AJL7: 912 | AJM7: 913 | AJN7: 914 | AJO7: 915 | AJP7: 916 | AJQ7: 917 | AJR7: 918 | AJS7: 919 | AJT7: 920 | AJU7: 921 | AJV7: 922 | AJW7: 923 | AJX7: 924 | AJY7: 925 | AJZ7: 926 | AKA7: 927 | AKB7: 928 | AKC7: 929 | AKD7: 930 | AKE7: 931 | AKF7: 932 | AKG7: 933 | AKH7: 934 | AKI7: 935 | AKJ7: 936 | AKK7: 937 | AKL7: 938 | AKM7: 939 | AKN7: 940 | AKO7: 941 | AKP7: 942 | AKQ7: 943 | AKR7: 944 | AKS7: 945 | AKT7: 946 | AKU7: 947 | AKV7: 948 | AKW7: 949 | AKX7: 950 | AKY7: 951 | AKZ7: 952 | ALA7: 953 | ALB7: 954 | ALC7: 955 | ALD7: 956 | ALE7: 957 | ALF7: 958 | ALG7: 959 | ALH7: 960 | ALI7: 961 | ALJ7: =ALI7+1 -> 962 | ALK7: 963 | ALL7: 964 | ALM7: 965 | ALN7: 966 | ALO7: 967 | ALP7: 968 | ALQ7: 969 | ALR7: 970 | ALS7: 971 | ALT7: 972 | ALU7: 973 | ALV7: 974 | ALW7: 975 | ALX7: 976 | ALY7: 977 | ALZ7: 978 | AMA7: 979 | AMB7: 980 | AMC7: 981 | AMD7: 982 | AME7: 983 | AMF7: 984 | AMG7: 985 | AMH7: 986 | AMI7: 987 | AMJ7: 988 | AMK7: 989 | AML7: 990 | AMM7: 991 | AMN7: 992 | AMO7: 993 | AMP7: 994 | AMQ7: 995 | AMR7: 996 | AMS7: 997 | AMT7: 998 | AMU7: 999 | AMV7: 1000 | AMY7: Squared residuals | ANB7: 1 | ANE7: 1 | ANF7: =ANB7+1 -> 2 | ANG7: =ANF7+1 -> 3 | ANH7: 4 | ANI7: 5 | ANJ7: 6 | ANK7: 7 | ANL7: 8 | ANM7: 9 | ANN7: 10 | ANO7: 11 | ANP7: 12 | ANQ7: 13 | ANR7: 14 | ANS7: 15 | ANT7: 16 | ANU7: 17 | ANV7: 18 | ANW7: 19 | ANX7: 20 | ANY7: 21 | ANZ7: 22 | AOA7: 23 | AOB7: 24 | AOC7: 25 | AOD7: 26 | AOE7: 27 | AOF7: 28 | AOG7: 29 | AOH7: 30 | AOI7: 31 | AOJ7: 32 | AOK7: 33 | AOL7: 34 | AOM7: 35 | AON7: 36 | AOO7: 37 | AOP7: 38 | AOQ7: 39 | AOR7: 40 | AOS7: 41 | AOT7: 42 | AOU7: 43 | AOV7: 44 | AOW7: 45 | AOX7: 46 | AOY7: 47 | AOZ7: 48 | APA7: 49 | APB7: 50 | APC7: 51 | APD7: 52 | APE7: 53 | APF7: 54 | APG7: 55 | APH7: 56 | API7: 57 | APJ7: 58 | APK7: 59 | APL7: 60 | APM7: 61 | APN7: 62 | APO7: 63 | APP7: 64 | APQ7: 65 | APR7: =APQ7+1 -> 66 | APS7: 67 | APT7: 68 | APU7: 69 | APV7: 70 | APW7: 71 | APX7: 72 | APY7: 73 | APZ7: 74 | AQA7: 75 | AQB7: 76 | AQC7: 77 | AQD7: 78 | AQE7: 79 | AQF7: 80 | AQG7: 81 | AQH7: 82 | AQI7: 83 | AQJ7: 84 | AQK7: 85 | AQL7: 86 | AQM7: 87 | AQN7: 88 | AQO7: 89 | AQP7: 90 | AQQ7: 91 | AQR7: 92 | AQS7: 93 | AQT7: 94 | AQU7: 95 | AQV7: 96 | AQW7: 97 | AQX7: 98 | AQY7: 99 | AQZ7: 100 | ARA7: 101 | ARB7: 102 | ARC7: 103 | ARD7: 104 | ARE7: 105 | ARF7: 106 | ARG7: 107 | ARH7: 108 | ARI7: 109 | ARJ7: 110 | ARK7: 111 | ARL7: 112 | ARM7: 113 | ARN7: 114 | ARO7: 115 | ARP7: 116 | ARQ7: 117 | ARR7: 118 | ARS7: 119 | ART7: 120 | ARU7: 121 | ARV7: 122 | ARW7: 123 | ARX7: 124 | ARY7: 125 | ARZ7: 126 | ASA7: 127 | ASB7: 128 | ASC7: 129 | ASD7: =ASC7+1 -> 130 | ASE7: 131 | ASF7: 132 | ASG7: 133 | ASH7: 134 | ASI7: 135 | ASJ7: 136 | ASK7: 137 | ASL7: 138 | ASM7: 139 | ASN7: 140 | ASO7: 141 | ASP7: 142 | ASQ7: 143 | ASR7: 144 | ASS7: 145 | AST7: 146 | ASU7: 147 | ASV7: 148 | ASW7: 149 | ASX7: 150 | ASY7: 151 | ASZ7: 152 | ATA7: 153 | ATB7: 154 | ATC7: 155 | ATD7: 156 | ATE7: 157 | ATF7: 158 | ATG7: 159 | ATH7: 160 | ATI7: 161 | ATJ7: 162 | ATK7: 163 | ATL7: 164 | ATM7: 165 | ATN7: 166 | ATO7: 167 | ATP7: 168 | ATQ7: 169 | ATR7: 170 | ATS7: 171 | ATT7: 172 | ATU7: 173 | ATV7: 174 | ATW7: 175 | ATX7: 176 | ATY7: 177 | ATZ7: 178 | AUA7: 179 | AUB7: 180 | AUC7: 181 | AUD7: 182 | AUE7: 183 | AUF7: 184 | AUG7: 185 | AUH7: 186 | AUI7: 187 | AUJ7: 188 | AUK7: 189 | AUL7: 190 | AUM7: 191 | AUN7: 192 | AUO7: 193 | AUP7: =AUO7+1 -> 194 | AUQ7: 195 | AUR7: 196 | AUS7: 197 | AUT7: 198 | AUU7: 199 | AUV7: 200 | AUW7: 201 | AUX7: 202 | AUY7: 203 | AUZ7: 204 | AVA7: 205 | AVB7: 206 | AVC7: 207 | AVD7: 208 | AVE7: 209 | AVF7: 210 | AVG7: 211 | AVH7: 212 | AVI7: 213 | AVJ7: 214 | AVK7: 215 | AVL7: 216 | AVM7: 217 | AVN7: 218 | AVO7: 219 | AVP7: 220 | AVQ7: 221 | AVR7: 222 | AVS7: 223 | AVT7: 224 | AVU7: 225 | AVV7: 226 | AVW7: 227 | AVX7: 228 | AVY7: 229 | AVZ7: 230 | AWA7: 231 | AWB7: 232 | AWC7: 233 | AWD7: 234 | AWE7: 235 | AWF7: 236 | AWG7: 237 | AWH7: 238 | AWI7: 239 | AWJ7: 240 | AWK7: 241 | AWL7: 242 | AWM7: 243 | AWN7: 244 | AWO7: 245 | AWP7: 246 | AWQ7: 247 | AWR7: 248 | AWS7: 249 | AWT7: 250 | AWU7: 251 | AWV7: 252 | AWW7: 253 | AWX7: 254 | AWY7: 255 | AWZ7: 256 | AXA7: 257 | AXB7: =AXA7+1 -> 258 | AXC7: 259 | AXD7: 260 | AXE7: 261 | AXF7: 262 | AXG7: 263 | AXH7: 264 | AXI7: 265 | AXJ7: 266 | AXK7: 267 | AXL7: 268 | AXM7: 269 | AXN7: 270 | AXO7: 271 | AXP7: 272 | AXQ7: 273 | AXR7: 274 | AXS7: 275 | AXT7: 276 | AXU7: 277 | AXV7: 278 | AXW7: 279 | AXX7: 280 | AXY7: 281 | AXZ7: 282 | AYA7: 283 | AYB7: 284 | AYC7: 285 | AYD7: 286 | AYE7: 287 | AYF7: 288 | AYG7: 289 | AYH7: 290 | AYI7: 291 | AYJ7: 292 | AYK7: 293 | AYL7: 294 | AYM7: 295 | AYN7: 296 | AYO7: 297 | AYP7: 298 | AYQ7: 299 | AYR7: 300 | AYS7: 301 | AYT7: 302 | AYU7: 303 | AYV7: 304 | AYW7: 305 | AYX7: 306 | AYY7: 307 | AYZ7: 308 | AZA7: 309 | AZB7: 310 | AZC7: 311 | AZD7: 312 | AZE7: 313 | AZF7: 314 | AZG7: 315 | AZH7: 316 | AZI7: 317 | AZJ7: 318 | AZK7: 319 | AZL7: 320 | AZM7: 321 | AZN7: =AZM7+1 -> 322 | AZO7: 323 | AZP7: 324 | AZQ7: 325 | AZR7: 326 | AZS7: 327 | AZT7: 328 | AZU7: 329 | AZV7: 330 | AZW7: 331 | AZX7: 332 | AZY7: 333 | AZZ7: 334 | BAA7: 335 | BAB7: 336 | BAC7: 337 | BAD7: 338 | BAE7: 339 | BAF7: 340 | BAG7: 341 | BAH7: 342 | BAI7: 343 | BAJ7: 344 | BAK7: 345 | BAL7: 346 | BAM7: 347 | BAN7: 348 | BAO7: 349 | BAP7: 350 | BAQ7: 351 | BAR7: 352 | BAS7: 353 | BAT7: 354 | BAU7: 355 | BAV7: 356 | BAW7: 357 | BAX7: 358 | BAY7: 359 | BAZ7: 360 | BBA7: 361 | BBB7: 362 | BBC7: 363 | BBD7: 364 | BBE7: 365 | BBF7: 366 | BBG7: 367 | BBH7: 368 | BBI7: 369 | BBJ7: 370 | BBK7: 371 | BBL7: 372 | BBM7: 373 | BBN7: 374 | BBO7: 375 | BBP7: 376 | BBQ7: 377 | BBR7: 378 | BBS7: 379 | BBT7: 380 | BBU7: 381 | BBV7: 382 | BBW7: 383 | BBX7: 384 | BBY7: 385 | BBZ7: =BBY7+1 -> 386 | BCA7: 387 | BCB7: 388 | BCC7: 389 | BCD7: 390 | BCE7: 391 | BCF7: 392 | BCG7: 393 | BCH7: 394 | BCI7: 395 | BCJ7: 396 | BCK7: 397 | BCL7: 398 | BCM7: 399 | BCN7: 400 | BCO7: 401 | BCP7: 402 | BCQ7: 403 | BCR7: 404 | BCS7: 405 | BCT7: 406 | BCU7: 407 | BCV7: 408 | BCW7: 409 | BCX7: 410 | BCY7: 411 | BCZ7: 412 | BDA7: 413 | BDB7: 414 | BDC7: 415 | BDD7: 416 | BDE7: 417 | BDF7: 418 | BDG7: 419 | BDH7: 420 | BDI7: 421 | BDJ7: 422 | BDK7: 423 | BDL7: 424 | BDM7: 425 | BDN7: 426 | BDO7: 427 | BDP7: 428 | BDQ7: 429 | BDR7: 430 | BDS7: 431 | BDT7: 432 | BDU7: 433 | BDV7: 434 | BDW7: 435 | BDX7: 436 | BDY7: 437 | BDZ7: 438 | BEA7: 439 | BEB7: 440 | BEC7: 441 | BED7: 442 | BEE7: 443 | BEF7: 444 | BEG7: 445 | BEH7: 446 | BEI7: 447 | BEJ7: 448 | BEK7: 449 | BEL7: =BEK7+1 -> 450 | BEM7: 451 | BEN7: 452 | BEO7: 453 | BEP7: 454 | BEQ7: 455 | BER7: 456 | BES7: 457 | BET7: 458 | BEU7: 459 | BEV7: 460 | BEW7: 461 | BEX7: 462 | BEY7: 463 | BEZ7: 464 | BFA7: 465 | BFB7: 466 | BFC7: 467 | BFD7: 468 | BFE7: 469 | BFF7: 470 | BFG7: 471 | BFH7: 472 | BFI7: 473 | BFJ7: 474 | BFK7: 475 | BFL7: 476 | BFM7: 477 | BFN7: 478 | BFO7: 479 | BFP7: 480 | BFQ7: 481 | BFR7: 482 | BFS7: 483 | BFT7: 484 | BFU7: 485 | BFV7: 486 | BFW7: 487 | BFX7: 488 | BFY7: 489 | BFZ7: 490 | BGA7: 491 | BGB7: 492 | BGC7: 493 | BGD7: 494 | BGE7: 495 | BGF7: 496 | BGG7: 497 | BGH7: 498 | BGI7: 499 | BGJ7: 500 | BGK7: 501 | BGL7: 502 | BGM7: 503 | BGN7: 504 | BGO7: 505 | BGP7: 506 | BGQ7: 507 | BGR7: 508 | BGS7: 509 | BGT7: 510 | BGU7: 511 | BGV7: 512 | BGW7: 513 | BGX7: =BGW7+1 -> 514 | BGY7: 515 | BGZ7: 516 | BHA7: 517 | BHB7: 518 | BHC7: 519 | BHD7: 520 | BHE7: 521 | BHF7: 522 | BHG7: 523 | BHH7: 524 | BHI7: 525 | BHJ7: 526 | BHK7: 527 | BHL7: 528 | BHM7: 529 | BHN7: 530 | BHO7: 531 | BHP7: 532 | BHQ7: 533 | BHR7: 534 | BHS7: 535 | BHT7: 536 | BHU7: 537 | BHV7: 538 | BHW7: 539 | BHX7: 540 | BHY7: 541 | BHZ7: 542 | BIA7: 543 | BIB7: 544 | BIC7: 545 | BID7: 546 | BIE7: 547 | BIF7: 548 | BIG7: 549 | BIH7: 550 | BII7: 551 | BIJ7: 552 | BIK7: 553 | BIL7: 554 | BIM7: 555 | BIN7: 556 | BIO7: 557 | BIP7: 558 | BIQ7: 559 | BIR7: 560 | BIS7: 561 | BIT7: 562 | BIU7: 563 | BIV7: 564 | BIW7: 565 | BIX7: 566 | BIY7: 567 | BIZ7: 568 | BJA7: 569 | BJB7: 570 | BJC7: 571 | BJD7: 572 | BJE7: 573 | BJF7: 574 | BJG7: 575 | BJH7: 576 | BJI7: 577 | BJJ7: =BJI7+1 -> 578 | BJK7: 579 | BJL7: 580 | BJM7: 581 | BJN7: 582 | BJO7: 583 | BJP7: 584 | BJQ7: 585 | BJR7: 586 | BJS7: 587 | BJT7: 588 | BJU7: 589 | BJV7: 590 | BJW7: 591 | BJX7: 592 | BJY7: 593 | BJZ7: 594 | BKA7: 595 | BKB7: 596 | BKC7: 597 | BKD7: 598 | BKE7: 599 | BKF7: 600 | BKG7: 601 | BKH7: 602 | BKI7: 603 | BKJ7: 604 | BKK7: 605 | BKL7: 606 | BKM7: 607 | BKN7: 608 | BKO7: 609 | BKP7: 610 | BKQ7: 611 | BKR7: 612 | BKS7: 613 | BKT7: 614 | BKU7: 615 | BKV7: 616 | BKW7: 617 | BKX7: 618 | BKY7: 619 | BKZ7: 620 | BLA7: 621 | BLB7: 622 | BLC7: 623 | BLD7: 624 | BLE7: 625 | BLF7: 626 | BLG7: 627 | BLH7: 628 | BLI7: 629 | BLJ7: 630 | BLK7: 631 | BLL7: 632 | BLM7: 633 | BLN7: 634 | BLO7: 635 | BLP7: 636 | BLQ7: 637 | BLR7: 638 | BLS7: 639 | BLT7: 640 | BLU7: 641 | BLV7: =BLU7+1 -> 642 | BLW7: 643 | BLX7: 644 | BLY7: 645 | BLZ7: 646 | BMA7: 647 | BMB7: 648 | BMC7: 649 | BMD7: 650 | BME7: 651 | BMF7: 652 | BMG7: 653 | BMH7: 654 | BMI7: 655 | BMJ7: 656 | BMK7: 657 | BML7: 658 | BMM7: 659 | BMN7: 660 | BMO7: 661 | BMP7: 662 | BMQ7: 663 | BMR7: 664 | BMS7: 665 | BMT7: 666 | BMU7: 667 | BMV7: 668 | BMW7: 669 | BMX7: 670 | BMY7: 671 | BMZ7: 672 | BNA7: 673 | BNB7: 674 | BNC7: 675 | BND7: 676 | BNE7: 677 | BNF7: 678 | BNG7: 679 | BNH7: 680 | BNI7: 681 | BNJ7: 682 | BNK7: 683 | BNL7: 684 | BNM7: 685 | BNN7: 686 | BNO7: 687 | BNP7: 688 | BNQ7: 689 | BNR7: 690 | BNS7: 691 | BNT7: 692 | BNU7: 693 | BNV7: 694 | BNW7: 695 | BNX7: 696 | BNY7: 697 | BNZ7: 698 | BOA7: 699 | BOB7: 700 | BOC7: 701 | BOD7: 702 | BOE7: 703 | BOF7: 704 | BOG7: 705 | BOH7: =BOG7+1 -> 706 | BOI7: 707 | BOJ7: 708 | BOK7: 709 | BOL7: 710 | BOM7: 711 | BON7: 712 | BOO7: 713 | BOP7: 714 | BOQ7: 715 | BOR7: 716 | BOS7: 717 | BOT7: 718 | BOU7: 719 | BOV7: 720 | BOW7: 721 | BOX7: 722 | BOY7: 723 | BOZ7: 724 | BPA7: 725 | BPB7: 726 | BPC7: 727 | BPD7: 728 | BPE7: 729 | BPF7: 730 | BPG7: 731 | BPH7: 732 | BPI7: 733 | BPJ7: 734 | BPK7: 735 | BPL7: 736 | BPM7: 737 | BPN7: 738 | BPO7: 739 | BPP7: 740 | BPQ7: 741 | BPR7: 742 | BPS7: 743 | BPT7: 744 | BPU7: 745 | BPV7: 746 | BPW7: 747 | BPX7: 748 | BPY7: 749 | BPZ7: 750 | BQA7: 751 | BQB7: 752 | BQC7: 753 | BQD7: 754 | BQE7: 755 | BQF7: 756 | BQG7: 757 | BQH7: 758 | BQI7: 759 | BQJ7: 760 | BQK7: 761 | BQL7: 762 | BQM7: 763 | BQN7: 764 | BQO7: 765 | BQP7: 766 | BQQ7: 767 | BQR7: 768 | BQS7: 769 | BQT7: =BQS7+1 -> 770 | BQU7: 771 | BQV7: 772 | BQW7: 773 | BQX7: 774 | BQY7: 775 | BQZ7: 776 | BRA7: 777 | BRB7: 778 | BRC7: 779 | BRD7: 780 | BRE7: 781 | BRF7: 782 | BRG7: 783 | BRH7: 784 | BRI7: 785 | BRJ7: 786 | BRK7: 787 | BRL7: 788 | BRM7: 789 | BRN7: 790 | BRO7: 791 | BRP7: 792 | BRQ7: 793 | BRR7: 794 | BRS7: 795 | BRT7: 796 | BRU7: 797 | BRV7: 798 | BRW7: 799 | BRX7: 800 | BRY7: 801 | BRZ7: 802 | BSA7: 803 | BSB7: 804 | BSC7: 805 | BSD7: 806 | BSE7: 807 | BSF7: 808 | BSG7: 809 | BSH7: 810 | BSI7: 811 | BSJ7: 812 | BSK7: 813 | BSL7: 814 | BSM7: 815 | BSN7: 816 | BSO7: 817 | BSP7: 818 | BSQ7: 819 | BSR7: 820 | BSS7: 821 | BST7: 822 | BSU7: 823 | BSV7: 824 | BSW7: 825 | BSX7: 826 | BSY7: 827 | BSZ7: 828 | BTA7: 829 | BTB7: 830 | BTC7: 831 | BTD7: 832 | BTE7: 833 | BTF7: =BTE7+1 -> 834 | BTG7: 835 | BTH7: 836 | BTI7: 837 | BTJ7: 838 | BTK7: 839 | BTL7: 840 | BTM7: 841 | BTN7: 842 | BTO7: 843 | BTP7: 844 | BTQ7: 845 | BTR7: 846 | BTS7: 847 | BTT7: 848 | BTU7: 849 | BTV7: 850 | BTW7: 851 | BTX7: 852 | BTY7: 853 | BTZ7: 854 | BUA7: 855 | BUB7: 856 | BUC7: 857 | BUD7: 858 | BUE7: 859 | BUF7: 860 | BUG7: 861 | BUH7: 862 | BUI7: 863 | BUJ7: 864 | BUK7: 865 | BUL7: 866 | BUM7: 867 | BUN7: 868 | BUO7: 869 | BUP7: 870 | BUQ7: 871 | BUR7: 872 | BUS7: 873 | BUT7: 874 | BUU7: 875 | BUV7: 876 | BUW7: 877 | BUX7: 878 | BUY7: 879 | BUZ7: 880 | BVA7: 881 | BVB7: 882 | BVC7: 883 | BVD7: 884 | BVE7: 885 | BVF7: 886 | BVG7: 887 | BVH7: 888 | BVI7: 889 | BVJ7: 890 | BVK7: 891 | BVL7: 892 | BVM7: 893 | BVN7: 894 | BVO7: 895 | BVP7: 896 | BVQ7: 897 | BVR7: =BVQ7+1 -> 898 | BVS7: 899 | BVT7: 900 | BVU7: 901 | BVV7: 902 | BVW7: 903 | BVX7: 904 | BVY7: 905 | BVZ7: 906 | BWA7: 907 | BWB7: 908 | BWC7: 909 | BWD7: 910 | BWE7: 911 | BWF7: 912 | BWG7: 913 | BWH7: 914 | BWI7: 915 | BWJ7: 916 | BWK7: 917 | BWL7: 918 | BWM7: 919 | BWN7: 920 | BWO7: 921 | BWP7: 922 | BWQ7: 923 | BWR7: 924 | BWS7: 925 | BWT7: 926 | BWU7: 927 | BWV7: 928 | BWW7: 929 | BWX7: 930 | BWY7: 931 | BWZ7: 932 | BXA7: 933 | BXB7: 934 | BXC7: 935 | BXD7: 936 | BXE7: 937 | BXF7: 938 | BXG7: 939 | BXH7: 940 | BXI7: 941 | BXJ7: 942 | BXK7: 943 | BXL7: 944 | BXM7: 945 | BXN7: 946 | BXO7: 947 | BXP7: 948 | BXQ7: 949 | BXR7: 950 | BXS7: 951 | BXT7: 952 | BXU7: 953 | BXV7: 954 | BXW7: 955 | BXX7: 956 | BXY7: 957 | BXZ7: 958 | BYA7: 959 | BYB7: 960 | BYC7: 961 | BYD7: =BYC7+1 -> 962 | BYE7: 963 | BYF7: 964 | BYG7: 965 | BYH7: 966 | BYI7: 967 | BYJ7: 968 | BYK7: 969 | BYL7: 970 | BYM7: 971 | BYN7: 972 | BYO7: 973 | BYP7: 974 | BYQ7: 975 | BYR7: 976 | BYS7: 977 | BYT7: 978 | BYU7: 979 | BYV7: 980 | BYW7: 981 | BYX7: 982 | BYY7: 983 | BYZ7: 984 | BZA7: 985 | BZB7: 986 | BZC7: 987 | BZD7: 988 | BZE7: 989 | BZF7: 990 | BZG7: 991 | BZH7: 992 | BZI7: 993 | BZJ7: 994 | BZK7: 995 | BZL7: 996 | BZM7: 997 | BZN7: 998 | BZO7: 999 | BZP7: 1000 | BZS7: γ0 or B0 | BZT7: γ1 or B1 | BZU7: γ2 or B2 | BZV7: γ3 or B3
B8: =IF(ISNUMBER('2. Enter Raw Data'!B11),'2. Enter Raw Data'!B11,".") -> 4.83 | C8: =IF(ISNUMBER('2. Enter Raw Data'!C11),'2. Enter Raw Data'!C11,".") -> 1 | D8: =IF(ISNUMBER('2. Enter Raw Data'!D11),'2. Enter Raw Data'!D11,".") -> 4.87 | E8: =IF(ISNUMBER(B8*C8*D8),1,0) -> 1 | H8: =IF(ISNUMBER(B8),1,".") -> 1 | I8: =IF(E8=1,C8,".") -> 1 | J8: =IF(E8=1,(D8),".") -> 4.87 | K8: =IF(ISNUMBER((I8)*(J8)),(I8)*(J8),".") -> 4.87 | M8: =MINVERSE(MMULT(TRANSPOSE(INDIRECT(K4)+0),INDIRECT(K4)+0)) -> 1.116769929 | N8: -1.116769929 | O8: -0.2154180515 | P8: 0.2154180515 | R8: γ0 or B0 | S8: =MMULT(M8:P11,MMULT(TRANSPOSE(INDIRECT(K4)+0),INDIRECT(E4)+0)) -> 7.706233282 | W8: =MMULT(INDIRECT(K4)+0,S8:S11) -> 5.691951349 | X8: =B8-W8 -> -0.8619513486 | AA8: Sum of Squares (Residual) | AB8: SSRes | AC8: =DEVSQ(INDIRECT(Y4)) -> 122.2113016 | AE8: γ0 or B0 | AF8: =M8*$AC$10 -> 1.091855253 | AG8: -1.091855253 | AH8: -0.2106121637 | AI8: 0.2106121637 | AK8: =MMULT(INDIRECT(K4),MMULT(MINVERSE(MMULT(TRANSPOSE(INDIRECT(K4)),INDIRECT(K4))),TRANSPOSE(INDIRECT(K4)))) -> 0.01267445189 | AL8: -8.326672685e-17 | AM8: 0.01203957765 | AN8: 0.009597753638 | AO8: 0.009011715876 | AP8: 0.008376841634 | AQ8: 0.01145353988 | AR8: -5.551115123e-17 | AS8: 8.326672685e-17 | AT8: 2.775557562e-17 | AU8: 0.01326048965 | AV8: 0.006569891868 | AW8: 0 | AX8: 0.007790803872 | AY8: 0.01267445189 | AZ8: 2.775557562e-17 | BA8: 0.01448140165 | BB8: 0.009597753638 | BC8: 0.01570231366 | BD8: 0.01570231366 | BE8: 0.01081866564 | BF8: 0.01203957765 | BG8: 0.008376841634 | BH8: 0.02244174792 | BI8: 0.009597753638 | BJ8: -1.249000903e-16 | BK8: 0.01389536389 | BL8: 0.0151162759 | BM8: -8.326672685e-17 | BN8: 0.009011715876 | BO8: 0.01145353988 | BP8: 0.0151162759 | BQ8: 0 | BR8: 0.01389536389 | BS8: 0.01145353988 | BT8: 0.01448140165 | BU8: 0.01023262788 | BV8: 0.01326048965 | BW8: 0.01267445189 | BX8: -1.353084311e-16 | BY8: 0.01023262788 | BZ8: 0.01692322566 | CA8: -1.387778781e-16 | CB8: -8.326672685e-17 | CC8: -2.775557562e-16 | CD8: 0.01081866564 | CE8: -5.551115123e-17 | CF8: 0.01389536389 | CG8: 0.0151162759 | CH8: 0.006569891868 | CI8: 0.01877901191 | CJ8: 0.007155929629 | CK8: 0.002272281613 | CL8: 0.007790803872 | CM8: -1.249000903e-16 | CN8: -1.353084311e-16 | CO8: 0.01814413767 | CP8: 0.01081866564 | CQ8: 0.0175580999 | CR8: 0.009597753638 | CS8: 0.005348979863 | CT8: 0.01081866564 | CU8: 0.009597753638 | CV8: -8.326672685e-17 | CW8: 0.007790803872 | CX8: 0.01267445189 | CY8: 0.01267445189 | CZ8: 0.01936504967 | DA8: 0.0163371879 | DB8: -1.249000903e-16 | DC8: -8.326672685e-17 | DD8: 0.01145353988 | DE8: 0.01389536389 | DF8: -1.387778781e-16 | DG8: 0 | DH8: 0.01267445189 | DI8: 0.008376841634 | DJ8: -1.387778781e-16 | DK8: 0 | DL8: 0.0151162759 | DM8: 0.01448140165 | DN8: -8.326672685e-17 | DO8: 0.004714105621 | DP8: -5.551115123e-17 | DQ8: 0.01692322566 | DR8: 0.01570231366 | DS8: 0.01326048965 | DT8: 0.009597753638 | DU8: 0.01326048965 | DV8: -8.326672685e-17 | DW8: 0.007155929629 | DX8: 0.01448140165 | DY8: 0.008376841634 | DZ8: -8.326672685e-17 | EA8: 0.01389536389 | EB8: 0.009011715876 | EC8: 0.01203957765 | ED8: -5.551115123e-17 | EE8: -1.353084311e-16 | EF8: -1.387778781e-16 | EG8: 0.009597753638 | EH8: 0.004714105621 | EI8: 0.01570231366 | EJ8: 0.007155929629 | EK8: -8.326672685e-17 | EL8: 0 | EM8: 0.01326048965 | EN8: 0.007155929629 | EO8: 0.01448140165 | EP8: 0.005935017625 | EQ8: 0.004128067859 | ER8: 2.775557562e-17 | ES8: 2.775557562e-17 | ET8: 0.008376841634 | EU8: 0.01145353988 | EV8: 0.01023262788 | EW8: 0.005348979863 | EX8: -2.775557562e-16 | EY8: 0 | EZ8: 0.01203957765 | FA8: -8.326672685e-17 | FB8: -1.387778781e-16 | FC8: 0.002272281613 | FD8: 0.009597753638 | FE8: 0 | FF8: -8.326672685e-17 | FG8: -1.387778781e-16 | FH8: 0.01081866564 | FI8: 0.01023262788 | AMX8: 1 | AMY8: =IF(ISNUMBER(X8),X8^2,NA()) -> 0.7429601274 | ANA8: 1 | ANB8: =AMY8/(1-INDEX($AK$1010:$AMV$1010,ANA8))^2 -> 0.7621575515 | AND8: 1 | ANE8: =IF(ISNUMBER(AK8),IF(ANE$7=$AND8,INDEX($ANB$8:$ANB$1007,$AND8,1),0),NA()) -> 0.7621575515 | ANF8: =IF(ISNUMBER(AL8),IF(ANF$7=$AND8,INDEX($ANB$8:$ANB$1007,$AND8,1),0),NA()) -> 0 | ANG8: =IF(ISNUMBER(AM8),IF(ANG$7=$AND8,INDEX($ANB$8:$ANB$1007,$AND8,1),0),NA()) -> 0 | ANH8: =IF(ISNUMBER(AN8),IF(ANH$7=$AND8,INDEX($ANB$8:$ANB$1007,$AND8,1),0),NA()) -> 0 | ANI8: =IF(ISNUMBER(AO8),IF(ANI$7=$AND8,INDEX($ANB$8:$ANB$1007,$AND8,1),0),NA()) -> 0 | ANJ8: =IF(ISNUMBER(AP8),IF(ANJ$7=$AND8,INDEX($ANB$8:$ANB$1007,$AND8,1),0),NA()) -> 0 | ANK8: =IF(ISNUMBER(AQ8),IF(ANK$7=$AND8,INDEX($ANB$8:$ANB$1007,$AND8,1),0),NA()) -> 0 | ANL8: =IF(ISNUMBER(AR8),IF(ANL$7=$AND8,INDEX($ANB$8:$ANB$1007,$AND8,1),0),NA()) -> 0 | ANM8: =IF(ISNUMBER(AS8),IF(ANM$7=$AND8,INDEX($ANB$8:$ANB$1007,$AND8,1),0),NA()) -> 0 | ANN8: =IF(ISNUMBER(AT8),IF(ANN$7=$AND8,INDEX($ANB$8:$ANB$1007,$AND8,1),0),NA()) -> 0 | ANO8: =IF(ISNUMBER(AU8),IF(ANO$7=$AND8,INDEX($ANB$8:$ANB$1007,$AND8,1),0),NA()) -> 0 | ANP8: =IF(ISNUMBER(AV8),IF(ANP$7=$AND8,INDEX($ANB$8:$ANB$1007,$AND8,1),0),NA()) -> 0 | ANQ8: =IF(ISNUMBER(AW8),IF(ANQ$7=$AND8,INDEX($ANB$8:$ANB$1007,$AND8,1),0),NA()) -> 0 | ANR8: =IF(ISNUMBER(AX8),IF(ANR$7=$AND8,INDEX($ANB$8:$ANB$1007,$AND8,1),0),NA()) -> 0 | ANS8: =IF(ISNUMBER(AY8),IF(ANS$7=$AND8,INDEX($ANB$8:$ANB$1007,$AND8,1),0),NA()) -> 0 | ANT8: =IF(ISNUMBER(AZ8),IF(ANT$7=$AND8,INDEX($ANB$8:$ANB$1007,$AND8,1),0),NA()) -> 0 | ANU8: =IF(ISNUMBER(BA8),IF(ANU$7=$AND8,INDEX($ANB$8:$ANB$1007,$AND8,1),0),NA()) -> 0 | ANV8: =IF(ISNUMBER(BB8),IF(ANV$7=$AND8,INDEX($ANB$8:$ANB$1007,$AND8,1),0),NA()) -> 0 | ANW8: =IF(ISNUMBER(BC8),IF(ANW$7=$AND8,INDEX($ANB$8:$ANB$1007,$AND8,1),0),NA()) -> 0 | ANX8: =IF(ISNUMBER(BD8),IF(ANX$7=$AND8,INDEX($ANB$8:$ANB$1007,$AND8,1),0),NA()) -> 0 | ANY8: =IF(ISNUMBER(BE8),IF(ANY$7=$AND8,INDEX($ANB$8:$ANB$1007,$AND8,1),0),NA()) -> 0 | ANZ8: =IF(ISNUMBER(BF8),IF(ANZ$7=$AND8,INDEX($ANB$8:$ANB$1007,$AND8,1),0),NA()) -> 0 | AOA8: =IF(ISNUMBER(BG8),IF(AOA$7=$AND8,INDEX($ANB$8:$ANB$1007,$AND8,1),0),NA()) -> 0 | AOB8: =IF(ISNUMBER(BH8),IF(AOB$7=$AND8,INDEX($ANB$8:$ANB$1007,$AND8,1),0),NA()) -> 0 | AOC8: =IF(ISNUMBER(BI8),IF(AOC$7=$AND8,INDEX($ANB$8:$ANB$1007,$AND8,1),0),NA()) -> 0 | AOD8: =IF(ISNUMBER(BJ8),IF(AOD$7=$AND8,INDEX($ANB$8:$ANB$1007,$AND8,1),0),NA()) -> 0 | AOE8: =IF(ISNUMBER(BK8),IF(AOE$7=$AND8,INDEX($ANB$8:$ANB$1007,$AND8,1),0),NA()) -> 0 | AOF8: =IF(ISNUMBER(BL8),IF(AOF$7=$AND8,INDEX($ANB$8:$ANB$1007,$AND8,1),0),NA()) -> 0 | AOG8: =IF(ISNUMBER(BM8),IF(AOG$7=$AND8,INDEX($ANB$8:$ANB$1007,$AND8,1),0),NA()) -> 0 | AOH8: =IF(ISNUMBER(BN8),IF(AOH$7=$AND8,INDEX($ANB$8:$ANB$1007,$AND8,1),0),NA()) -> 0 | AOI8: =IF(ISNUMBER(BO8),IF(AOI$7=$AND8,INDEX($ANB$8:$ANB$1007,$AND8,1),0),NA()) -> 0 | AOJ8: =IF(ISNUMBER(BP8),IF(AOJ$7=$AND8,INDEX($ANB$8:$ANB$1007,$AND8,1),0),NA()) -> 0 | AOK8: =IF(ISNUMBER(BQ8),IF(AOK$7=$AND8,INDEX($ANB$8:$ANB$1007,$AND8,1),0),NA()) -> 0 | AOL8: =IF(ISNUMBER(BR8),IF(AOL$7=$AND8,INDEX($ANB$8:$ANB$1007,$AND8,1),0),NA()) -> 0 | AOM8: =IF(ISNUMBER(BS8),IF(AOM$7=$AND8,INDEX($ANB$8:$ANB$1007,$AND8,1),0),NA()) -> 0 | AON8: =IF(ISNUMBER(BT8),IF(AON$7=$AND8,INDEX($ANB$8:$ANB$1007,$AND8,1),0),NA()) -> 0 | AOO8: =IF(ISNUMBER(BU8),IF(AOO$7=$AND8,INDEX($ANB$8:$ANB$1007,$AND8,1),0),NA()) -> 0 | AOP8: =IF(ISNUMBER(BV8),IF(AOP$7=$AND8,INDEX($ANB$8:$ANB$1007,$AND8,1),0),NA()) -> 0 | AOQ8: =IF(ISNUMBER(BW8),IF(AOQ$7=$AND8,INDEX($ANB$8:$ANB$1007,$AND8,1),0),NA()) -> 0 | AOR8: =IF(ISNUMBER(BX8),IF(AOR$7=$AND8,INDEX($ANB$8:$ANB$1007,$AND8,1),0),NA()) -> 0 | AOS8: =IF(ISNUMBER(BY8),IF(AOS$7=$AND8,INDEX($ANB$8:$ANB$1007,$AND8,1),0),NA()) -> 0 | AOT8: =IF(ISNUMBER(BZ8),IF(AOT$7=$AND8,INDEX($ANB$8:$ANB$1007,$AND8,1),0),NA()) -> 0 | AOU8: =IF(ISNUMBER(CA8),IF(AOU$7=$AND8,INDEX($ANB$8:$ANB$1007,$AND8,1),0),NA()) -> 0 | AOV8: =IF(ISNUMBER(CB8),IF(AOV$7=$AND8,INDEX($ANB$8:$ANB$1007,$AND8,1),0),NA()) -> 0 | AOW8: =IF(ISNUMBER(CC8),IF(AOW$7=$AND8,INDEX($ANB$8:$ANB$1007,$AND8,1),0),NA()) -> 0 | AOX8: =IF(ISNUMBER(CD8),IF(AOX$7=$AND8,INDEX($ANB$8:$ANB$1007,$AND8,1),0),NA()) -> 0 | AOY8: =IF(ISNUMBER(CE8),IF(AOY$7=$AND8,INDEX($ANB$8:$ANB$1007,$AND8,1),0),NA()) -> 0 | AOZ8: =IF(ISNUMBER(CF8),IF(AOZ$7=$AND8,INDEX($ANB$8:$ANB$1007,$AND8,1),0),NA()) -> 0 | APA8: =IF(ISNUMBER(CG8),IF(APA$7=$AND8,INDEX($ANB$8:$ANB$1007,$AND8,1),0),NA()) -> 0 | APB8: =IF(ISNUMBER(CH8),IF(APB$7=$AND8,INDEX($ANB$8:$ANB$1007,$AND8,1),0),NA()) -> 0 | APC8: =IF(ISNUMBER(CI8),IF(APC$7=$AND8,INDEX($ANB$8:$ANB$1007,$AND8,1),0),NA()) -> 0 | APD8: =IF(ISNUMBER(CJ8),IF(APD$7=$AND8,INDEX($ANB$8:$ANB$1007,$AND8,1),0),NA()) -> 0 | APE8: =IF(ISNUMBER(CK8),IF(APE$7=$AND8,INDEX($ANB$8:$ANB$1007,$AND8,1),0),NA()) -> 0 | APF8: =IF(ISNUMBER(CL8),IF(APF$7=$AND8,INDEX($ANB$8:$ANB$1007,$AND8,1),0),NA()) -> 0 | APG8: =IF(ISNUMBER(CM8),IF(APG$7=$AND8,INDEX($ANB$8:$ANB$1007,$AND8,1),0),NA()) -> 0 | APH8: =IF(ISNUMBER(CN8),IF(APH$7=$AND8,INDEX($ANB$8:$ANB$1007,$AND8,1),0),NA()) -> 0 | API8: =IF(ISNUMBER(CO8),IF(API$7=$AND8,INDEX($ANB$8:$ANB$1007,$AND8,1),0),NA()) -> 0 | APJ8: =IF(ISNUMBER(CP8),IF(APJ$7=$AND8,INDEX($ANB$8:$ANB$1007,$AND8,1),0),NA()) -> 0 | APK8: =IF(ISNUMBER(CQ8),IF(APK$7=$AND8,INDEX($ANB$8:$ANB$1007,$AND8,1),0),NA()) -> 0 | APL8: =IF(ISNUMBER(CR8),IF(APL$7=$AND8,INDEX($ANB$8:$ANB$1007,$AND8,1),0),NA()) -> 0 | APM8: =IF(ISNUMBER(CS8),IF(APM$7=$AND8,INDEX($ANB$8:$ANB$1007,$AND8,1),0),NA()) -> 0 | APN8: =IF(ISNUMBER(CT8),IF(APN$7=$AND8,INDEX($ANB$8:$ANB$1007,$AND8,1),0),NA()) -> 0 | APO8: =IF(ISNUMBER(CU8),IF(APO$7=$AND8,INDEX($ANB$8:$ANB$1007,$AND8,1),0),NA()) -> 0 | APP8: =IF(ISNUMBER(CV8),IF(APP$7=$AND8,INDEX($ANB$8:$ANB$1007,$AND8,1),0),NA()) -> 0 | APQ8: =IF(ISNUMBER(CW8),IF(APQ$7=$AND8,INDEX($ANB$8:$ANB$1007,$AND8,1),0),NA()) -> 0 | APR8: =IF(ISNUMBER(CX8),IF(APR$7=$AND8,INDEX($ANB$8:$ANB$1007,$AND8,1),0),NA()) -> 0 | APS8: =IF(ISNUMBER(CY8),IF(APS$7=$AND8,INDEX($ANB$8:$ANB$1007,$AND8,1),0),NA()) -> 0 | APT8: =IF(ISNUMBER(CZ8),IF(APT$7=$AND8,INDEX($ANB$8:$ANB$1007,$AND8,1),0),NA()) -> 0 | APU8: =IF(ISNUMBER(DA8),IF(APU$7=$AND8,INDEX($ANB$8:$ANB$1007,$AND8,1),0),NA()) -> 0 | APV8: =IF(ISNUMBER(DB8),IF(APV$7=$AND8,INDEX($ANB$8:$ANB$1007,$AND8,1),0),NA()) -> 0 | APW8: =IF(ISNUMBER(DC8),IF(APW$7=$AND8,INDEX($ANB$8:$ANB$1007,$AND8,1),0),NA()) -> 0 | APX8: =IF(ISNUMBER(DD8),IF(APX$7=$AND8,INDEX($ANB$8:$ANB$1007,$AND8,1),0),NA()) -> 0 | APY8: =IF(ISNUMBER(DE8),IF(APY$7=$AND8,INDEX($ANB$8:$ANB$1007,$AND8,1),0),NA()) -> 0 | APZ8: =IF(ISNUMBER(DF8),IF(APZ$7=$AND8,INDEX($ANB$8:$ANB$1007,$AND8,1),0),NA()) -> 0 | AQA8: =IF(ISNUMBER(DG8),IF(AQA$7=$AND8,INDEX($ANB$8:$ANB$1007,$AND8,1),0),NA()) -> 0 | AQB8: =IF(ISNUMBER(DH8),IF(AQB$7=$AND8,INDEX($ANB$8:$ANB$1007,$AND8,1),0),NA()) -> 0 | AQC8: =IF(ISNUMBER(DI8),IF(AQC$7=$AND8,INDEX($ANB$8:$ANB$1007,$AND8,1),0),NA()) -> 0 | AQD8: =IF(ISNUMBER(DJ8),IF(AQD$7=$AND8,INDEX($ANB$8:$ANB$1007,$AND8,1),0),NA()) -> 0 | AQE8: =IF(ISNUMBER(DK8),IF(AQE$7=$AND8,INDEX($ANB$8:$ANB$1007,$AND8,1),0),NA()) -> 0 | AQF8: =IF(ISNUMBER(DL8),IF(AQF$7=$AND8,INDEX($ANB$8:$ANB$1007,$AND8,1),0),NA()) -> 0 | AQG8: =IF(ISNUMBER(DM8),IF(AQG$7=$AND8,INDEX($ANB$8:$ANB$1007,$AND8,1),0),NA()) -> 0 | AQH8: =IF(ISNUMBER(DN8),IF(AQH$7=$AND8,INDEX($ANB$8:$ANB$1007,$AND8,1),0),NA()) -> 0 | AQI8: =IF(ISNUMBER(DO8),IF(AQI$7=$AND8,INDEX($ANB$8:$ANB$1007,$AND8,1),0),NA()) -> 0 | AQJ8: =IF(ISNUMBER(DP8),IF(AQJ$7=$AND8,INDEX($ANB$8:$ANB$1007,$AND8,1),0),NA()) -> 0 | AQK8: =IF(ISNUMBER(DQ8),IF(AQK$7=$AND8,INDEX($ANB$8:$ANB$1007,$AND8,1),0),NA()) -> 0 | AQL8: =IF(ISNUMBER(DR8),IF(AQL$7=$AND8,INDEX($ANB$8:$ANB$1007,$AND8,1),0),NA()) -> 0 | AQM8: =IF(ISNUMBER(DS8),IF(AQM$7=$AND8,INDEX($ANB$8:$ANB$1007,$AND8,1),0),NA()) -> 0 | AQN8: =IF(ISNUMBER(DT8),IF(AQN$7=$AND8,INDEX($ANB$8:$ANB$1007,$AND8,1),0),NA()) -> 0 | AQO8: =IF(ISNUMBER(DU8),IF(AQO$7=$AND8,INDEX($ANB$8:$ANB$1007,$AND8,1),0),NA()) -> 0 | AQP8: =IF(ISNUMBER(DV8),IF(AQP$7=$AND8,INDEX($ANB$8:$ANB$1007,$AND8,1),0),NA()) -> 0 | AQQ8: =IF(ISNUMBER(DW8),IF(AQQ$7=$AND8,INDEX($ANB$8:$ANB$1007,$AND8,1),0),NA()) -> 0 | AQR8: =IF(ISNUMBER(DX8),IF(AQR$7=$AND8,INDEX($ANB$8:$ANB$1007,$AND8,1),0),NA()) -> 0 | AQS8: =IF(ISNUMBER(DY8),IF(AQS$7=$AND8,INDEX($ANB$8:$ANB$1007,$AND8,1),0),NA()) -> 0 | AQT8: =IF(ISNUMBER(DZ8),IF(AQT$7=$AND8,INDEX($ANB$8:$ANB$1007,$AND8,1),0),NA()) -> 0 | AQU8: =IF(ISNUMBER(EA8),IF(AQU$7=$AND8,INDEX($ANB$8:$ANB$1007,$AND8,1),0),NA()) -> 0 | AQV8: =IF(ISNUMBER(EB8),IF(AQV$7=$AND8,INDEX($ANB$8:$ANB$1007,$AND8,1),0),NA()) -> 0 | AQW8: =IF(ISNUMBER(EC8),IF(AQW$7=$AND8,INDEX($ANB$8:$ANB$1007,$AND8,1),0),NA()) -> 0 | AQX8: =IF(ISNUMBER(ED8),IF(AQX$7=$AND8,INDEX($ANB$8:$ANB$1007,$AND8,1),0),NA()) -> 0 | AQY8: =IF(ISNUMBER(EE8),IF(AQY$7=$AND8,INDEX($ANB$8:$ANB$1007,$AND8,1),0),NA()) -> 0 | AQZ8: =IF(ISNUMBER(EF8),IF(AQZ$7=$AND8,INDEX($ANB$8:$ANB$1007,$AND8,1),0),NA()) -> 0 | ARA8: =IF(ISNUMBER(EG8),IF(ARA$7=$AND8,INDEX($ANB$8:$ANB$1007,$AND8,1),0),NA()) -> 0 | ARB8: =IF(ISNUMBER(EH8),IF(ARB$7=$AND8,INDEX($ANB$8:$ANB$1007,$AND8,1),0),NA()) -> 0 | ARC8: =IF(ISNUMBER(EI8),IF(ARC$7=$AND8,INDEX($ANB$8:$ANB$1007,$AND8,1),0),NA()) -> 0 | ARD8: =IF(ISNUMBER(EJ8),IF(ARD$7=$AND8,INDEX($ANB$8:$ANB$1007,$AND8,1),0),NA()) -> 0 | ARE8: =IF(ISNUMBER(EK8),IF(ARE$7=$AND8,INDEX($ANB$8:$ANB$1007,$AND8,1),0),NA()) -> 0 | ARF8: =IF(ISNUMBER(EL8),IF(ARF$7=$AND8,INDEX($ANB$8:$ANB$1007,$AND8,1),0),NA()) -> 0 | ARG8: =IF(ISNUMBER(EM8),IF(ARG$7=$AND8,INDEX($ANB$8:$ANB$1007,$AND8,1),0),NA()) -> 0 | ARH8: =IF(ISNUMBER(EN8),IF(ARH$7=$AND8,INDEX($ANB$8:$ANB$1007,$AND8,1),0),NA()) -> 0 | ARI8: =IF(ISNUMBER(EO8),IF(ARI$7=$AND8,INDEX($ANB$8:$ANB$1007,$AND8,1),0),NA()) -> 0 | ARJ8: =IF(ISNUMBER(EP8),IF(ARJ$7=$AND8,INDEX($ANB$8:$ANB$1007,$AND8,1),0),NA()) -> 0 | ARK8: =IF(ISNUMBER(EQ8),IF(ARK$7=$AND8,INDEX($ANB$8:$ANB$1007,$AND8,1),0),NA()) -> 0 | ARL8: =IF(ISNUMBER(ER8),IF(ARL$7=$AND8,INDEX($ANB$8:$ANB$1007,$AND8,1),0),NA()) -> 0 | ARM8: =IF(ISNUMBER(ES8),IF(ARM$7=$AND8,INDEX($ANB$8:$ANB$1007,$AND8,1),0),NA()) -> 0 | ARN8: =IF(ISNUMBER(ET8),IF(ARN$7=$AND8,INDEX($ANB$8:$ANB$1007,$AND8,1),0),NA()) -> 0 | ARO8: =IF(ISNUMBER(EU8),IF(ARO$7=$AND8,INDEX($ANB$8:$ANB$1007,$AND8,1),0),NA()) -> 0 | ARP8: =IF(ISNUMBER(EV8),IF(ARP$7=$AND8,INDEX($ANB$8:$ANB$1007,$AND8,1),0),NA()) -> 0 | ARQ8: =IF(ISNUMBER(EW8),IF(ARQ$7=$AND8,INDEX($ANB$8:$ANB$1007,$AND8,1),0),NA()) -> 0 | ARR8: =IF(ISNUMBER(EX8),IF(ARR$7=$AND8,INDEX($ANB$8:$ANB$1007,$AND8,1),0),NA()) -> 0 | ARS8: =IF(ISNUMBER(EY8),IF(ARS$7=$AND8,INDEX($ANB$8:$ANB$1007,$AND8,1),0),NA()) -> 0 | ART8: =IF(ISNUMBER(EZ8),IF(ART$7=$AND8,INDEX($ANB$8:$ANB$1007,$AND8,1),0),NA()) -> 0 | ARU8: =IF(ISNUMBER(FA8),IF(ARU$7=$AND8,INDEX($ANB$8:$ANB$1007,$AND8,1),0),NA()) -> 0 | ARV8: =IF(ISNUMBER(FB8),IF(ARV$7=$AND8,INDEX($ANB$8:$ANB$1007,$AND8,1),0),NA()) -> 0 | ARW8: =IF(ISNUMBER(FC8),IF(ARW$7=$AND8,INDEX($ANB$8:$ANB$1007,$AND8,1),0),NA()) -> 0 | ARX8: =IF(ISNUMBER(FD8),IF(ARX$7=$AND8,INDEX($ANB$8:$ANB$1007,$AND8,1),0),NA()) -> 0 | ARY8: =IF(ISNUMBER(FE8),IF(ARY$7=$AND8,INDEX($ANB$8:$ANB$1007,$AND8,1),0),NA()) -> 0 | ARZ8: =IF(ISNUMBER(FF8),IF(ARZ$7=$AND8,INDEX($ANB$8:$ANB$1007,$AND8,1),0),NA()) -> 0 | ASA8: =IF(ISNUMBER(FG8),IF(ASA$7=$AND8,INDEX($ANB$8:$ANB$1007,$AND8,1),0),NA()) -> 0 | ASB8: =IF(ISNUMBER(FH8),IF(ASB$7=$AND8,INDEX($ANB$8:$ANB$1007,$AND8,1),0),NA()) -> 0 | ASC8: =IF(ISNUMBER(FI8),IF(ASC$7=$AND8,INDEX($ANB$8:$ANB$1007,$AND8,1),0),NA()) -> 0 | ASD8: =IF(ISNUMBER(FJ8),IF(ASD$7=$AND8,INDEX($ANB$8:$ANB$1007,$AND8,1),0),NA()) ->  | ASE8: =IF(ISNUMBER(FK8),IF(ASE$7=$AND8,INDEX($ANB$8:$ANB$1007,$AND8,1),0),NA()) ->  | ASF8: =IF(ISNUMBER(FL8),IF(ASF$7=$AND8,INDEX($ANB$8:$ANB$1007,$AND8,1),0),NA()) ->  | ASG8: =IF(ISNUMBER(FM8),IF(ASG$7=$AND8,INDEX($ANB$8:$ANB$1007,$AND8,1),0),NA()) ->  | ASH8: =IF(ISNUMBER(FN8),IF(ASH$7=$AND8,INDEX($ANB$8:$ANB$1007,$AND8,1),0),NA()) ->  | ASI8: =IF(ISNUMBER(FO8),IF(ASI$7=$AND8,INDEX($ANB$8:$ANB$1007,$AND8,1),0),NA()) ->  | ASJ8: =IF(ISNUMBER(FP8),IF(ASJ$7=$AND8,INDEX($ANB$8:$ANB$1007,$AND8,1),0),NA()) ->  | ASK8: =IF(ISNUMBER(FQ8),IF(ASK$7=$AND8,INDEX($ANB$8:$ANB$1007,$AND8,1),0),NA()) ->  | ASL8: =IF(ISNUMBER(FR8),IF(ASL$7=$AND8,INDEX($ANB$8:$ANB$1007,$AND8,1),0),NA()) ->  | ASM8: =IF(ISNUMBER(FS8),IF(ASM$7=$AND8,INDEX($ANB$8:$ANB$1007,$AND8,1),0),NA()) ->  | ASN8: =IF(ISNUMBER(FT8),IF(ASN$7=$AND8,INDEX($ANB$8:$ANB$1007,$AND8,1),0),NA()) ->  | ASO8: =IF(ISNUMBER(FU8),IF(ASO$7=$AND8,INDEX($ANB$8:$ANB$1007,$AND8,1),0),NA()) ->  | ASP8: =IF(ISNUMBER(FV8),IF(ASP$7=$AND8,INDEX($ANB$8:$ANB$1007,$AND8,1),0),NA()) ->  | ASQ8: =IF(ISNUMBER(FW8),IF(ASQ$7=$AND8,INDEX($ANB$8:$ANB$1007,$AND8,1),0),NA()) ->  | ASR8: =IF(ISNUMBER(FX8),IF(ASR$7=$AND8,INDEX($ANB$8:$ANB$1007,$AND8,1),0),NA()) ->  | ASS8: =IF(ISNUMBER(FY8),IF(ASS$7=$AND8,INDEX($ANB$8:$ANB$1007,$AND8,1),0),NA()) ->  | AST8: =IF(ISNUMBER(FZ8),IF(AST$7=$AND8,INDEX($ANB$8:$ANB$1007,$AND8,1),0),NA()) ->  | ASU8: =IF(ISNUMBER(GA8),IF(ASU$7=$AND8,INDEX($ANB$8:$ANB$1007,$AND8,1),0),NA()) ->  | ASV8: =IF(ISNUMBER(GB8),IF(ASV$7=$AND8,INDEX($ANB$8:$ANB$1007,$AND8,1),0),NA()) ->  | ASW8: =IF(ISNUMBER(GC8),IF(ASW$7=$AND8,INDEX($ANB$8:$ANB$1007,$AND8,1),0),NA()) ->  | ASX8: =IF(ISNUMBER(GD8),IF(ASX$7=$AND8,INDEX($ANB$8:$ANB$1007,$AND8,1),0),NA()) ->  | ASY8: =IF(ISNUMBER(GE8),IF(ASY$7=$AND8,INDEX($ANB$8:$ANB$1007,$AND8,1),0),NA()) ->  | ASZ8: =IF(ISNUMBER(GF8),IF(ASZ$7=$AND8,INDEX($ANB$8:$ANB$1007,$AND8,1),0),NA()) ->  | ATA8: =IF(ISNUMBER(GG8),IF(ATA$7=$AND8,INDEX($ANB$8:$ANB$1007,$AND8,1),0),NA()) ->  | ATB8: =IF(ISNUMBER(GH8),IF(ATB$7=$AND8,INDEX($ANB$8:$ANB$1007,$AND8,1),0),NA()) ->  | ATC8: =IF(ISNUMBER(GI8),IF(ATC$7=$AND8,INDEX($ANB$8:$ANB$1007,$AND8,1),0),NA()) ->  | ATD8: =IF(ISNUMBER(GJ8),IF(ATD$7=$AND8,INDEX($ANB$8:$ANB$1007,$AND8,1),0),NA()) ->  | ATE8: =IF(ISNUMBER(GK8),IF(ATE$7=$AND8,INDEX($ANB$8:$ANB$1007,$AND8,1),0),NA()) ->  | ATF8: =IF(ISNUMBER(GL8),IF(ATF$7=$AND8,INDEX($ANB$8:$ANB$1007,$AND8,1),0),NA()) ->  | ATG8: =IF(ISNUMBER(GM8),IF(ATG$7=$AND8,INDEX($ANB$8:$ANB$1007,$AND8,1),0),NA()) ->  | ATH8: =IF(ISNUMBER(GN8),IF(ATH$7=$AND8,INDEX($ANB$8:$ANB$1007,$AND8,1),0),NA()) ->  | ATI8: =IF(ISNUMBER(GO8),IF(ATI$7=$AND8,INDEX($ANB$8:$ANB$1007,$AND8,1),0),NA()) ->  | ATJ8: =IF(ISNUMBER(GP8),IF(ATJ$7=$AND8,INDEX($ANB$8:$ANB$1007,$AND8,1),0),NA()) ->  | ATK8: =IF(ISNUMBER(GQ8),IF(ATK$7=$AND8,INDEX($ANB$8:$ANB$1007,$AND8,1),0),NA()) ->  | ATL8: =IF(ISNUMBER(GR8),IF(ATL$7=$AND8,INDEX($ANB$8:$ANB$1007,$AND8,1),0),NA()) ->  | ATM8: =IF(ISNUMBER(GS8),IF(ATM$7=$AND8,INDEX($ANB$8:$ANB$1007,$AND8,1),0),NA()) ->  | ATN8: =IF(ISNUMBER(GT8),IF(ATN$7=$AND8,INDEX($ANB$8:$ANB$1007,$AND8,1),0),NA()) ->  | ATO8: =IF(ISNUMBER(GU8),IF(ATO$7=$AND8,INDEX($ANB$8:$ANB$1007,$AND8,1),0),NA()) ->  | ATP8: =IF(ISNUMBER(GV8),IF(ATP$7=$AND8,INDEX($ANB$8:$ANB$1007,$AND8,1),0),NA()) ->  | ATQ8: =IF(ISNUMBER(GW8),IF(ATQ$7=$AND8,INDEX($ANB$8:$ANB$1007,$AND8,1),0),NA()) ->  | ATR8: =IF(ISNUMBER(GX8),IF(ATR$7=$AND8,INDEX($ANB$8:$ANB$1007,$AND8,1),0),NA()) ->  | ATS8: =IF(ISNUMBER(GY8),IF(ATS$7=$AND8,INDEX($ANB$8:$ANB$1007,$AND8,1),0),NA()) ->  | ATT8: =IF(ISNUMBER(GZ8),IF(ATT$7=$AND8,INDEX($ANB$8:$ANB$1007,$AND8,1),0),NA()) ->  | ATU8: =IF(ISNUMBER(HA8),IF(ATU$7=$AND8,INDEX($ANB$8:$ANB$1007,$AND8,1),0),NA()) ->  | ATV8: =IF(ISNUMBER(HB8),IF(ATV$7=$AND8,INDEX($ANB$8:$ANB$1007,$AND8,1),0),NA()) ->  | ATW8: =IF(ISNUMBER(HC8),IF(ATW$7=$AND8,INDEX($ANB$8:$ANB$1007,$AND8,1),0),NA()) ->  | ATX8: =IF(ISNUMBER(HD8),IF(ATX$7=$AND8,INDEX($ANB$8:$ANB$1007,$AND8,1),0),NA()) ->  | ATY8: =IF(ISNUMBER(HE8),IF(ATY$7=$AND8,INDEX($ANB$8:$ANB$1007,$AND8,1),0),NA()) ->  | ATZ8: =IF(ISNUMBER(HF8),IF(ATZ$7=$AND8,INDEX($ANB$8:$ANB$1007,$AND8,1),0),NA()) ->  | AUA8: =IF(ISNUMBER(HG8),IF(AUA$7=$AND8,INDEX($ANB$8:$ANB$1007,$AND8,1),0),NA()) ->  | AUB8: =IF(ISNUMBER(HH8),IF(AUB$7=$AND8,INDEX($ANB$8:$ANB$1007,$AND8,1),0),NA()) ->  | AUC8: =IF(ISNUMBER(HI8),IF(AUC$7=$AND8,INDEX($ANB$8:$ANB$1007,$AND8,1),0),NA()) ->  | AUD8: =IF(ISNUMBER(HJ8),IF(AUD$7=$AND8,INDEX($ANB$8:$ANB$1007,$AND8,1),0),NA()) ->  | AUE8: =IF(ISNUMBER(HK8),IF(AUE$7=$AND8,INDEX($ANB$8:$ANB$1007,$AND8,1),0),NA()) ->  | AUF8: =IF(ISNUMBER(HL8),IF(AUF$7=$AND8,INDEX($ANB$8:$ANB$1007,$AND8,1),0),NA()) ->  | AUG8: =IF(ISNUMBER(HM8),IF(AUG$7=$AND8,INDEX($ANB$8:$ANB$1007,$AND8,1),0),NA()) ->  | AUH8: =IF(ISNUMBER(HN8),IF(AUH$7=$AND8,INDEX($ANB$8:$ANB$1007,$AND8,1),0),NA()) ->  | AUI8: =IF(ISNUMBER(HO8),IF(AUI$7=$AND8,INDEX($ANB$8:$ANB$1007,$AND8,1),0),NA()) ->  | AUJ8: =IF(ISNUMBER(HP8),IF(AUJ$7=$AND8,INDEX($ANB$8:$ANB$1007,$AND8,1),0),NA()) ->  | AUK8: =IF(ISNUMBER(HQ8),IF(AUK$7=$AND8,INDEX($ANB$8:$ANB$1007,$AND8,1),0),NA()) ->  | AUL8: =IF(ISNUMBER(HR8),IF(AUL$7=$AND8,INDEX($ANB$8:$ANB$1007,$AND8,1),0),NA()) ->  | AUM8: =IF(ISNUMBER(HS8),IF(AUM$7=$AND8,INDEX($ANB$8:$ANB$1007,$AND8,1),0),NA()) ->  | AUN8: =IF(ISNUMBER(HT8),IF(AUN$7=$AND8,INDEX($ANB$8:$ANB$1007,$AND8,1),0),NA()) ->  | AUO8: =IF(ISNUMBER(HU8),IF(AUO$7=$AND8,INDEX($ANB$8:$ANB$1007,$AND8,1),0),NA()) ->  | AUP8: =IF(ISNUMBER(HV8),IF(AUP$7=$AND8,INDEX($ANB$8:$ANB$1007,$AND8,1),0),NA()) ->  | AUQ8: =IF(ISNUMBER(HW8),IF(AUQ$7=$AND8,INDEX($ANB$8:$ANB$1007,$AND8,1),0),NA()) ->  | AUR8: =IF(ISNUMBER(HX8),IF(AUR$7=$AND8,INDEX($ANB$8:$ANB$1007,$AND8,1),0),NA()) ->  | AUS8: =IF(ISNUMBER(HY8),IF(AUS$7=$AND8,INDEX($ANB$8:$ANB$1007,$AND8,1),0),NA()) ->  | AUT8: =IF(ISNUMBER(HZ8),IF(AUT$7=$AND8,INDEX($ANB$8:$ANB$1007,$AND8,1),0),NA()) ->  | AUU8: =IF(ISNUMBER(IA8),IF(AUU$7=$AND8,INDEX($ANB$8:$ANB$1007,$AND8,1),0),NA()) ->  | AUV8: =IF(ISNUMBER(IB8),IF(AUV$7=$AND8,INDEX($ANB$8:$ANB$1007,$AND8,1),0),NA()) ->  | AUW8: =IF(ISNUMBER(IC8),IF(AUW$7=$AND8,INDEX($ANB$8:$ANB$1007,$AND8,1),0),NA()) ->  | AUX8: =IF(ISNUMBER(ID8),IF(AUX$7=$AND8,INDEX($ANB$8:$ANB$1007,$AND8,1),0),NA()) ->  | AUY8: =IF(ISNUMBER(IE8),IF(AUY$7=$AND8,INDEX($ANB$8:$ANB$1007,$AND8,1),0),NA()) ->  | AUZ8: =IF(ISNUMBER(IF8),IF(AUZ$7=$AND8,INDEX($ANB$8:$ANB$1007,$AND8,1),0),NA()) ->  | AVA8: =IF(ISNUMBER(IG8),IF(AVA$7=$AND8,INDEX($ANB$8:$ANB$1007,$AND8,1),0),NA()) ->  | AVB8: =IF(ISNUMBER(IH8),IF(AVB$7=$AND8,INDEX($ANB$8:$ANB$1007,$AND8,1),0),NA()) ->  | AVC8: =IF(ISNUMBER(II8),IF(AVC$7=$AND8,INDEX($ANB$8:$ANB$1007,$AND8,1),0),NA()) ->  | AVD8: =IF(ISNUMBER(IJ8),IF(AVD$7=$AND8,INDEX($ANB$8:$ANB$1007,$AND8,1),0),NA()) ->  | AVE8: =IF(ISNUMBER(IK8),IF(AVE$7=$AND8,INDEX($ANB$8:$ANB$1007,$AND8,1),0),NA()) ->  | AVF8: =IF(ISNUMBER(IL8),IF(AVF$7=$AND8,INDEX($ANB$8:$ANB$1007,$AND8,1),0),NA()) ->  | AVG8: =IF(ISNUMBER(IM8),IF(AVG$7=$AND8,INDEX($ANB$8:$ANB$1007,$AND8,1),0),NA()) ->  | AVH8: =IF(ISNUMBER(IN8),IF(AVH$7=$AND8,INDEX($ANB$8:$ANB$1007,$AND8,1),0),NA()) ->  | AVI8: =IF(ISNUMBER(IO8),IF(AVI$7=$AND8,INDEX($ANB$8:$ANB$1007,$AND8,1),0),NA()) ->  | AVJ8: =IF(ISNUMBER(IP8),IF(AVJ$7=$AND8,INDEX($ANB$8:$ANB$1007,$AND8,1),0),NA()) ->  | AVK8: =IF(ISNUMBER(IQ8),IF(AVK$7=$AND8,INDEX($ANB$8:$ANB$1007,$AND8,1),0),NA()) ->  | AVL8: =IF(ISNUMBER(IR8),IF(AVL$7=$AND8,INDEX($ANB$8:$ANB$1007,$AND8,1),0),NA()) ->  | AVM8: =IF(ISNUMBER(IS8),IF(AVM$7=$AND8,INDEX($ANB$8:$ANB$1007,$AND8,1),0),NA()) ->  | AVN8: =IF(ISNUMBER(IT8),IF(AVN$7=$AND8,INDEX($ANB$8:$ANB$1007,$AND8,1),0),NA()) ->  | AVO8: =IF(ISNUMBER(IU8),IF(AVO$7=$AND8,INDEX($ANB$8:$ANB$1007,$AND8,1),0),NA()) ->  | AVP8: =IF(ISNUMBER(IV8),IF(AVP$7=$AND8,INDEX($ANB$8:$ANB$1007,$AND8,1),0),NA()) ->  | AVQ8: =IF(ISNUMBER(IW8),IF(AVQ$7=$AND8,INDEX($ANB$8:$ANB$1007,$AND8,1),0),NA()) ->  | AVR8: =IF(ISNUMBER(IX8),IF(AVR$7=$AND8,INDEX($ANB$8:$ANB$1007,$AND8,1),0),NA()) ->  | AVS8: =IF(ISNUMBER(IY8),IF(AVS$7=$AND8,INDEX($ANB$8:$ANB$1007,$AND8,1),0),NA()) ->  | AVT8: =IF(ISNUMBER(IZ8),IF(AVT$7=$AND8,INDEX($ANB$8:$ANB$1007,$AND8,1),0),NA()) ->  | AVU8: =IF(ISNUMBER(JA8),IF(AVU$7=$AND8,INDEX($ANB$8:$ANB$1007,$AND8,1),0),NA()) ->  | AVV8: =IF(ISNUMBER(JB8),IF(AVV$7=$AND8,INDEX($ANB$8:$ANB$1007,$AND8,1),0),NA()) ->  | AVW8: =IF(ISNUMBER(JC8),IF(AVW$7=$AND8,INDEX($ANB$8:$ANB$1007,$AND8,1),0),NA()) ->  | AVX8: =IF(ISNUMBER(JD8),IF(AVX$7=$AND8,INDEX($ANB$8:$ANB$1007,$AND8,1),0),NA()) ->  | AVY8: =IF(ISNUMBER(JE8),IF(AVY$7=$AND8,INDEX($ANB$8:$ANB$1007,$AND8,1),0),NA()) ->  | AVZ8: =IF(ISNUMBER(JF8),IF(AVZ$7=$AND8,INDEX($ANB$8:$ANB$1007,$AND8,1),0),NA()) ->  | AWA8: =IF(ISNUMBER(JG8),IF(AWA$7=$AND8,INDEX($ANB$8:$ANB$1007,$AND8,1),0),NA()) ->  | AWB8: =IF(ISNUMBER(JH8),IF(AWB$7=$AND8,INDEX($ANB$8:$ANB$1007,$AND8,1),0),NA()) ->  | AWC8: =IF(ISNUMBER(JI8),IF(AWC$7=$AND8,INDEX($ANB$8:$ANB$1007,$AND8,1),0),NA()) ->  | AWD8: =IF(ISNUMBER(JJ8),IF(AWD$7=$AND8,INDEX($ANB$8:$ANB$1007,$AND8,1),0),NA()) ->  | AWE8: =IF(ISNUMBER(JK8),IF(AWE$7=$AND8,INDEX($ANB$8:$ANB$1007,$AND8,1),0),NA()) ->  | AWF8: =IF(ISNUMBER(JL8),IF(AWF$7=$AND8,INDEX($ANB$8:$ANB$1007,$AND8,1),0),NA()) ->  | AWG8: =IF(ISNUMBER(JM8),IF(AWG$7=$AND8,INDEX($ANB$8:$ANB$1007,$AND8,1),0),NA()) ->  | AWH8: =IF(ISNUMBER(JN8),IF(AWH$7=$AND8,INDEX($ANB$8:$ANB$1007,$AND8,1),0),NA()) ->  | AWI8: =IF(ISNUMBER(JO8),IF(AWI$7=$AND8,INDEX($ANB$8:$ANB$1007,$AND8,1),0),NA()) ->  | AWJ8: =IF(ISNUMBER(JP8),IF(AWJ$7=$AND8,INDEX($ANB$8:$ANB$1007,$AND8,1),0),NA()) ->  | AWK8: =IF(ISNUMBER(JQ8),IF(AWK$7=$AND8,INDEX($ANB$8:$ANB$1007,$AND8,1),0),NA()) ->  | AWL8: =IF(ISNUMBER(JR8),IF(AWL$7=$AND8,INDEX($ANB$8:$ANB$1007,$AND8,1),0),NA()) ->  | AWM8: =IF(ISNUMBER(JS8),IF(AWM$7=$AND8,INDEX($ANB$8:$ANB$1007,$AND8,1),0),NA()) ->  | AWN8: =IF(ISNUMBER(JT8),IF(AWN$7=$AND8,INDEX($ANB$8:$ANB$1007,$AND8,1),0),NA()) ->  | AWO8: =IF(ISNUMBER(JU8),IF(AWO$7=$AND8,INDEX($ANB$8:$ANB$1007,$AND8,1),0),NA()) ->  | AWP8: =IF(ISNUMBER(JV8),IF(AWP$7=$AND8,INDEX($ANB$8:$ANB$1007,$AND8,1),0),NA()) ->  | AWQ8: =IF(ISNUMBER(JW8),IF(AWQ$7=$AND8,INDEX($ANB$8:$ANB$1007,$AND8,1),0),NA()) ->  | AWR8: =IF(ISNUMBER(JX8),IF(AWR$7=$AND8,INDEX($ANB$8:$ANB$1007,$AND8,1),0),NA()) ->  | AWS8: =IF(ISNUMBER(JY8),IF(AWS$7=$AND8,INDEX($ANB$8:$ANB$1007,$AND8,1),0),NA()) ->  | AWT8: =IF(ISNUMBER(JZ8),IF(AWT$7=$AND8,INDEX($ANB$8:$ANB$1007,$AND8,1),0),NA()) ->  | AWU8: =IF(ISNUMBER(KA8),IF(AWU$7=$AND8,INDEX($ANB$8:$ANB$1007,$AND8,1),0),NA()) ->  | AWV8: =IF(ISNUMBER(KB8),IF(AWV$7=$AND8,INDEX($ANB$8:$ANB$1007,$AND8,1),0),NA()) ->  | AWW8: =IF(ISNUMBER(KC8),IF(AWW$7=$AND8,INDEX($ANB$8:$ANB$1007,$AND8,1),0),NA()) ->  | AWX8: =IF(ISNUMBER(KD8),IF(AWX$7=$AND8,INDEX($ANB$8:$ANB$1007,$AND8,1),0),NA()) ->  | AWY8: =IF(ISNUMBER(KE8),IF(AWY$7=$AND8,INDEX($ANB$8:$ANB$1007,$AND8,1),0),NA()) ->  | AWZ8: =IF(ISNUMBER(KF8),IF(AWZ$7=$AND8,INDEX($ANB$8:$ANB$1007,$AND8,1),0),NA()) ->  | AXA8: =IF(ISNUMBER(KG8),IF(AXA$7=$AND8,INDEX($ANB$8:$ANB$1007,$AND8,1),0),NA()) ->  | AXB8: =IF(ISNUMBER(KH8),IF(AXB$7=$AND8,INDEX($ANB$8:$ANB$1007,$AND8,1),0),NA()) ->  | AXC8: =IF(ISNUMBER(KI8),IF(AXC$7=$AND8,INDEX($ANB$8:$ANB$1007,$AND8,1),0),NA()) ->  | AXD8: =IF(ISNUMBER(KJ8),IF(AXD$7=$AND8,INDEX($ANB$8:$ANB$1007,$AND8,1),0),NA()) ->  | AXE8: =IF(ISNUMBER(KK8),IF(AXE$7=$AND8,INDEX($ANB$8:$ANB$1007,$AND8,1),0),NA()) ->  | AXF8: =IF(ISNUMBER(KL8),IF(AXF$7=$AND8,INDEX($ANB$8:$ANB$1007,$AND8,1),0),NA()) ->  | AXG8: =IF(ISNUMBER(KM8),IF(AXG$7=$AND8,INDEX($ANB$8:$ANB$1007,$AND8,1),0),NA()) ->  | AXH8: =IF(ISNUMBER(KN8),IF(AXH$7=$AND8,INDEX($ANB$8:$ANB$1007,$AND8,1),0),NA()) ->  | AXI8: =IF(ISNUMBER(KO8),IF(AXI$7=$AND8,INDEX($ANB$8:$ANB$1007,$AND8,1),0),NA()) ->  | AXJ8: =IF(ISNUMBER(KP8),IF(AXJ$7=$AND8,INDEX($ANB$8:$ANB$1007,$AND8,1),0),NA()) ->  | AXK8: =IF(ISNUMBER(KQ8),IF(AXK$7=$AND8,INDEX($ANB$8:$ANB$1007,$AND8,1),0),NA()) ->  | AXL8: =IF(ISNUMBER(KR8),IF(AXL$7=$AND8,INDEX($ANB$8:$ANB$1007,$AND8,1),0),NA()) ->  | AXM8: =IF(ISNUMBER(KS8),IF(AXM$7=$AND8,INDEX($ANB$8:$ANB$1007,$AND8,1),0),NA()) ->  | AXN8: =IF(ISNUMBER(KT8),IF(AXN$7=$AND8,INDEX($ANB$8:$ANB$1007,$AND8,1),0),NA()) ->  | AXO8: =IF(ISNUMBER(KU8),IF(AXO$7=$AND8,INDEX($ANB$8:$ANB$1007,$AND8,1),0),NA()) ->  | AXP8: =IF(ISNUMBER(KV8),IF(AXP$7=$AND8,INDEX($ANB$8:$ANB$1007,$AND8,1),0),NA()) ->  | AXQ8: =IF(ISNUMBER(KW8),IF(AXQ$7=$AND8,INDEX($ANB$8:$ANB$1007,$AND8,1),0),NA()) ->  | AXR8: =IF(ISNUMBER(KX8),IF(AXR$7=$AND8,INDEX($ANB$8:$ANB$1007,$AND8,1),0),NA()) ->  | AXS8: =IF(ISNUMBER(KY8),IF(AXS$7=$AND8,INDEX($ANB$8:$ANB$1007,$AND8,1),0),NA()) ->  | AXT8: =IF(ISNUMBER(KZ8),IF(AXT$7=$AND8,INDEX($ANB$8:$ANB$1007,$AND8,1),0),NA()) ->  | AXU8: =IF(ISNUMBER(LA8),IF(AXU$7=$AND8,INDEX($ANB$8:$ANB$1007,$AND8,1),0),NA()) ->  | AXV8: =IF(ISNUMBER(LB8),IF(AXV$7=$AND8,INDEX($ANB$8:$ANB$1007,$AND8,1),0),NA()) ->  | AXW8: =IF(ISNUMBER(LC8),IF(AXW$7=$AND8,INDEX($ANB$8:$ANB$1007,$AND8,1),0),NA()) ->  | AXX8: =IF(ISNUMBER(LD8),IF(AXX$7=$AND8,INDEX($ANB$8:$ANB$1007,$AND8,1),0),NA()) ->  | AXY8: =IF(ISNUMBER(LE8),IF(AXY$7=$AND8,INDEX($ANB$8:$ANB$1007,$AND8,1),0),NA()) ->  | AXZ8: =IF(ISNUMBER(LF8),IF(AXZ$7=$AND8,INDEX($ANB$8:$ANB$1007,$AND8,1),0),NA()) ->  | AYA8: =IF(ISNUMBER(LG8),IF(AYA$7=$AND8,INDEX($ANB$8:$ANB$1007,$AND8,1),0),NA()) ->  | AYB8: =IF(ISNUMBER(LH8),IF(AYB$7=$AND8,INDEX($ANB$8:$ANB$1007,$AND8,1),0),NA()) ->  | AYC8: =IF(ISNUMBER(LI8),IF(AYC$7=$AND8,INDEX($ANB$8:$ANB$1007,$AND8,1),0),NA()) ->  | AYD8: =IF(ISNUMBER(LJ8),IF(AYD$7=$AND8,INDEX($ANB$8:$ANB$1007,$AND8,1),0),NA()) ->  | AYE8: =IF(ISNUMBER(LK8),IF(AYE$7=$AND8,INDEX($ANB$8:$ANB$1007,$AND8,1),0),NA()) ->  | AYF8: =IF(ISNUMBER(LL8),IF(AYF$7=$AND8,INDEX($ANB$8:$ANB$1007,$AND8,1),0),NA()) ->  | AYG8: =IF(ISNUMBER(LM8),IF(AYG$7=$AND8,INDEX($ANB$8:$ANB$1007,$AND8,1),0),NA()) ->  | AYH8: =IF(ISNUMBER(LN8),IF(AYH$7=$AND8,INDEX($ANB$8:$ANB$1007,$AND8,1),0),NA()) ->  | AYI8: =IF(ISNUMBER(LO8),IF(AYI$7=$AND8,INDEX($ANB$8:$ANB$1007,$AND8,1),0),NA()) ->  | AYJ8: =IF(ISNUMBER(LP8),IF(AYJ$7=$AND8,INDEX($ANB$8:$ANB$1007,$AND8,1),0),NA()) ->  | AYK8: =IF(ISNUMBER(LQ8),IF(AYK$7=$AND8,INDEX($ANB$8:$ANB$1007,$AND8,1),0),NA()) ->  | AYL8: =IF(ISNUMBER(LR8),IF(AYL$7=$AND8,INDEX($ANB$8:$ANB$1007,$AND8,1),0),NA()) ->  | AYM8: =IF(ISNUMBER(LS8),IF(AYM$7=$AND8,INDEX($ANB$8:$ANB$1007,$AND8,1),0),NA()) ->  | AYN8: =IF(ISNUMBER(LT8),IF(AYN$7=$AND8,INDEX($ANB$8:$ANB$1007,$AND8,1),0),NA()) ->  | AYO8: =IF(ISNUMBER(LU8),IF(AYO$7=$AND8,INDEX($ANB$8:$ANB$1007,$AND8,1),0),NA()) ->  | AYP8: =IF(ISNUMBER(LV8),IF(AYP$7=$AND8,INDEX($ANB$8:$ANB$1007,$AND8,1),0),NA()) ->  | AYQ8: =IF(ISNUMBER(LW8),IF(AYQ$7=$AND8,INDEX($ANB$8:$ANB$1007,$AND8,1),0),NA()) ->  | AYR8: =IF(ISNUMBER(LX8),IF(AYR$7=$AND8,INDEX($ANB$8:$ANB$1007,$AND8,1),0),NA()) ->  | AYS8: =IF(ISNUMBER(LY8),IF(AYS$7=$AND8,INDEX($ANB$8:$ANB$1007,$AND8,1),0),NA()) ->  | AYT8: =IF(ISNUMBER(LZ8),IF(AYT$7=$AND8,INDEX($ANB$8:$ANB$1007,$AND8,1),0),NA()) ->  | AYU8: =IF(ISNUMBER(MA8),IF(AYU$7=$AND8,INDEX($ANB$8:$ANB$1007,$AND8,1),0),NA()) ->  | AYV8: =IF(ISNUMBER(MB8),IF(AYV$7=$AND8,INDEX($ANB$8:$ANB$1007,$AND8,1),0),NA()) ->  | AYW8: =IF(ISNUMBER(MC8),IF(AYW$7=$AND8,INDEX($ANB$8:$ANB$1007,$AND8,1),0),NA()) ->  | AYX8: =IF(ISNUMBER(MD8),IF(AYX$7=$AND8,INDEX($ANB$8:$ANB$1007,$AND8,1),0),NA()) ->  | AYY8: =IF(ISNUMBER(ME8),IF(AYY$7=$AND8,INDEX($ANB$8:$ANB$1007,$AND8,1),0),NA()) ->  | AYZ8: =IF(ISNUMBER(MF8),IF(AYZ$7=$AND8,INDEX($ANB$8:$ANB$1007,$AND8,1),0),NA()) ->  | AZA8: =IF(ISNUMBER(MG8),IF(AZA$7=$AND8,INDEX($ANB$8:$ANB$1007,$AND8,1),0),NA()) ->  | AZB8: =IF(ISNUMBER(MH8),IF(AZB$7=$AND8,INDEX($ANB$8:$ANB$1007,$AND8,1),0),NA()) ->  | AZC8: =IF(ISNUMBER(MI8),IF(AZC$7=$AND8,INDEX($ANB$8:$ANB$1007,$AND8,1),0),NA()) ->  | AZD8: =IF(ISNUMBER(MJ8),IF(AZD$7=$AND8,INDEX($ANB$8:$ANB$1007,$AND8,1),0),NA()) ->  | AZE8: =IF(ISNUMBER(MK8),IF(AZE$7=$AND8,INDEX($ANB$8:$ANB$1007,$AND8,1),0),NA()) ->  | AZF8: =IF(ISNUMBER(ML8),IF(AZF$7=$AND8,INDEX($ANB$8:$ANB$1007,$AND8,1),0),NA()) ->  | AZG8: =IF(ISNUMBER(MM8),IF(AZG$7=$AND8,INDEX($ANB$8:$ANB$1007,$AND8,1),0),NA()) ->  | AZH8: =IF(ISNUMBER(MN8),IF(AZH$7=$AND8,INDEX($ANB$8:$ANB$1007,$AND8,1),0),NA()) ->  | AZI8: =IF(ISNUMBER(MO8),IF(AZI$7=$AND8,INDEX($ANB$8:$ANB$1007,$AND8,1),0),NA()) ->  | AZJ8: =IF(ISNUMBER(MP8),IF(AZJ$7=$AND8,INDEX($ANB$8:$ANB$1007,$AND8,1),0),NA()) ->  | AZK8: =IF(ISNUMBER(MQ8),IF(AZK$7=$AND8,INDEX($ANB$8:$ANB$1007,$AND8,1),0),NA()) ->  | AZL8: =IF(ISNUMBER(MR8),IF(AZL$7=$AND8,INDEX($ANB$8:$ANB$1007,$AND8,1),0),NA()) ->  | AZM8: =IF(ISNUMBER(MS8),IF(AZM$7=$AND8,INDEX($ANB$8:$ANB$1007,$AND8,1),0),NA()) ->  | AZN8: =IF(ISNUMBER(MT8),IF(AZN$7=$AND8,INDEX($ANB$8:$ANB$1007,$AND8,1),0),NA()) ->  | AZO8: =IF(ISNUMBER(MU8),IF(AZO$7=$AND8,INDEX($ANB$8:$ANB$1007,$AND8,1),0),NA()) ->  | AZP8: =IF(ISNUMBER(MV8),IF(AZP$7=$AND8,INDEX($ANB$8:$ANB$1007,$AND8,1),0),NA()) ->  | AZQ8: =IF(ISNUMBER(MW8),IF(AZQ$7=$AND8,INDEX($ANB$8:$ANB$1007,$AND8,1),0),NA()) ->  | AZR8: =IF(ISNUMBER(MX8),IF(AZR$7=$AND8,INDEX($ANB$8:$ANB$1007,$AND8,1),0),NA()) ->  | AZS8: =IF(ISNUMBER(MY8),IF(AZS$7=$AND8,INDEX($ANB$8:$ANB$1007,$AND8,1),0),NA()) ->  | AZT8: =IF(ISNUMBER(MZ8),IF(AZT$7=$AND8,INDEX($ANB$8:$ANB$1007,$AND8,1),0),NA()) ->  | AZU8: =IF(ISNUMBER(NA8),IF(AZU$7=$AND8,INDEX($ANB$8:$ANB$1007,$AND8,1),0),NA()) ->  | AZV8: =IF(ISNUMBER(NB8),IF(AZV$7=$AND8,INDEX($ANB$8:$ANB$1007,$AND8,1),0),NA()) ->  | AZW8: =IF(ISNUMBER(NC8),IF(AZW$7=$AND8,INDEX($ANB$8:$ANB$1007,$AND8,1),0),NA()) ->  | AZX8: =IF(ISNUMBER(ND8),IF(AZX$7=$AND8,INDEX($ANB$8:$ANB$1007,$AND8,1),0),NA()) ->  | AZY8: =IF(ISNUMBER(NE8),IF(AZY$7=$AND8,INDEX($ANB$8:$ANB$1007,$AND8,1),0),NA()) ->  | AZZ8: =IF(ISNUMBER(NF8),IF(AZZ$7=$AND8,INDEX($ANB$8:$ANB$1007,$AND8,1),0),NA()) ->  | BAA8: =IF(ISNUMBER(NG8),IF(BAA$7=$AND8,INDEX($ANB$8:$ANB$1007,$AND8,1),0),NA()) ->  | BAB8: =IF(ISNUMBER(NH8),IF(BAB$7=$AND8,INDEX($ANB$8:$ANB$1007,$AND8,1),0),NA()) ->  | BAC8: =IF(ISNUMBER(NI8),IF(BAC$7=$AND8,INDEX($ANB$8:$ANB$1007,$AND8,1),0),NA()) ->  | BAD8: =IF(ISNUMBER(NJ8),IF(BAD$7=$AND8,INDEX($ANB$8:$ANB$1007,$AND8,1),0),NA()) ->  | BAE8: =IF(ISNUMBER(NK8),IF(BAE$7=$AND8,INDEX($ANB$8:$ANB$1007,$AND8,1),0),NA()) ->  | BAF8: =IF(ISNUMBER(NL8),IF(BAF$7=$AND8,INDEX($ANB$8:$ANB$1007,$AND8,1),0),NA()) ->  | BAG8: =IF(ISNUMBER(NM8),IF(BAG$7=$AND8,INDEX($ANB$8:$ANB$1007,$AND8,1),0),NA()) ->  | BAH8: =IF(ISNUMBER(NN8),IF(BAH$7=$AND8,INDEX($ANB$8:$ANB$1007,$AND8,1),0),NA()) ->  | BAI8: =IF(ISNUMBER(NO8),IF(BAI$7=$AND8,INDEX($ANB$8:$ANB$1007,$AND8,1),0),NA()) ->  | BAJ8: =IF(ISNUMBER(NP8),IF(BAJ$7=$AND8,INDEX($ANB$8:$ANB$1007,$AND8,1),0),NA()) ->  | BAK8: =IF(ISNUMBER(NQ8),IF(BAK$7=$AND8,INDEX($ANB$8:$ANB$1007,$AND8,1),0),NA()) ->  | BAL8: =IF(ISNUMBER(NR8),IF(BAL$7=$AND8,INDEX($ANB$8:$ANB$1007,$AND8,1),0),NA()) ->  | BAM8: =IF(ISNUMBER(NS8),IF(BAM$7=$AND8,INDEX($ANB$8:$ANB$1007,$AND8,1),0),NA()) ->  | BAN8: =IF(ISNUMBER(NT8),IF(BAN$7=$AND8,INDEX($ANB$8:$ANB$1007,$AND8,1),0),NA()) ->  | BAO8: =IF(ISNUMBER(NU8),IF(BAO$7=$AND8,INDEX($ANB$8:$ANB$1007,$AND8,1),0),NA()) ->  | BAP8: =IF(ISNUMBER(NV8),IF(BAP$7=$AND8,INDEX($ANB$8:$ANB$1007,$AND8,1),0),NA()) ->  | BAQ8: =IF(ISNUMBER(NW8),IF(BAQ$7=$AND8,INDEX($ANB$8:$ANB$1007,$AND8,1),0),NA()) ->  | BAR8: =IF(ISNUMBER(NX8),IF(BAR$7=$AND8,INDEX($ANB$8:$ANB$1007,$AND8,1),0),NA()) ->  | BAS8: =IF(ISNUMBER(NY8),IF(BAS$7=$AND8,INDEX($ANB$8:$ANB$1007,$AND8,1),0),NA()) ->  | BAT8: =IF(ISNUMBER(NZ8),IF(BAT$7=$AND8,INDEX($ANB$8:$ANB$1007,$AND8,1),0),NA()) ->  | BAU8: =IF(ISNUMBER(OA8),IF(BAU$7=$AND8,INDEX($ANB$8:$ANB$1007,$AND8,1),0),NA()) ->  | BAV8: =IF(ISNUMBER(OB8),IF(BAV$7=$AND8,INDEX($ANB$8:$ANB$1007,$AND8,1),0),NA()) ->  | BAW8: =IF(ISNUMBER(OC8),IF(BAW$7=$AND8,INDEX($ANB$8:$ANB$1007,$AND8,1),0),NA()) ->  | BAX8: =IF(ISNUMBER(OD8),IF(BAX$7=$AND8,INDEX($ANB$8:$ANB$1007,$AND8,1),0),NA()) ->  | BAY8: =IF(ISNUMBER(OE8),IF(BAY$7=$AND8,INDEX($ANB$8:$ANB$1007,$AND8,1),0),NA()) ->  | BAZ8: =IF(ISNUMBER(OF8),IF(BAZ$7=$AND8,INDEX($ANB$8:$ANB$1007,$AND8,1),0),NA()) ->  | BBA8: =IF(ISNUMBER(OG8),IF(BBA$7=$AND8,INDEX($ANB$8:$ANB$1007,$AND8,1),0),NA()) ->  | BBB8: =IF(ISNUMBER(OH8),IF(BBB$7=$AND8,INDEX($ANB$8:$ANB$1007,$AND8,1),0),NA()) ->  | BBC8: =IF(ISNUMBER(OI8),IF(BBC$7=$AND8,INDEX($ANB$8:$ANB$1007,$AND8,1),0),NA()) ->  | BBD8: =IF(ISNUMBER(OJ8),IF(BBD$7=$AND8,INDEX($ANB$8:$ANB$1007,$AND8,1),0),NA()) ->  | BBE8: =IF(ISNUMBER(OK8),IF(BBE$7=$AND8,INDEX($ANB$8:$ANB$1007,$AND8,1),0),NA()) ->  | BBF8: =IF(ISNUMBER(OL8),IF(BBF$7=$AND8,INDEX($ANB$8:$ANB$1007,$AND8,1),0),NA()) ->  | BBG8: =IF(ISNUMBER(OM8),IF(BBG$7=$AND8,INDEX($ANB$8:$ANB$1007,$AND8,1),0),NA()) ->  | BBH8: =IF(ISNUMBER(ON8),IF(BBH$7=$AND8,INDEX($ANB$8:$ANB$1007,$AND8,1),0),NA()) ->  | BBI8: =IF(ISNUMBER(OO8),IF(BBI$7=$AND8,INDEX($ANB$8:$ANB$1007,$AND8,1),0),NA()) ->  | BBJ8: =IF(ISNUMBER(OP8),IF(BBJ$7=$AND8,INDEX($ANB$8:$ANB$1007,$AND8,1),0),NA()) ->  | BBK8: =IF(ISNUMBER(OQ8),IF(BBK$7=$AND8,INDEX($ANB$8:$ANB$1007,$AND8,1),0),NA()) ->  | BBL8: =IF(ISNUMBER(OR8),IF(BBL$7=$AND8,INDEX($ANB$8:$ANB$1007,$AND8,1),0),NA()) ->  | BBM8: =IF(ISNUMBER(OS8),IF(BBM$7=$AND8,INDEX($ANB$8:$ANB$1007,$AND8,1),0),NA()) ->  | BBN8: =IF(ISNUMBER(OT8),IF(BBN$7=$AND8,INDEX($ANB$8:$ANB$1007,$AND8,1),0),NA()) ->  | BBO8: =IF(ISNUMBER(OU8),IF(BBO$7=$AND8,INDEX($ANB$8:$ANB$1007,$AND8,1),0),NA()) ->  | BBP8: =IF(ISNUMBER(OV8),IF(BBP$7=$AND8,INDEX($ANB$8:$ANB$1007,$AND8,1),0),NA()) ->  | BBQ8: =IF(ISNUMBER(OW8),IF(BBQ$7=$AND8,INDEX($ANB$8:$ANB$1007,$AND8,1),0),NA()) ->  | BBR8: =IF(ISNUMBER(OX8),IF(BBR$7=$AND8,INDEX($ANB$8:$ANB$1007,$AND8,1),0),NA()) ->  | BBS8: =IF(ISNUMBER(OY8),IF(BBS$7=$AND8,INDEX($ANB$8:$ANB$1007,$AND8,1),0),NA()) ->  | BBT8: =IF(ISNUMBER(OZ8),IF(BBT$7=$AND8,INDEX($ANB$8:$ANB$1007,$AND8,1),0),NA()) ->  | BBU8: =IF(ISNUMBER(PA8),IF(BBU$7=$AND8,INDEX($ANB$8:$ANB$1007,$AND8,1),0),NA()) ->  | BBV8: =IF(ISNUMBER(PB8),IF(BBV$7=$AND8,INDEX($ANB$8:$ANB$1007,$AND8,1),0),NA()) ->  | BBW8: =IF(ISNUMBER(PC8),IF(BBW$7=$AND8,INDEX($ANB$8:$ANB$1007,$AND8,1),0),NA()) ->  | BBX8: =IF(ISNUMBER(PD8),IF(BBX$7=$AND8,INDEX($ANB$8:$ANB$1007,$AND8,1),0),NA()) ->  | BBY8: =IF(ISNUMBER(PE8),IF(BBY$7=$AND8,INDEX($ANB$8:$ANB$1007,$AND8,1),0),NA()) ->  | BBZ8: =IF(ISNUMBER(PF8),IF(BBZ$7=$AND8,INDEX($ANB$8:$ANB$1007,$AND8,1),0),NA()) ->  | BCA8: =IF(ISNUMBER(PG8),IF(BCA$7=$AND8,INDEX($ANB$8:$ANB$1007,$AND8,1),0),NA()) ->  | BCB8: =IF(ISNUMBER(PH8),IF(BCB$7=$AND8,INDEX($ANB$8:$ANB$1007,$AND8,1),0),NA()) ->  | BCC8: =IF(ISNUMBER(PI8),IF(BCC$7=$AND8,INDEX($ANB$8:$ANB$1007,$AND8,1),0),NA()) ->  | BCD8: =IF(ISNUMBER(PJ8),IF(BCD$7=$AND8,INDEX($ANB$8:$ANB$1007,$AND8,1),0),NA()) ->  | BCE8: =IF(ISNUMBER(PK8),IF(BCE$7=$AND8,INDEX($ANB$8:$ANB$1007,$AND8,1),0),NA()) ->  | BCF8: =IF(ISNUMBER(PL8),IF(BCF$7=$AND8,INDEX($ANB$8:$ANB$1007,$AND8,1),0),NA()) ->  | BCG8: =IF(ISNUMBER(PM8),IF(BCG$7=$AND8,INDEX($ANB$8:$ANB$1007,$AND8,1),0),NA()) ->  | BCH8: =IF(ISNUMBER(PN8),IF(BCH$7=$AND8,INDEX($ANB$8:$ANB$1007,$AND8,1),0),NA()) ->  | BCI8: =IF(ISNUMBER(PO8),IF(BCI$7=$AND8,INDEX($ANB$8:$ANB$1007,$AND8,1),0),NA()) ->  | BCJ8: =IF(ISNUMBER(PP8),IF(BCJ$7=$AND8,INDEX($ANB$8:$ANB$1007,$AND8,1),0),NA()) ->  | BCK8: =IF(ISNUMBER(PQ8),IF(BCK$7=$AND8,INDEX($ANB$8:$ANB$1007,$AND8,1),0),NA()) ->  | BCL8: =IF(ISNUMBER(PR8),IF(BCL$7=$AND8,INDEX($ANB$8:$ANB$1007,$AND8,1),0),NA()) ->  | BCM8: =IF(ISNUMBER(PS8),IF(BCM$7=$AND8,INDEX($ANB$8:$ANB$1007,$AND8,1),0),NA()) ->  | BCN8: =IF(ISNUMBER(PT8),IF(BCN$7=$AND8,INDEX($ANB$8:$ANB$1007,$AND8,1),0),NA()) ->  | BCO8: =IF(ISNUMBER(PU8),IF(BCO$7=$AND8,INDEX($ANB$8:$ANB$1007,$AND8,1),0),NA()) ->  | BCP8: =IF(ISNUMBER(PV8),IF(BCP$7=$AND8,INDEX($ANB$8:$ANB$1007,$AND8,1),0),NA()) ->  | BCQ8: =IF(ISNUMBER(PW8),IF(BCQ$7=$AND8,INDEX($ANB$8:$ANB$1007,$AND8,1),0),NA()) ->  | BCR8: =IF(ISNUMBER(PX8),IF(BCR$7=$AND8,INDEX($ANB$8:$ANB$1007,$AND8,1),0),NA()) ->  | BCS8: =IF(ISNUMBER(PY8),IF(BCS$7=$AND8,INDEX($ANB$8:$ANB$1007,$AND8,1),0),NA()) ->  | BCT8: =IF(ISNUMBER(PZ8),IF(BCT$7=$AND8,INDEX($ANB$8:$ANB$1007,$AND8,1),0),NA()) ->  | BCU8: =IF(ISNUMBER(QA8),IF(BCU$7=$AND8,INDEX($ANB$8:$ANB$1007,$AND8,1),0),NA()) ->  | BCV8: =IF(ISNUMBER(QB8),IF(BCV$7=$AND8,INDEX($ANB$8:$ANB$1007,$AND8,1),0),NA()) ->  | BCW8: =IF(ISNUMBER(QC8),IF(BCW$7=$AND8,INDEX($ANB$8:$ANB$1007,$AND8,1),0),NA()) ->  | BCX8: =IF(ISNUMBER(QD8),IF(BCX$7=$AND8,INDEX($ANB$8:$ANB$1007,$AND8,1),0),NA()) ->  | BCY8: =IF(ISNUMBER(QE8),IF(BCY$7=$AND8,INDEX($ANB$8:$ANB$1007,$AND8,1),0),NA()) ->  | BCZ8: =IF(ISNUMBER(QF8),IF(BCZ$7=$AND8,INDEX($ANB$8:$ANB$1007,$AND8,1),0),NA()) ->  | BDA8: =IF(ISNUMBER(QG8),IF(BDA$7=$AND8,INDEX($ANB$8:$ANB$1007,$AND8,1),0),NA()) ->  | BDB8: =IF(ISNUMBER(QH8),IF(BDB$7=$AND8,INDEX($ANB$8:$ANB$1007,$AND8,1),0),NA()) ->  | BDC8: =IF(ISNUMBER(QI8),IF(BDC$7=$AND8,INDEX($ANB$8:$ANB$1007,$AND8,1),0),NA()) ->  | BDD8: =IF(ISNUMBER(QJ8),IF(BDD$7=$AND8,INDEX($ANB$8:$ANB$1007,$AND8,1),0),NA()) ->  | BDE8: =IF(ISNUMBER(QK8),IF(BDE$7=$AND8,INDEX($ANB$8:$ANB$1007,$AND8,1),0),NA()) ->  | BDF8: =IF(ISNUMBER(QL8),IF(BDF$7=$AND8,INDEX($ANB$8:$ANB$1007,$AND8,1),0),NA()) ->  | BDG8: =IF(ISNUMBER(QM8),IF(BDG$7=$AND8,INDEX($ANB$8:$ANB$1007,$AND8,1),0),NA()) ->  | BDH8: =IF(ISNUMBER(QN8),IF(BDH$7=$AND8,INDEX($ANB$8:$ANB$1007,$AND8,1),0),NA()) ->  | BDI8: =IF(ISNUMBER(QO8),IF(BDI$7=$AND8,INDEX($ANB$8:$ANB$1007,$AND8,1),0),NA()) ->  | BDJ8: =IF(ISNUMBER(QP8),IF(BDJ$7=$AND8,INDEX($ANB$8:$ANB$1007,$AND8,1),0),NA()) ->  | BDK8: =IF(ISNUMBER(QQ8),IF(BDK$7=$AND8,INDEX($ANB$8:$ANB$1007,$AND8,1),0),NA()) ->  | BDL8: =IF(ISNUMBER(QR8),IF(BDL$7=$AND8,INDEX($ANB$8:$ANB$1007,$AND8,1),0),NA()) ->  | BDM8: =IF(ISNUMBER(QS8),IF(BDM$7=$AND8,INDEX($ANB$8:$ANB$1007,$AND8,1),0),NA()) ->  | BDN8: =IF(ISNUMBER(QT8),IF(BDN$7=$AND8,INDEX($ANB$8:$ANB$1007,$AND8,1),0),NA()) ->  | BDO8: =IF(ISNUMBER(QU8),IF(BDO$7=$AND8,INDEX($ANB$8:$ANB$1007,$AND8,1),0),NA()) ->  | BDP8: =IF(ISNUMBER(QV8),IF(BDP$7=$AND8,INDEX($ANB$8:$ANB$1007,$AND8,1),0),NA()) ->  | BDQ8: =IF(ISNUMBER(QW8),IF(BDQ$7=$AND8,INDEX($ANB$8:$ANB$1007,$AND8,1),0),NA()) ->  | BDR8: =IF(ISNUMBER(QX8),IF(BDR$7=$AND8,INDEX($ANB$8:$ANB$1007,$AND8,1),0),NA()) ->  | BDS8: =IF(ISNUMBER(QY8),IF(BDS$7=$AND8,INDEX($ANB$8:$ANB$1007,$AND8,1),0),NA()) ->  | BDT8: =IF(ISNUMBER(QZ8),IF(BDT$7=$AND8,INDEX($ANB$8:$ANB$1007,$AND8,1),0),NA()) ->  | BDU8: =IF(ISNUMBER(RA8),IF(BDU$7=$AND8,INDEX($ANB$8:$ANB$1007,$AND8,1),0),NA()) ->  | BDV8: =IF(ISNUMBER(RB8),IF(BDV$7=$AND8,INDEX($ANB$8:$ANB$1007,$AND8,1),0),NA()) ->  | BDW8: =IF(ISNUMBER(RC8),IF(BDW$7=$AND8,INDEX($ANB$8:$ANB$1007,$AND8,1),0),NA()) ->  | BDX8: =IF(ISNUMBER(RD8),IF(BDX$7=$AND8,INDEX($ANB$8:$ANB$1007,$AND8,1),0),NA()) ->  | BDY8: =IF(ISNUMBER(RE8),IF(BDY$7=$AND8,INDEX($ANB$8:$ANB$1007,$AND8,1),0),NA()) ->  | BDZ8: =IF(ISNUMBER(RF8),IF(BDZ$7=$AND8,INDEX($ANB$8:$ANB$1007,$AND8,1),0),NA()) ->  | BEA8: =IF(ISNUMBER(RG8),IF(BEA$7=$AND8,INDEX($ANB$8:$ANB$1007,$AND8,1),0),NA()) ->  | BEB8: =IF(ISNUMBER(RH8),IF(BEB$7=$AND8,INDEX($ANB$8:$ANB$1007,$AND8,1),0),NA()) ->  | BEC8: =IF(ISNUMBER(RI8),IF(BEC$7=$AND8,INDEX($ANB$8:$ANB$1007,$AND8,1),0),NA()) ->  | BED8: =IF(ISNUMBER(RJ8),IF(BED$7=$AND8,INDEX($ANB$8:$ANB$1007,$AND8,1),0),NA()) ->  | BEE8: =IF(ISNUMBER(RK8),IF(BEE$7=$AND8,INDEX($ANB$8:$ANB$1007,$AND8,1),0),NA()) ->  | BEF8: =IF(ISNUMBER(RL8),IF(BEF$7=$AND8,INDEX($ANB$8:$ANB$1007,$AND8,1),0),NA()) ->  | BEG8: =IF(ISNUMBER(RM8),IF(BEG$7=$AND8,INDEX($ANB$8:$ANB$1007,$AND8,1),0),NA()) ->  | BEH8: =IF(ISNUMBER(RN8),IF(BEH$7=$AND8,INDEX($ANB$8:$ANB$1007,$AND8,1),0),NA()) ->  | BEI8: =IF(ISNUMBER(RO8),IF(BEI$7=$AND8,INDEX($ANB$8:$ANB$1007,$AND8,1),0),NA()) ->  | BEJ8: =IF(ISNUMBER(RP8),IF(BEJ$7=$AND8,INDEX($ANB$8:$ANB$1007,$AND8,1),0),NA()) ->  | BEK8: =IF(ISNUMBER(RQ8),IF(BEK$7=$AND8,INDEX($ANB$8:$ANB$1007,$AND8,1),0),NA()) ->  | BEL8: =IF(ISNUMBER(RR8),IF(BEL$7=$AND8,INDEX($ANB$8:$ANB$1007,$AND8,1),0),NA()) ->  | BEM8: =IF(ISNUMBER(RS8),IF(BEM$7=$AND8,INDEX($ANB$8:$ANB$1007,$AND8,1),0),NA()) ->  | BEN8: =IF(ISNUMBER(RT8),IF(BEN$7=$AND8,INDEX($ANB$8:$ANB$1007,$AND8,1),0),NA()) ->  | BEO8: =IF(ISNUMBER(RU8),IF(BEO$7=$AND8,INDEX($ANB$8:$ANB$1007,$AND8,1),0),NA()) ->  | BEP8: =IF(ISNUMBER(RV8),IF(BEP$7=$AND8,INDEX($ANB$8:$ANB$1007,$AND8,1),0),NA()) ->  | BEQ8: =IF(ISNUMBER(RW8),IF(BEQ$7=$AND8,INDEX($ANB$8:$ANB$1007,$AND8,1),0),NA()) ->  | BER8: =IF(ISNUMBER(RX8),IF(BER$7=$AND8,INDEX($ANB$8:$ANB$1007,$AND8,1),0),NA()) ->  | BES8: =IF(ISNUMBER(RY8),IF(BES$7=$AND8,INDEX($ANB$8:$ANB$1007,$AND8,1),0),NA()) ->  | BET8: =IF(ISNUMBER(RZ8),IF(BET$7=$AND8,INDEX($ANB$8:$ANB$1007,$AND8,1),0),NA()) ->  | BEU8: =IF(ISNUMBER(SA8),IF(BEU$7=$AND8,INDEX($ANB$8:$ANB$1007,$AND8,1),0),NA()) ->  | BEV8: =IF(ISNUMBER(SB8),IF(BEV$7=$AND8,INDEX($ANB$8:$ANB$1007,$AND8,1),0),NA()) ->  | BEW8: =IF(ISNUMBER(SC8),IF(BEW$7=$AND8,INDEX($ANB$8:$ANB$1007,$AND8,1),0),NA()) ->  | BEX8: =IF(ISNUMBER(SD8),IF(BEX$7=$AND8,INDEX($ANB$8:$ANB$1007,$AND8,1),0),NA()) ->  | BEY8: =IF(ISNUMBER(SE8),IF(BEY$7=$AND8,INDEX($ANB$8:$ANB$1007,$AND8,1),0),NA()) ->  | BEZ8: =IF(ISNUMBER(SF8),IF(BEZ$7=$AND8,INDEX($ANB$8:$ANB$1007,$AND8,1),0),NA()) ->  | BFA8: =IF(ISNUMBER(SG8),IF(BFA$7=$AND8,INDEX($ANB$8:$ANB$1007,$AND8,1),0),NA()) ->  | BFB8: =IF(ISNUMBER(SH8),IF(BFB$7=$AND8,INDEX($ANB$8:$ANB$1007,$AND8,1),0),NA()) ->  | BFC8: =IF(ISNUMBER(SI8),IF(BFC$7=$AND8,INDEX($ANB$8:$ANB$1007,$AND8,1),0),NA()) ->  | BFD8: =IF(ISNUMBER(SJ8),IF(BFD$7=$AND8,INDEX($ANB$8:$ANB$1007,$AND8,1),0),NA()) ->  | BFE8: =IF(ISNUMBER(SK8),IF(BFE$7=$AND8,INDEX($ANB$8:$ANB$1007,$AND8,1),0),NA()) ->  | BFF8: =IF(ISNUMBER(SL8),IF(BFF$7=$AND8,INDEX($ANB$8:$ANB$1007,$AND8,1),0),NA()) ->  | BFG8: =IF(ISNUMBER(SM8),IF(BFG$7=$AND8,INDEX($ANB$8:$ANB$1007,$AND8,1),0),NA()) ->  | BFH8: =IF(ISNUMBER(SN8),IF(BFH$7=$AND8,INDEX($ANB$8:$ANB$1007,$AND8,1),0),NA()) ->  | BFI8: =IF(ISNUMBER(SO8),IF(BFI$7=$AND8,INDEX($ANB$8:$ANB$1007,$AND8,1),0),NA()) ->  | BFJ8: =IF(ISNUMBER(SP8),IF(BFJ$7=$AND8,INDEX($ANB$8:$ANB$1007,$AND8,1),0),NA()) ->  | BFK8: =IF(ISNUMBER(SQ8),IF(BFK$7=$AND8,INDEX($ANB$8:$ANB$1007,$AND8,1),0),NA()) ->  | BFL8: =IF(ISNUMBER(SR8),IF(BFL$7=$AND8,INDEX($ANB$8:$ANB$1007,$AND8,1),0),NA()) ->  | BFM8: =IF(ISNUMBER(SS8),IF(BFM$7=$AND8,INDEX($ANB$8:$ANB$1007,$AND8,1),0),NA()) ->  | BFN8: =IF(ISNUMBER(ST8),IF(BFN$7=$AND8,INDEX($ANB$8:$ANB$1007,$AND8,1),0),NA()) ->  | BFO8: =IF(ISNUMBER(SU8),IF(BFO$7=$AND8,INDEX($ANB$8:$ANB$1007,$AND8,1),0),NA()) ->  | BFP8: =IF(ISNUMBER(SV8),IF(BFP$7=$AND8,INDEX($ANB$8:$ANB$1007,$AND8,1),0),NA()) ->  | BFQ8: =IF(ISNUMBER(SW8),IF(BFQ$7=$AND8,INDEX($ANB$8:$ANB$1007,$AND8,1),0),NA()) ->  | BFR8: =IF(ISNUMBER(SX8),IF(BFR$7=$AND8,INDEX($ANB$8:$ANB$1007,$AND8,1),0),NA()) ->  | BFS8: =IF(ISNUMBER(SY8),IF(BFS$7=$AND8,INDEX($ANB$8:$ANB$1007,$AND8,1),0),NA()) ->  | BFT8: =IF(ISNUMBER(SZ8),IF(BFT$7=$AND8,INDEX($ANB$8:$ANB$1007,$AND8,1),0),NA()) ->  | BFU8: =IF(ISNUMBER(TA8),IF(BFU$7=$AND8,INDEX($ANB$8:$ANB$1007,$AND8,1),0),NA()) ->  | BFV8: =IF(ISNUMBER(TB8),IF(BFV$7=$AND8,INDEX($ANB$8:$ANB$1007,$AND8,1),0),NA()) ->  | BFW8: =IF(ISNUMBER(TC8),IF(BFW$7=$AND8,INDEX($ANB$8:$ANB$1007,$AND8,1),0),NA()) ->  | BFX8: =IF(ISNUMBER(TD8),IF(BFX$7=$AND8,INDEX($ANB$8:$ANB$1007,$AND8,1),0),NA()) ->  | BFY8: =IF(ISNUMBER(TE8),IF(BFY$7=$AND8,INDEX($ANB$8:$ANB$1007,$AND8,1),0),NA()) ->  | BFZ8: =IF(ISNUMBER(TF8),IF(BFZ$7=$AND8,INDEX($ANB$8:$ANB$1007,$AND8,1),0),NA()) ->  | BGA8: =IF(ISNUMBER(TG8),IF(BGA$7=$AND8,INDEX($ANB$8:$ANB$1007,$AND8,1),0),NA()) ->  | BGB8: =IF(ISNUMBER(TH8),IF(BGB$7=$AND8,INDEX($ANB$8:$ANB$1007,$AND8,1),0),NA()) ->  | BGC8: =IF(ISNUMBER(TI8),IF(BGC$7=$AND8,INDEX($ANB$8:$ANB$1007,$AND8,1),0),NA()) ->  | BGD8: =IF(ISNUMBER(TJ8),IF(BGD$7=$AND8,INDEX($ANB$8:$ANB$1007,$AND8,1),0),NA()) ->  | BGE8: =IF(ISNUMBER(TK8),IF(BGE$7=$AND8,INDEX($ANB$8:$ANB$1007,$AND8,1),0),NA()) ->  | BGF8: =IF(ISNUMBER(TL8),IF(BGF$7=$AND8,INDEX($ANB$8:$ANB$1007,$AND8,1),0),NA()) ->  | BGG8: =IF(ISNUMBER(TM8),IF(BGG$7=$AND8,INDEX($ANB$8:$ANB$1007,$AND8,1),0),NA()) ->  | BGH8: =IF(ISNUMBER(TN8),IF(BGH$7=$AND8,INDEX($ANB$8:$ANB$1007,$AND8,1),0),NA()) ->  | BGI8: =IF(ISNUMBER(TO8),IF(BGI$7=$AND8,INDEX($ANB$8:$ANB$1007,$AND8,1),0),NA()) ->  | BGJ8: =IF(ISNUMBER(TP8),IF(BGJ$7=$AND8,INDEX($ANB$8:$ANB$1007,$AND8,1),0),NA()) ->  | BGK8: =IF(ISNUMBER(TQ8),IF(BGK$7=$AND8,INDEX($ANB$8:$ANB$1007,$AND8,1),0),NA()) ->  | BGL8: =IF(ISNUMBER(TR8),IF(BGL$7=$AND8,INDEX($ANB$8:$ANB$1007,$AND8,1),0),NA()) ->  | BGM8: =IF(ISNUMBER(TS8),IF(BGM$7=$AND8,INDEX($ANB$8:$ANB$1007,$AND8,1),0),NA()) ->  | BGN8: =IF(ISNUMBER(TT8),IF(BGN$7=$AND8,INDEX($ANB$8:$ANB$1007,$AND8,1),0),NA()) ->  | BGO8: =IF(ISNUMBER(TU8),IF(BGO$7=$AND8,INDEX($ANB$8:$ANB$1007,$AND8,1),0),NA()) ->  | BGP8: =IF(ISNUMBER(TV8),IF(BGP$7=$AND8,INDEX($ANB$8:$ANB$1007,$AND8,1),0),NA()) ->  | BGQ8: =IF(ISNUMBER(TW8),IF(BGQ$7=$AND8,INDEX($ANB$8:$ANB$1007,$AND8,1),0),NA()) ->  | BGR8: =IF(ISNUMBER(TX8),IF(BGR$7=$AND8,INDEX($ANB$8:$ANB$1007,$AND8,1),0),NA()) ->  | BGS8: =IF(ISNUMBER(TY8),IF(BGS$7=$AND8,INDEX($ANB$8:$ANB$1007,$AND8,1),0),NA()) ->  | BGT8: =IF(ISNUMBER(TZ8),IF(BGT$7=$AND8,INDEX($ANB$8:$ANB$1007,$AND8,1),0),NA()) ->  | BGU8: =IF(ISNUMBER(UA8),IF(BGU$7=$AND8,INDEX($ANB$8:$ANB$1007,$AND8,1),0),NA()) ->  | BGV8: =IF(ISNUMBER(UB8),IF(BGV$7=$AND8,INDEX($ANB$8:$ANB$1007,$AND8,1),0),NA()) ->  | BGW8: =IF(ISNUMBER(UC8),IF(BGW$7=$AND8,INDEX($ANB$8:$ANB$1007,$AND8,1),0),NA()) ->  | BGX8: =IF(ISNUMBER(UD8),IF(BGX$7=$AND8,INDEX($ANB$8:$ANB$1007,$AND8,1),0),NA()) ->  | BGY8: =IF(ISNUMBER(UE8),IF(BGY$7=$AND8,INDEX($ANB$8:$ANB$1007,$AND8,1),0),NA()) ->  | BGZ8: =IF(ISNUMBER(UF8),IF(BGZ$7=$AND8,INDEX($ANB$8:$ANB$1007,$AND8,1),0),NA()) ->  | BHA8: =IF(ISNUMBER(UG8),IF(BHA$7=$AND8,INDEX($ANB$8:$ANB$1007,$AND8,1),0),NA()) ->  | BHB8: =IF(ISNUMBER(UH8),IF(BHB$7=$AND8,INDEX($ANB$8:$ANB$1007,$AND8,1),0),NA()) ->  | BHC8: =IF(ISNUMBER(UI8),IF(BHC$7=$AND8,INDEX($ANB$8:$ANB$1007,$AND8,1),0),NA()) ->  | BHD8: =IF(ISNUMBER(UJ8),IF(BHD$7=$AND8,INDEX($ANB$8:$ANB$1007,$AND8,1),0),NA()) ->  | BHE8: =IF(ISNUMBER(UK8),IF(BHE$7=$AND8,INDEX($ANB$8:$ANB$1007,$AND8,1),0),NA()) ->  | BHF8: =IF(ISNUMBER(UL8),IF(BHF$7=$AND8,INDEX($ANB$8:$ANB$1007,$AND8,1),0),NA()) ->  | BHG8: =IF(ISNUMBER(UM8),IF(BHG$7=$AND8,INDEX($ANB$8:$ANB$1007,$AND8,1),0),NA()) ->  | BHH8: =IF(ISNUMBER(UN8),IF(BHH$7=$AND8,INDEX($ANB$8:$ANB$1007,$AND8,1),0),NA()) ->  | BHI8: =IF(ISNUMBER(UO8),IF(BHI$7=$AND8,INDEX($ANB$8:$ANB$1007,$AND8,1),0),NA()) ->  | BHJ8: =IF(ISNUMBER(UP8),IF(BHJ$7=$AND8,INDEX($ANB$8:$ANB$1007,$AND8,1),0),NA()) ->  | BHK8: =IF(ISNUMBER(UQ8),IF(BHK$7=$AND8,INDEX($ANB$8:$ANB$1007,$AND8,1),0),NA()) ->  | BHL8: =IF(ISNUMBER(UR8),IF(BHL$7=$AND8,INDEX($ANB$8:$ANB$1007,$AND8,1),0),NA()) ->  | BHM8: =IF(ISNUMBER(US8),IF(BHM$7=$AND8,INDEX($ANB$8:$ANB$1007,$AND8,1),0),NA()) ->  | BHN8: =IF(ISNUMBER(UT8),IF(BHN$7=$AND8,INDEX($ANB$8:$ANB$1007,$AND8,1),0),NA()) ->  | BHO8: =IF(ISNUMBER(UU8),IF(BHO$7=$AND8,INDEX($ANB$8:$ANB$1007,$AND8,1),0),NA()) ->  | BHP8: =IF(ISNUMBER(UV8),IF(BHP$7=$AND8,INDEX($ANB$8:$ANB$1007,$AND8,1),0),NA()) ->  | BHQ8: =IF(ISNUMBER(UW8),IF(BHQ$7=$AND8,INDEX($ANB$8:$ANB$1007,$AND8,1),0),NA()) ->  | BHR8: =IF(ISNUMBER(UX8),IF(BHR$7=$AND8,INDEX($ANB$8:$ANB$1007,$AND8,1),0),NA()) ->  | BHS8: =IF(ISNUMBER(UY8),IF(BHS$7=$AND8,INDEX($ANB$8:$ANB$1007,$AND8,1),0),NA()) ->  | BHT8: =IF(ISNUMBER(UZ8),IF(BHT$7=$AND8,INDEX($ANB$8:$ANB$1007,$AND8,1),0),NA()) ->  | BHU8: =IF(ISNUMBER(VA8),IF(BHU$7=$AND8,INDEX($ANB$8:$ANB$1007,$AND8,1),0),NA()) ->  | BHV8: =IF(ISNUMBER(VB8),IF(BHV$7=$AND8,INDEX($ANB$8:$ANB$1007,$AND8,1),0),NA()) ->  | BHW8: =IF(ISNUMBER(VC8),IF(BHW$7=$AND8,INDEX($ANB$8:$ANB$1007,$AND8,1),0),NA()) ->  | BHX8: =IF(ISNUMBER(VD8),IF(BHX$7=$AND8,INDEX($ANB$8:$ANB$1007,$AND8,1),0),NA()) ->  | BHY8: =IF(ISNUMBER(VE8),IF(BHY$7=$AND8,INDEX($ANB$8:$ANB$1007,$AND8,1),0),NA()) ->  | BHZ8: =IF(ISNUMBER(VF8),IF(BHZ$7=$AND8,INDEX($ANB$8:$ANB$1007,$AND8,1),0),NA()) ->  | BIA8: =IF(ISNUMBER(VG8),IF(BIA$7=$AND8,INDEX($ANB$8:$ANB$1007,$AND8,1),0),NA()) ->  | BIB8: =IF(ISNUMBER(VH8),IF(BIB$7=$AND8,INDEX($ANB$8:$ANB$1007,$AND8,1),0),NA()) ->  | BIC8: =IF(ISNUMBER(VI8),IF(BIC$7=$AND8,INDEX($ANB$8:$ANB$1007,$AND8,1),0),NA()) ->  | BID8: =IF(ISNUMBER(VJ8),IF(BID$7=$AND8,INDEX($ANB$8:$ANB$1007,$AND8,1),0),NA()) ->  | BIE8: =IF(ISNUMBER(VK8),IF(BIE$7=$AND8,INDEX($ANB$8:$ANB$1007,$AND8,1),0),NA()) ->  | BIF8: =IF(ISNUMBER(VL8),IF(BIF$7=$AND8,INDEX($ANB$8:$ANB$1007,$AND8,1),0),NA()) ->  | BIG8: =IF(ISNUMBER(VM8),IF(BIG$7=$AND8,INDEX($ANB$8:$ANB$1007,$AND8,1),0),NA()) ->  | BIH8: =IF(ISNUMBER(VN8),IF(BIH$7=$AND8,INDEX($ANB$8:$ANB$1007,$AND8,1),0),NA()) ->  | BII8: =IF(ISNUMBER(VO8),IF(BII$7=$AND8,INDEX($ANB$8:$ANB$1007,$AND8,1),0),NA()) ->  | BIJ8: =IF(ISNUMBER(VP8),IF(BIJ$7=$AND8,INDEX($ANB$8:$ANB$1007,$AND8,1),0),NA()) ->  | BIK8: =IF(ISNUMBER(VQ8),IF(BIK$7=$AND8,INDEX($ANB$8:$ANB$1007,$AND8,1),0),NA()) ->  | BIL8: =IF(ISNUMBER(VR8),IF(BIL$7=$AND8,INDEX($ANB$8:$ANB$1007,$AND8,1),0),NA()) ->  | BIM8: =IF(ISNUMBER(VS8),IF(BIM$7=$AND8,INDEX($ANB$8:$ANB$1007,$AND8,1),0),NA()) ->  | BIN8: =IF(ISNUMBER(VT8),IF(BIN$7=$AND8,INDEX($ANB$8:$ANB$1007,$AND8,1),0),NA()) ->  | BIO8: =IF(ISNUMBER(VU8),IF(BIO$7=$AND8,INDEX($ANB$8:$ANB$1007,$AND8,1),0),NA()) ->  | BIP8: =IF(ISNUMBER(VV8),IF(BIP$7=$AND8,INDEX($ANB$8:$ANB$1007,$AND8,1),0),NA()) ->  | BIQ8: =IF(ISNUMBER(VW8),IF(BIQ$7=$AND8,INDEX($ANB$8:$ANB$1007,$AND8,1),0),NA()) ->  | BIR8: =IF(ISNUMBER(VX8),IF(BIR$7=$AND8,INDEX($ANB$8:$ANB$1007,$AND8,1),0),NA()) ->  | BIS8: =IF(ISNUMBER(VY8),IF(BIS$7=$AND8,INDEX($ANB$8:$ANB$1007,$AND8,1),0),NA()) ->  | BIT8: =IF(ISNUMBER(VZ8),IF(BIT$7=$AND8,INDEX($ANB$8:$ANB$1007,$AND8,1),0),NA()) ->  | BIU8: =IF(ISNUMBER(WA8),IF(BIU$7=$AND8,INDEX($ANB$8:$ANB$1007,$AND8,1),0),NA()) ->  | BIV8: =IF(ISNUMBER(WB8),IF(BIV$7=$AND8,INDEX($ANB$8:$ANB$1007,$AND8,1),0),NA()) ->  | BIW8: =IF(ISNUMBER(WC8),IF(BIW$7=$AND8,INDEX($ANB$8:$ANB$1007,$AND8,1),0),NA()) ->  | BIX8: =IF(ISNUMBER(WD8),IF(BIX$7=$AND8,INDEX($ANB$8:$ANB$1007,$AND8,1),0),NA()) ->  | BIY8: =IF(ISNUMBER(WE8),IF(BIY$7=$AND8,INDEX($ANB$8:$ANB$1007,$AND8,1),0),NA()) ->  | BIZ8: =IF(ISNUMBER(WF8),IF(BIZ$7=$AND8,INDEX($ANB$8:$ANB$1007,$AND8,1),0),NA()) ->  | BJA8: =IF(ISNUMBER(WG8),IF(BJA$7=$AND8,INDEX($ANB$8:$ANB$1007,$AND8,1),0),NA()) ->  | BJB8: =IF(ISNUMBER(WH8),IF(BJB$7=$AND8,INDEX($ANB$8:$ANB$1007,$AND8,1),0),NA()) ->  | BJC8: =IF(ISNUMBER(WI8),IF(BJC$7=$AND8,INDEX($ANB$8:$ANB$1007,$AND8,1),0),NA()) ->  | BJD8: =IF(ISNUMBER(WJ8),IF(BJD$7=$AND8,INDEX($ANB$8:$ANB$1007,$AND8,1),0),NA()) ->  | BJE8: =IF(ISNUMBER(WK8),IF(BJE$7=$AND8,INDEX($ANB$8:$ANB$1007,$AND8,1),0),NA()) ->  | BJF8: =IF(ISNUMBER(WL8),IF(BJF$7=$AND8,INDEX($ANB$8:$ANB$1007,$AND8,1),0),NA()) ->  | BJG8: =IF(ISNUMBER(WM8),IF(BJG$7=$AND8,INDEX($ANB$8:$ANB$1007,$AND8,1),0),NA()) ->  | BJH8: =IF(ISNUMBER(WN8),IF(BJH$7=$AND8,INDEX($ANB$8:$ANB$1007,$AND8,1),0),NA()) ->  | BJI8: =IF(ISNUMBER(WO8),IF(BJI$7=$AND8,INDEX($ANB$8:$ANB$1007,$AND8,1),0),NA()) ->  | BJJ8: =IF(ISNUMBER(WP8),IF(BJJ$7=$AND8,INDEX($ANB$8:$ANB$1007,$AND8,1),0),NA()) ->  | BJK8: =IF(ISNUMBER(WQ8),IF(BJK$7=$AND8,INDEX($ANB$8:$ANB$1007,$AND8,1),0),NA()) ->  | BJL8: =IF(ISNUMBER(WR8),IF(BJL$7=$AND8,INDEX($ANB$8:$ANB$1007,$AND8,1),0),NA()) ->  | BJM8: =IF(ISNUMBER(WS8),IF(BJM$7=$AND8,INDEX($ANB$8:$ANB$1007,$AND8,1),0),NA()) ->  | BJN8: =IF(ISNUMBER(WT8),IF(BJN$7=$AND8,INDEX($ANB$8:$ANB$1007,$AND8,1),0),NA()) ->  | BJO8: =IF(ISNUMBER(WU8),IF(BJO$7=$AND8,INDEX($ANB$8:$ANB$1007,$AND8,1),0),NA()) ->  | BJP8: =IF(ISNUMBER(WV8),IF(BJP$7=$AND8,INDEX($ANB$8:$ANB$1007,$AND8,1),0),NA()) ->  | BJQ8: =IF(ISNUMBER(WW8),IF(BJQ$7=$AND8,INDEX($ANB$8:$ANB$1007,$AND8,1),0),NA()) ->  | BJR8: =IF(ISNUMBER(WX8),IF(BJR$7=$AND8,INDEX($ANB$8:$ANB$1007,$AND8,1),0),NA()) ->  | BJS8: =IF(ISNUMBER(WY8),IF(BJS$7=$AND8,INDEX($ANB$8:$ANB$1007,$AND8,1),0),NA()) ->  | BJT8: =IF(ISNUMBER(WZ8),IF(BJT$7=$AND8,INDEX($ANB$8:$ANB$1007,$AND8,1),0),NA()) ->  | BJU8: =IF(ISNUMBER(XA8),IF(BJU$7=$AND8,INDEX($ANB$8:$ANB$1007,$AND8,1),0),NA()) ->  | BJV8: =IF(ISNUMBER(XB8),IF(BJV$7=$AND8,INDEX($ANB$8:$ANB$1007,$AND8,1),0),NA()) ->  | BJW8: =IF(ISNUMBER(XC8),IF(BJW$7=$AND8,INDEX($ANB$8:$ANB$1007,$AND8,1),0),NA()) ->  | BJX8: =IF(ISNUMBER(XD8),IF(BJX$7=$AND8,INDEX($ANB$8:$ANB$1007,$AND8,1),0),NA()) ->  | BJY8: =IF(ISNUMBER(XE8),IF(BJY$7=$AND8,INDEX($ANB$8:$ANB$1007,$AND8,1),0),NA()) ->  | BJZ8: =IF(ISNUMBER(XF8),IF(BJZ$7=$AND8,INDEX($ANB$8:$ANB$1007,$AND8,1),0),NA()) ->  | BKA8: =IF(ISNUMBER(XG8),IF(BKA$7=$AND8,INDEX($ANB$8:$ANB$1007,$AND8,1),0),NA()) ->  | BKB8: =IF(ISNUMBER(XH8),IF(BKB$7=$AND8,INDEX($ANB$8:$ANB$1007,$AND8,1),0),NA()) ->  | BKC8: =IF(ISNUMBER(XI8),IF(BKC$7=$AND8,INDEX($ANB$8:$ANB$1007,$AND8,1),0),NA()) ->  | BKD8: =IF(ISNUMBER(XJ8),IF(BKD$7=$AND8,INDEX($ANB$8:$ANB$1007,$AND8,1),0),NA()) ->  | BKE8: =IF(ISNUMBER(XK8),IF(BKE$7=$AND8,INDEX($ANB$8:$ANB$1007,$AND8,1),0),NA()) ->  | BKF8: =IF(ISNUMBER(XL8),IF(BKF$7=$AND8,INDEX($ANB$8:$ANB$1007,$AND8,1),0),NA()) ->  | BKG8: =IF(ISNUMBER(XM8),IF(BKG$7=$AND8,INDEX($ANB$8:$ANB$1007,$AND8,1),0),NA()) ->  | BKH8: =IF(ISNUMBER(XN8),IF(BKH$7=$AND8,INDEX($ANB$8:$ANB$1007,$AND8,1),0),NA()) ->  | BKI8: =IF(ISNUMBER(XO8),IF(BKI$7=$AND8,INDEX($ANB$8:$ANB$1007,$AND8,1),0),NA()) ->  | BKJ8: =IF(ISNUMBER(XP8),IF(BKJ$7=$AND8,INDEX($ANB$8:$ANB$1007,$AND8,1),0),NA()) ->  | BKK8: =IF(ISNUMBER(XQ8),IF(BKK$7=$AND8,INDEX($ANB$8:$ANB$1007,$AND8,1),0),NA()) ->  | BKL8: =IF(ISNUMBER(XR8),IF(BKL$7=$AND8,INDEX($ANB$8:$ANB$1007,$AND8,1),0),NA()) ->  | BKM8: =IF(ISNUMBER(XS8),IF(BKM$7=$AND8,INDEX($ANB$8:$ANB$1007,$AND8,1),0),NA()) ->  | BKN8: =IF(ISNUMBER(XT8),IF(BKN$7=$AND8,INDEX($ANB$8:$ANB$1007,$AND8,1),0),NA()) ->  | BKO8: =IF(ISNUMBER(XU8),IF(BKO$7=$AND8,INDEX($ANB$8:$ANB$1007,$AND8,1),0),NA()) ->  | BKP8: =IF(ISNUMBER(XV8),IF(BKP$7=$AND8,INDEX($ANB$8:$ANB$1007,$AND8,1),0),NA()) ->  | BKQ8: =IF(ISNUMBER(XW8),IF(BKQ$7=$AND8,INDEX($ANB$8:$ANB$1007,$AND8,1),0),NA()) ->  | BKR8: =IF(ISNUMBER(XX8),IF(BKR$7=$AND8,INDEX($ANB$8:$ANB$1007,$AND8,1),0),NA()) ->  | BKS8: =IF(ISNUMBER(XY8),IF(BKS$7=$AND8,INDEX($ANB$8:$ANB$1007,$AND8,1),0),NA()) ->  | BKT8: =IF(ISNUMBER(XZ8),IF(BKT$7=$AND8,INDEX($ANB$8:$ANB$1007,$AND8,1),0),NA()) ->  | BKU8: =IF(ISNUMBER(YA8),IF(BKU$7=$AND8,INDEX($ANB$8:$ANB$1007,$AND8,1),0),NA()) ->  | BKV8: =IF(ISNUMBER(YB8),IF(BKV$7=$AND8,INDEX($ANB$8:$ANB$1007,$AND8,1),0),NA()) ->  | BKW8: =IF(ISNUMBER(YC8),IF(BKW$7=$AND8,INDEX($ANB$8:$ANB$1007,$AND8,1),0),NA()) ->  | BKX8: =IF(ISNUMBER(YD8),IF(BKX$7=$AND8,INDEX($ANB$8:$ANB$1007,$AND8,1),0),NA()) ->  | BKY8: =IF(ISNUMBER(YE8),IF(BKY$7=$AND8,INDEX($ANB$8:$ANB$1007,$AND8,1),0),NA()) ->  | BKZ8: =IF(ISNUMBER(YF8),IF(BKZ$7=$AND8,INDEX($ANB$8:$ANB$1007,$AND8,1),0),NA()) ->  | BLA8: =IF(ISNUMBER(YG8),IF(BLA$7=$AND8,INDEX($ANB$8:$ANB$1007,$AND8,1),0),NA()) ->  | BLB8: =IF(ISNUMBER(YH8),IF(BLB$7=$AND8,INDEX($ANB$8:$ANB$1007,$AND8,1),0),NA()) ->  | BLC8: =IF(ISNUMBER(YI8),IF(BLC$7=$AND8,INDEX($ANB$8:$ANB$1007,$AND8,1),0),NA()) ->  | BLD8: =IF(ISNUMBER(YJ8),IF(BLD$7=$AND8,INDEX($ANB$8:$ANB$1007,$AND8,1),0),NA()) ->  | BLE8: =IF(ISNUMBER(YK8),IF(BLE$7=$AND8,INDEX($ANB$8:$ANB$1007,$AND8,1),0),NA()) ->  | BLF8: =IF(ISNUMBER(YL8),IF(BLF$7=$AND8,INDEX($ANB$8:$ANB$1007,$AND8,1),0),NA()) ->  | BLG8: =IF(ISNUMBER(YM8),IF(BLG$7=$AND8,INDEX($ANB$8:$ANB$1007,$AND8,1),0),NA()) ->  | BLH8: =IF(ISNUMBER(YN8),IF(BLH$7=$AND8,INDEX($ANB$8:$ANB$1007,$AND8,1),0),NA()) ->  | BLI8: =IF(ISNUMBER(YO8),IF(BLI$7=$AND8,INDEX($ANB$8:$ANB$1007,$AND8,1),0),NA()) ->  | BLJ8: =IF(ISNUMBER(YP8),IF(BLJ$7=$AND8,INDEX($ANB$8:$ANB$1007,$AND8,1),0),NA()) ->  | BLK8: =IF(ISNUMBER(YQ8),IF(BLK$7=$AND8,INDEX($ANB$8:$ANB$1007,$AND8,1),0),NA()) ->  | BLL8: =IF(ISNUMBER(YR8),IF(BLL$7=$AND8,INDEX($ANB$8:$ANB$1007,$AND8,1),0),NA()) ->  | BLM8: =IF(ISNUMBER(YS8),IF(BLM$7=$AND8,INDEX($ANB$8:$ANB$1007,$AND8,1),0),NA()) ->  | BLN8: =IF(ISNUMBER(YT8),IF(BLN$7=$AND8,INDEX($ANB$8:$ANB$1007,$AND8,1),0),NA()) ->  | BLO8: =IF(ISNUMBER(YU8),IF(BLO$7=$AND8,INDEX($ANB$8:$ANB$1007,$AND8,1),0),NA()) ->  | BLP8: =IF(ISNUMBER(YV8),IF(BLP$7=$AND8,INDEX($ANB$8:$ANB$1007,$AND8,1),0),NA()) ->  | BLQ8: =IF(ISNUMBER(YW8),IF(BLQ$7=$AND8,INDEX($ANB$8:$ANB$1007,$AND8,1),0),NA()) ->  | BLR8: =IF(ISNUMBER(YX8),IF(BLR$7=$AND8,INDEX($ANB$8:$ANB$1007,$AND8,1),0),NA()) ->  | BLS8: =IF(ISNUMBER(YY8),IF(BLS$7=$AND8,INDEX($ANB$8:$ANB$1007,$AND8,1),0),NA()) ->  | BLT8: =IF(ISNUMBER(YZ8),IF(BLT$7=$AND8,INDEX($ANB$8:$ANB$1007,$AND8,1),0),NA()) ->  | BLU8: =IF(ISNUMBER(ZA8),IF(BLU$7=$AND8,INDEX($ANB$8:$ANB$1007,$AND8,1),0),NA()) ->  | BLV8: =IF(ISNUMBER(ZB8),IF(BLV$7=$AND8,INDEX($ANB$8:$ANB$1007,$AND8,1),0),NA()) ->  | BLW8: =IF(ISNUMBER(ZC8),IF(BLW$7=$AND8,INDEX($ANB$8:$ANB$1007,$AND8,1),0),NA()) ->  | BLX8: =IF(ISNUMBER(ZD8),IF(BLX$7=$AND8,INDEX($ANB$8:$ANB$1007,$AND8,1),0),NA()) ->  | BLY8: =IF(ISNUMBER(ZE8),IF(BLY$7=$AND8,INDEX($ANB$8:$ANB$1007,$AND8,1),0),NA()) ->  | BLZ8: =IF(ISNUMBER(ZF8),IF(BLZ$7=$AND8,INDEX($ANB$8:$ANB$1007,$AND8,1),0),NA()) ->  | BMA8: =IF(ISNUMBER(ZG8),IF(BMA$7=$AND8,INDEX($ANB$8:$ANB$1007,$AND8,1),0),NA()) ->  | BMB8: =IF(ISNUMBER(ZH8),IF(BMB$7=$AND8,INDEX($ANB$8:$ANB$1007,$AND8,1),0),NA()) ->  | BMC8: =IF(ISNUMBER(ZI8),IF(BMC$7=$AND8,INDEX($ANB$8:$ANB$1007,$AND8,1),0),NA()) ->  | BMD8: =IF(ISNUMBER(ZJ8),IF(BMD$7=$AND8,INDEX($ANB$8:$ANB$1007,$AND8,1),0),NA()) ->  | BME8: =IF(ISNUMBER(ZK8),IF(BME$7=$AND8,INDEX($ANB$8:$ANB$1007,$AND8,1),0),NA()) ->  | BMF8: =IF(ISNUMBER(ZL8),IF(BMF$7=$AND8,INDEX($ANB$8:$ANB$1007,$AND8,1),0),NA()) ->  | BMG8: =IF(ISNUMBER(ZM8),IF(BMG$7=$AND8,INDEX($ANB$8:$ANB$1007,$AND8,1),0),NA()) ->  | BMH8: =IF(ISNUMBER(ZN8),IF(BMH$7=$AND8,INDEX($ANB$8:$ANB$1007,$AND8,1),0),NA()) ->  | BMI8: =IF(ISNUMBER(ZO8),IF(BMI$7=$AND8,INDEX($ANB$8:$ANB$1007,$AND8,1),0),NA()) ->  | BMJ8: =IF(ISNUMBER(ZP8),IF(BMJ$7=$AND8,INDEX($ANB$8:$ANB$1007,$AND8,1),0),NA()) ->  | BMK8: =IF(ISNUMBER(ZQ8),IF(BMK$7=$AND8,INDEX($ANB$8:$ANB$1007,$AND8,1),0),NA()) ->  | BML8: =IF(ISNUMBER(ZR8),IF(BML$7=$AND8,INDEX($ANB$8:$ANB$1007,$AND8,1),0),NA()) ->  | BMM8: =IF(ISNUMBER(ZS8),IF(BMM$7=$AND8,INDEX($ANB$8:$ANB$1007,$AND8,1),0),NA()) ->  | BMN8: =IF(ISNUMBER(ZT8),IF(BMN$7=$AND8,INDEX($ANB$8:$ANB$1007,$AND8,1),0),NA()) ->  | BMO8: =IF(ISNUMBER(ZU8),IF(BMO$7=$AND8,INDEX($ANB$8:$ANB$1007,$AND8,1),0),NA()) ->  | BMP8: =IF(ISNUMBER(ZV8),IF(BMP$7=$AND8,INDEX($ANB$8:$ANB$1007,$AND8,1),0),NA()) ->  | BMQ8: =IF(ISNUMBER(ZW8),IF(BMQ$7=$AND8,INDEX($ANB$8:$ANB$1007,$AND8,1),0),NA()) ->  | BMR8: =IF(ISNUMBER(ZX8),IF(BMR$7=$AND8,INDEX($ANB$8:$ANB$1007,$AND8,1),0),NA()) ->  | BMS8: =IF(ISNUMBER(ZY8),IF(BMS$7=$AND8,INDEX($ANB$8:$ANB$1007,$AND8,1),0),NA()) ->  | BMT8: =IF(ISNUMBER(ZZ8),IF(BMT$7=$AND8,INDEX($ANB$8:$ANB$1007,$AND8,1),0),NA()) ->  | BMU8: =IF(ISNUMBER(AAA8),IF(BMU$7=$AND8,INDEX($ANB$8:$ANB$1007,$AND8,1),0),NA()) ->  | BMV8: =IF(ISNUMBER(AAB8),IF(BMV$7=$AND8,INDEX($ANB$8:$ANB$1007,$AND8,1),0),NA()) ->  | BMW8: =IF(ISNUMBER(AAC8),IF(BMW$7=$AND8,INDEX($ANB$8:$ANB$1007,$AND8,1),0),NA()) ->  | BMX8: =IF(ISNUMBER(AAD8),IF(BMX$7=$AND8,INDEX($ANB$8:$ANB$1007,$AND8,1),0),NA()) ->  | BMY8: =IF(ISNUMBER(AAE8),IF(BMY$7=$AND8,INDEX($ANB$8:$ANB$1007,$AND8,1),0),NA()) ->  | BMZ8: =IF(ISNUMBER(AAF8),IF(BMZ$7=$AND8,INDEX($ANB$8:$ANB$1007,$AND8,1),0),NA()) ->  | BNA8: =IF(ISNUMBER(AAG8),IF(BNA$7=$AND8,INDEX($ANB$8:$ANB$1007,$AND8,1),0),NA()) ->  | BNB8: =IF(ISNUMBER(AAH8),IF(BNB$7=$AND8,INDEX($ANB$8:$ANB$1007,$AND8,1),0),NA()) ->  | BNC8: =IF(ISNUMBER(AAI8),IF(BNC$7=$AND8,INDEX($ANB$8:$ANB$1007,$AND8,1),0),NA()) ->  | BND8: =IF(ISNUMBER(AAJ8),IF(BND$7=$AND8,INDEX($ANB$8:$ANB$1007,$AND8,1),0),NA()) ->  | BNE8: =IF(ISNUMBER(AAK8),IF(BNE$7=$AND8,INDEX($ANB$8:$ANB$1007,$AND8,1),0),NA()) ->  | BNF8: =IF(ISNUMBER(AAL8),IF(BNF$7=$AND8,INDEX($ANB$8:$ANB$1007,$AND8,1),0),NA()) ->  | BNG8: =IF(ISNUMBER(AAM8),IF(BNG$7=$AND8,INDEX($ANB$8:$ANB$1007,$AND8,1),0),NA()) ->  | BNH8: =IF(ISNUMBER(AAN8),IF(BNH$7=$AND8,INDEX($ANB$8:$ANB$1007,$AND8,1),0),NA()) ->  | BNI8: =IF(ISNUMBER(AAO8),IF(BNI$7=$AND8,INDEX($ANB$8:$ANB$1007,$AND8,1),0),NA()) ->  | BNJ8: =IF(ISNUMBER(AAP8),IF(BNJ$7=$AND8,INDEX($ANB$8:$ANB$1007,$AND8,1),0),NA()) ->  | BNK8: =IF(ISNUMBER(AAQ8),IF(BNK$7=$AND8,INDEX($ANB$8:$ANB$1007,$AND8,1),0),NA()) ->  | BNL8: =IF(ISNUMBER(AAR8),IF(BNL$7=$AND8,INDEX($ANB$8:$ANB$1007,$AND8,1),0),NA()) ->  | BNM8: =IF(ISNUMBER(AAS8),IF(BNM$7=$AND8,INDEX($ANB$8:$ANB$1007,$AND8,1),0),NA()) ->  | BNN8: =IF(ISNUMBER(AAT8),IF(BNN$7=$AND8,INDEX($ANB$8:$ANB$1007,$AND8,1),0),NA()) ->  | BNO8: =IF(ISNUMBER(AAU8),IF(BNO$7=$AND8,INDEX($ANB$8:$ANB$1007,$AND8,1),0),NA()) ->  | BNP8: =IF(ISNUMBER(AAV8),IF(BNP$7=$AND8,INDEX($ANB$8:$ANB$1007,$AND8,1),0),NA()) ->  | BNQ8: =IF(ISNUMBER(AAW8),IF(BNQ$7=$AND8,INDEX($ANB$8:$ANB$1007,$AND8,1),0),NA()) ->  | BNR8: =IF(ISNUMBER(AAX8),IF(BNR$7=$AND8,INDEX($ANB$8:$ANB$1007,$AND8,1),0),NA()) ->  | BNS8: =IF(ISNUMBER(AAY8),IF(BNS$7=$AND8,INDEX($ANB$8:$ANB$1007,$AND8,1),0),NA()) ->  | BNT8: =IF(ISNUMBER(AAZ8),IF(BNT$7=$AND8,INDEX($ANB$8:$ANB$1007,$AND8,1),0),NA()) ->  | BNU8: =IF(ISNUMBER(ABA8),IF(BNU$7=$AND8,INDEX($ANB$8:$ANB$1007,$AND8,1),0),NA()) ->  | BNV8: =IF(ISNUMBER(ABB8),IF(BNV$7=$AND8,INDEX($ANB$8:$ANB$1007,$AND8,1),0),NA()) ->  | BNW8: =IF(ISNUMBER(ABC8),IF(BNW$7=$AND8,INDEX($ANB$8:$ANB$1007,$AND8,1),0),NA()) ->  | BNX8: =IF(ISNUMBER(ABD8),IF(BNX$7=$AND8,INDEX($ANB$8:$ANB$1007,$AND8,1),0),NA()) ->  | BNY8: =IF(ISNUMBER(ABE8),IF(BNY$7=$AND8,INDEX($ANB$8:$ANB$1007,$AND8,1),0),NA()) ->  | BNZ8: =IF(ISNUMBER(ABF8),IF(BNZ$7=$AND8,INDEX($ANB$8:$ANB$1007,$AND8,1),0),NA()) ->  | BOA8: =IF(ISNUMBER(ABG8),IF(BOA$7=$AND8,INDEX($ANB$8:$ANB$1007,$AND8,1),0),NA()) ->  | BOB8: =IF(ISNUMBER(ABH8),IF(BOB$7=$AND8,INDEX($ANB$8:$ANB$1007,$AND8,1),0),NA()) ->  | BOC8: =IF(ISNUMBER(ABI8),IF(BOC$7=$AND8,INDEX($ANB$8:$ANB$1007,$AND8,1),0),NA()) ->  | BOD8: =IF(ISNUMBER(ABJ8),IF(BOD$7=$AND8,INDEX($ANB$8:$ANB$1007,$AND8,1),0),NA()) ->  | BOE8: =IF(ISNUMBER(ABK8),IF(BOE$7=$AND8,INDEX($ANB$8:$ANB$1007,$AND8,1),0),NA()) ->  | BOF8: =IF(ISNUMBER(ABL8),IF(BOF$7=$AND8,INDEX($ANB$8:$ANB$1007,$AND8,1),0),NA()) ->  | BOG8: =IF(ISNUMBER(ABM8),IF(BOG$7=$AND8,INDEX($ANB$8:$ANB$1007,$AND8,1),0),NA()) ->  | BOH8: =IF(ISNUMBER(ABN8),IF(BOH$7=$AND8,INDEX($ANB$8:$ANB$1007,$AND8,1),0),NA()) ->  | BOI8: =IF(ISNUMBER(ABO8),IF(BOI$7=$AND8,INDEX($ANB$8:$ANB$1007,$AND8,1),0),NA()) ->  | BOJ8: =IF(ISNUMBER(ABP8),IF(BOJ$7=$AND8,INDEX($ANB$8:$ANB$1007,$AND8,1),0),NA()) ->  | BOK8: =IF(ISNUMBER(ABQ8),IF(BOK$7=$AND8,INDEX($ANB$8:$ANB$1007,$AND8,1),0),NA()) ->  | BOL8: =IF(ISNUMBER(ABR8),IF(BOL$7=$AND8,INDEX($ANB$8:$ANB$1007,$AND8,1),0),NA()) ->  | BOM8: =IF(ISNUMBER(ABS8),IF(BOM$7=$AND8,INDEX($ANB$8:$ANB$1007,$AND8,1),0),NA()) ->  | BON8: =IF(ISNUMBER(ABT8),IF(BON$7=$AND8,INDEX($ANB$8:$ANB$1007,$AND8,1),0),NA()) ->  | BOO8: =IF(ISNUMBER(ABU8),IF(BOO$7=$AND8,INDEX($ANB$8:$ANB$1007,$AND8,1),0),NA()) ->  | BOP8: =IF(ISNUMBER(ABV8),IF(BOP$7=$AND8,INDEX($ANB$8:$ANB$1007,$AND8,1),0),NA()) ->  | BOQ8: =IF(ISNUMBER(ABW8),IF(BOQ$7=$AND8,INDEX($ANB$8:$ANB$1007,$AND8,1),0),NA()) ->  | BOR8: =IF(ISNUMBER(ABX8),IF(BOR$7=$AND8,INDEX($ANB$8:$ANB$1007,$AND8,1),0),NA()) ->  | BOS8: =IF(ISNUMBER(ABY8),IF(BOS$7=$AND8,INDEX($ANB$8:$ANB$1007,$AND8,1),0),NA()) ->  | BOT8: =IF(ISNUMBER(ABZ8),IF(BOT$7=$AND8,INDEX($ANB$8:$ANB$1007,$AND8,1),0),NA()) ->  | BOU8: =IF(ISNUMBER(ACA8),IF(BOU$7=$AND8,INDEX($ANB$8:$ANB$1007,$AND8,1),0),NA()) ->  | BOV8: =IF(ISNUMBER(ACB8),IF(BOV$7=$AND8,INDEX($ANB$8:$ANB$1007,$AND8,1),0),NA()) ->  | BOW8: =IF(ISNUMBER(ACC8),IF(BOW$7=$AND8,INDEX($ANB$8:$ANB$1007,$AND8,1),0),NA()) ->  | BOX8: =IF(ISNUMBER(ACD8),IF(BOX$7=$AND8,INDEX($ANB$8:$ANB$1007,$AND8,1),0),NA()) ->  | BOY8: =IF(ISNUMBER(ACE8),IF(BOY$7=$AND8,INDEX($ANB$8:$ANB$1007,$AND8,1),0),NA()) ->  | BOZ8: =IF(ISNUMBER(ACF8),IF(BOZ$7=$AND8,INDEX($ANB$8:$ANB$1007,$AND8,1),0),NA()) ->  | BPA8: =IF(ISNUMBER(ACG8),IF(BPA$7=$AND8,INDEX($ANB$8:$ANB$1007,$AND8,1),0),NA()) ->  | BPB8: =IF(ISNUMBER(ACH8),IF(BPB$7=$AND8,INDEX($ANB$8:$ANB$1007,$AND8,1),0),NA()) ->  | BPC8: =IF(ISNUMBER(ACI8),IF(BPC$7=$AND8,INDEX($ANB$8:$ANB$1007,$AND8,1),0),NA()) ->  | BPD8: =IF(ISNUMBER(ACJ8),IF(BPD$7=$AND8,INDEX($ANB$8:$ANB$1007,$AND8,1),0),NA()) ->  | BPE8: =IF(ISNUMBER(ACK8),IF(BPE$7=$AND8,INDEX($ANB$8:$ANB$1007,$AND8,1),0),NA()) ->  | BPF8: =IF(ISNUMBER(ACL8),IF(BPF$7=$AND8,INDEX($ANB$8:$ANB$1007,$AND8,1),0),NA()) ->  | BPG8: =IF(ISNUMBER(ACM8),IF(BPG$7=$AND8,INDEX($ANB$8:$ANB$1007,$AND8,1),0),NA()) ->  | BPH8: =IF(ISNUMBER(ACN8),IF(BPH$7=$AND8,INDEX($ANB$8:$ANB$1007,$AND8,1),0),NA()) ->  | BPI8: =IF(ISNUMBER(ACO8),IF(BPI$7=$AND8,INDEX($ANB$8:$ANB$1007,$AND8,1),0),NA()) ->  | BPJ8: =IF(ISNUMBER(ACP8),IF(BPJ$7=$AND8,INDEX($ANB$8:$ANB$1007,$AND8,1),0),NA()) ->  | BPK8: =IF(ISNUMBER(ACQ8),IF(BPK$7=$AND8,INDEX($ANB$8:$ANB$1007,$AND8,1),0),NA()) ->  | BPL8: =IF(ISNUMBER(ACR8),IF(BPL$7=$AND8,INDEX($ANB$8:$ANB$1007,$AND8,1),0),NA()) ->  | BPM8: =IF(ISNUMBER(ACS8),IF(BPM$7=$AND8,INDEX($ANB$8:$ANB$1007,$AND8,1),0),NA()) ->  | BPN8: =IF(ISNUMBER(ACT8),IF(BPN$7=$AND8,INDEX($ANB$8:$ANB$1007,$AND8,1),0),NA()) ->  | BPO8: =IF(ISNUMBER(ACU8),IF(BPO$7=$AND8,INDEX($ANB$8:$ANB$1007,$AND8,1),0),NA()) ->  | BPP8: =IF(ISNUMBER(ACV8),IF(BPP$7=$AND8,INDEX($ANB$8:$ANB$1007,$AND8,1),0),NA()) ->  | BPQ8: =IF(ISNUMBER(ACW8),IF(BPQ$7=$AND8,INDEX($ANB$8:$ANB$1007,$AND8,1),0),NA()) ->  | BPR8: =IF(ISNUMBER(ACX8),IF(BPR$7=$AND8,INDEX($ANB$8:$ANB$1007,$AND8,1),0),NA()) ->  | BPS8: =IF(ISNUMBER(ACY8),IF(BPS$7=$AND8,INDEX($ANB$8:$ANB$1007,$AND8,1),0),NA()) ->  | BPT8: =IF(ISNUMBER(ACZ8),IF(BPT$7=$AND8,INDEX($ANB$8:$ANB$1007,$AND8,1),0),NA()) ->  | BPU8: =IF(ISNUMBER(ADA8),IF(BPU$7=$AND8,INDEX($ANB$8:$ANB$1007,$AND8,1),0),NA()) ->  | BPV8: =IF(ISNUMBER(ADB8),IF(BPV$7=$AND8,INDEX($ANB$8:$ANB$1007,$AND8,1),0),NA()) ->  | BPW8: =IF(ISNUMBER(ADC8),IF(BPW$7=$AND8,INDEX($ANB$8:$ANB$1007,$AND8,1),0),NA()) ->  | BPX8: =IF(ISNUMBER(ADD8),IF(BPX$7=$AND8,INDEX($ANB$8:$ANB$1007,$AND8,1),0),NA()) ->  | BPY8: =IF(ISNUMBER(ADE8),IF(BPY$7=$AND8,INDEX($ANB$8:$ANB$1007,$AND8,1),0),NA()) ->  | BPZ8: =IF(ISNUMBER(ADF8),IF(BPZ$7=$AND8,INDEX($ANB$8:$ANB$1007,$AND8,1),0),NA()) ->  | BQA8: =IF(ISNUMBER(ADG8),IF(BQA$7=$AND8,INDEX($ANB$8:$ANB$1007,$AND8,1),0),NA()) ->  | BQB8: =IF(ISNUMBER(ADH8),IF(BQB$7=$AND8,INDEX($ANB$8:$ANB$1007,$AND8,1),0),NA()) ->  | BQC8: =IF(ISNUMBER(ADI8),IF(BQC$7=$AND8,INDEX($ANB$8:$ANB$1007,$AND8,1),0),NA()) ->  | BQD8: =IF(ISNUMBER(ADJ8),IF(BQD$7=$AND8,INDEX($ANB$8:$ANB$1007,$AND8,1),0),NA()) ->  | BQE8: =IF(ISNUMBER(ADK8),IF(BQE$7=$AND8,INDEX($ANB$8:$ANB$1007,$AND8,1),0),NA()) ->  | BQF8: =IF(ISNUMBER(ADL8),IF(BQF$7=$AND8,INDEX($ANB$8:$ANB$1007,$AND8,1),0),NA()) ->  | BQG8: =IF(ISNUMBER(ADM8),IF(BQG$7=$AND8,INDEX($ANB$8:$ANB$1007,$AND8,1),0),NA()) ->  | BQH8: =IF(ISNUMBER(ADN8),IF(BQH$7=$AND8,INDEX($ANB$8:$ANB$1007,$AND8,1),0),NA()) ->  | BQI8: =IF(ISNUMBER(ADO8),IF(BQI$7=$AND8,INDEX($ANB$8:$ANB$1007,$AND8,1),0),NA()) ->  | BQJ8: =IF(ISNUMBER(ADP8),IF(BQJ$7=$AND8,INDEX($ANB$8:$ANB$1007,$AND8,1),0),NA()) ->  | BQK8: =IF(ISNUMBER(ADQ8),IF(BQK$7=$AND8,INDEX($ANB$8:$ANB$1007,$AND8,1),0),NA()) ->  | BQL8: =IF(ISNUMBER(ADR8),IF(BQL$7=$AND8,INDEX($ANB$8:$ANB$1007,$AND8,1),0),NA()) ->  | BQM8: =IF(ISNUMBER(ADS8),IF(BQM$7=$AND8,INDEX($ANB$8:$ANB$1007,$AND8,1),0),NA()) ->  | BQN8: =IF(ISNUMBER(ADT8),IF(BQN$7=$AND8,INDEX($ANB$8:$ANB$1007,$AND8,1),0),NA()) ->  | BQO8: =IF(ISNUMBER(ADU8),IF(BQO$7=$AND8,INDEX($ANB$8:$ANB$1007,$AND8,1),0),NA()) ->  | BQP8: =IF(ISNUMBER(ADV8),IF(BQP$7=$AND8,INDEX($ANB$8:$ANB$1007,$AND8,1),0),NA()) ->  | BQQ8: =IF(ISNUMBER(ADW8),IF(BQQ$7=$AND8,INDEX($ANB$8:$ANB$1007,$AND8,1),0),NA()) ->  | BQR8: =IF(ISNUMBER(ADX8),IF(BQR$7=$AND8,INDEX($ANB$8:$ANB$1007,$AND8,1),0),NA()) ->  | BQS8: =IF(ISNUMBER(ADY8),IF(BQS$7=$AND8,INDEX($ANB$8:$ANB$1007,$AND8,1),0),NA()) ->  | BQT8: =IF(ISNUMBER(ADZ8),IF(BQT$7=$AND8,INDEX($ANB$8:$ANB$1007,$AND8,1),0),NA()) ->  | BQU8: =IF(ISNUMBER(AEA8),IF(BQU$7=$AND8,INDEX($ANB$8:$ANB$1007,$AND8,1),0),NA()) ->  | BQV8: =IF(ISNUMBER(AEB8),IF(BQV$7=$AND8,INDEX($ANB$8:$ANB$1007,$AND8,1),0),NA()) ->  | BQW8: =IF(ISNUMBER(AEC8),IF(BQW$7=$AND8,INDEX($ANB$8:$ANB$1007,$AND8,1),0),NA()) ->  | BQX8: =IF(ISNUMBER(AED8),IF(BQX$7=$AND8,INDEX($ANB$8:$ANB$1007,$AND8,1),0),NA()) ->  | BQY8: =IF(ISNUMBER(AEE8),IF(BQY$7=$AND8,INDEX($ANB$8:$ANB$1007,$AND8,1),0),NA()) ->  | BQZ8: =IF(ISNUMBER(AEF8),IF(BQZ$7=$AND8,INDEX($ANB$8:$ANB$1007,$AND8,1),0),NA()) ->  | BRA8: =IF(ISNUMBER(AEG8),IF(BRA$7=$AND8,INDEX($ANB$8:$ANB$1007,$AND8,1),0),NA()) ->  | BRB8: =IF(ISNUMBER(AEH8),IF(BRB$7=$AND8,INDEX($ANB$8:$ANB$1007,$AND8,1),0),NA()) ->  | BRC8: =IF(ISNUMBER(AEI8),IF(BRC$7=$AND8,INDEX($ANB$8:$ANB$1007,$AND8,1),0),NA()) ->  | BRD8: =IF(ISNUMBER(AEJ8),IF(BRD$7=$AND8,INDEX($ANB$8:$ANB$1007,$AND8,1),0),NA()) ->  | BRE8: =IF(ISNUMBER(AEK8),IF(BRE$7=$AND8,INDEX($ANB$8:$ANB$1007,$AND8,1),0),NA()) ->  | BRF8: =IF(ISNUMBER(AEL8),IF(BRF$7=$AND8,INDEX($ANB$8:$ANB$1007,$AND8,1),0),NA()) ->  | BRG8: =IF(ISNUMBER(AEM8),IF(BRG$7=$AND8,INDEX($ANB$8:$ANB$1007,$AND8,1),0),NA()) ->  | BRH8: =IF(ISNUMBER(AEN8),IF(BRH$7=$AND8,INDEX($ANB$8:$ANB$1007,$AND8,1),0),NA()) ->  | BRI8: =IF(ISNUMBER(AEO8),IF(BRI$7=$AND8,INDEX($ANB$8:$ANB$1007,$AND8,1),0),NA()) ->  | BRJ8: =IF(ISNUMBER(AEP8),IF(BRJ$7=$AND8,INDEX($ANB$8:$ANB$1007,$AND8,1),0),NA()) ->  | BRK8: =IF(ISNUMBER(AEQ8),IF(BRK$7=$AND8,INDEX($ANB$8:$ANB$1007,$AND8,1),0),NA()) ->  | BRL8: =IF(ISNUMBER(AER8),IF(BRL$7=$AND8,INDEX($ANB$8:$ANB$1007,$AND8,1),0),NA()) ->  | BRM8: =IF(ISNUMBER(AES8),IF(BRM$7=$AND8,INDEX($ANB$8:$ANB$1007,$AND8,1),0),NA()) ->  | BRN8: =IF(ISNUMBER(AET8),IF(BRN$7=$AND8,INDEX($ANB$8:$ANB$1007,$AND8,1),0),NA()) ->  | BRO8: =IF(ISNUMBER(AEU8),IF(BRO$7=$AND8,INDEX($ANB$8:$ANB$1007,$AND8,1),0),NA()) ->  | BRP8: =IF(ISNUMBER(AEV8),IF(BRP$7=$AND8,INDEX($ANB$8:$ANB$1007,$AND8,1),0),NA()) ->  | BRQ8: =IF(ISNUMBER(AEW8),IF(BRQ$7=$AND8,INDEX($ANB$8:$ANB$1007,$AND8,1),0),NA()) ->  | BRR8: =IF(ISNUMBER(AEX8),IF(BRR$7=$AND8,INDEX($ANB$8:$ANB$1007,$AND8,1),0),NA()) ->  | BRS8: =IF(ISNUMBER(AEY8),IF(BRS$7=$AND8,INDEX($ANB$8:$ANB$1007,$AND8,1),0),NA()) ->  | BRT8: =IF(ISNUMBER(AEZ8),IF(BRT$7=$AND8,INDEX($ANB$8:$ANB$1007,$AND8,1),0),NA()) ->  | BRU8: =IF(ISNUMBER(AFA8),IF(BRU$7=$AND8,INDEX($ANB$8:$ANB$1007,$AND8,1),0),NA()) ->  | BRV8: =IF(ISNUMBER(AFB8),IF(BRV$7=$AND8,INDEX($ANB$8:$ANB$1007,$AND8,1),0),NA()) ->  | BRW8: =IF(ISNUMBER(AFC8),IF(BRW$7=$AND8,INDEX($ANB$8:$ANB$1007,$AND8,1),0),NA()) ->  | BRX8: =IF(ISNUMBER(AFD8),IF(BRX$7=$AND8,INDEX($ANB$8:$ANB$1007,$AND8,1),0),NA()) ->  | BRY8: =IF(ISNUMBER(AFE8),IF(BRY$7=$AND8,INDEX($ANB$8:$ANB$1007,$AND8,1),0),NA()) ->  | BRZ8: =IF(ISNUMBER(AFF8),IF(BRZ$7=$AND8,INDEX($ANB$8:$ANB$1007,$AND8,1),0),NA()) ->  | BSA8: =IF(ISNUMBER(AFG8),IF(BSA$7=$AND8,INDEX($ANB$8:$ANB$1007,$AND8,1),0),NA()) ->  | BSB8: =IF(ISNUMBER(AFH8),IF(BSB$7=$AND8,INDEX($ANB$8:$ANB$1007,$AND8,1),0),NA()) ->  | BSC8: =IF(ISNUMBER(AFI8),IF(BSC$7=$AND8,INDEX($ANB$8:$ANB$1007,$AND8,1),0),NA()) ->  | BSD8: =IF(ISNUMBER(AFJ8),IF(BSD$7=$AND8,INDEX($ANB$8:$ANB$1007,$AND8,1),0),NA()) ->  | BSE8: =IF(ISNUMBER(AFK8),IF(BSE$7=$AND8,INDEX($ANB$8:$ANB$1007,$AND8,1),0),NA()) ->  | BSF8: =IF(ISNUMBER(AFL8),IF(BSF$7=$AND8,INDEX($ANB$8:$ANB$1007,$AND8,1),0),NA()) ->  | BSG8: =IF(ISNUMBER(AFM8),IF(BSG$7=$AND8,INDEX($ANB$8:$ANB$1007,$AND8,1),0),NA()) ->  | BSH8: =IF(ISNUMBER(AFN8),IF(BSH$7=$AND8,INDEX($ANB$8:$ANB$1007,$AND8,1),0),NA()) ->  | BSI8: =IF(ISNUMBER(AFO8),IF(BSI$7=$AND8,INDEX($ANB$8:$ANB$1007,$AND8,1),0),NA()) ->  | BSJ8: =IF(ISNUMBER(AFP8),IF(BSJ$7=$AND8,INDEX($ANB$8:$ANB$1007,$AND8,1),0),NA()) ->  | BSK8: =IF(ISNUMBER(AFQ8),IF(BSK$7=$AND8,INDEX($ANB$8:$ANB$1007,$AND8,1),0),NA()) ->  | BSL8: =IF(ISNUMBER(AFR8),IF(BSL$7=$AND8,INDEX($ANB$8:$ANB$1007,$AND8,1),0),NA()) ->  | BSM8: =IF(ISNUMBER(AFS8),IF(BSM$7=$AND8,INDEX($ANB$8:$ANB$1007,$AND8,1),0),NA()) ->  | BSN8: =IF(ISNUMBER(AFT8),IF(BSN$7=$AND8,INDEX($ANB$8:$ANB$1007,$AND8,1),0),NA()) ->  | BSO8: =IF(ISNUMBER(AFU8),IF(BSO$7=$AND8,INDEX($ANB$8:$ANB$1007,$AND8,1),0),NA()) ->  | BSP8: =IF(ISNUMBER(AFV8),IF(BSP$7=$AND8,INDEX($ANB$8:$ANB$1007,$AND8,1),0),NA()) ->  | BSQ8: =IF(ISNUMBER(AFW8),IF(BSQ$7=$AND8,INDEX($ANB$8:$ANB$1007,$AND8,1),0),NA()) ->  | BSR8: =IF(ISNUMBER(AFX8),IF(BSR$7=$AND8,INDEX($ANB$8:$ANB$1007,$AND8,1),0),NA()) ->  | BSS8: =IF(ISNUMBER(AFY8),IF(BSS$7=$AND8,INDEX($ANB$8:$ANB$1007,$AND8,1),0),NA()) ->  | BST8: =IF(ISNUMBER(AFZ8),IF(BST$7=$AND8,INDEX($ANB$8:$ANB$1007,$AND8,1),0),NA()) ->  | BSU8: =IF(ISNUMBER(AGA8),IF(BSU$7=$AND8,INDEX($ANB$8:$ANB$1007,$AND8,1),0),NA()) ->  | BSV8: =IF(ISNUMBER(AGB8),IF(BSV$7=$AND8,INDEX($ANB$8:$ANB$1007,$AND8,1),0),NA()) ->  | BSW8: =IF(ISNUMBER(AGC8),IF(BSW$7=$AND8,INDEX($ANB$8:$ANB$1007,$AND8,1),0),NA()) ->  | BSX8: =IF(ISNUMBER(AGD8),IF(BSX$7=$AND8,INDEX($ANB$8:$ANB$1007,$AND8,1),0),NA()) ->  | BSY8: =IF(ISNUMBER(AGE8),IF(BSY$7=$AND8,INDEX($ANB$8:$ANB$1007,$AND8,1),0),NA()) ->  | BSZ8: =IF(ISNUMBER(AGF8),IF(BSZ$7=$AND8,INDEX($ANB$8:$ANB$1007,$AND8,1),0),NA()) ->  | BTA8: =IF(ISNUMBER(AGG8),IF(BTA$7=$AND8,INDEX($ANB$8:$ANB$1007,$AND8,1),0),NA()) ->  | BTB8: =IF(ISNUMBER(AGH8),IF(BTB$7=$AND8,INDEX($ANB$8:$ANB$1007,$AND8,1),0),NA()) ->  | BTC8: =IF(ISNUMBER(AGI8),IF(BTC$7=$AND8,INDEX($ANB$8:$ANB$1007,$AND8,1),0),NA()) ->  | BTD8: =IF(ISNUMBER(AGJ8),IF(BTD$7=$AND8,INDEX($ANB$8:$ANB$1007,$AND8,1),0),NA()) ->  | BTE8: =IF(ISNUMBER(AGK8),IF(BTE$7=$AND8,INDEX($ANB$8:$ANB$1007,$AND8,1),0),NA()) ->  | BTF8: =IF(ISNUMBER(AGL8),IF(BTF$7=$AND8,INDEX($ANB$8:$ANB$1007,$AND8,1),0),NA()) ->  | BTG8: =IF(ISNUMBER(AGM8),IF(BTG$7=$AND8,INDEX($ANB$8:$ANB$1007,$AND8,1),0),NA()) ->  | BTH8: =IF(ISNUMBER(AGN8),IF(BTH$7=$AND8,INDEX($ANB$8:$ANB$1007,$AND8,1),0),NA()) ->  | BTI8: =IF(ISNUMBER(AGO8),IF(BTI$7=$AND8,INDEX($ANB$8:$ANB$1007,$AND8,1),0),NA()) ->  | BTJ8: =IF(ISNUMBER(AGP8),IF(BTJ$7=$AND8,INDEX($ANB$8:$ANB$1007,$AND8,1),0),NA()) ->  | BTK8: =IF(ISNUMBER(AGQ8),IF(BTK$7=$AND8,INDEX($ANB$8:$ANB$1007,$AND8,1),0),NA()) ->  | BTL8: =IF(ISNUMBER(AGR8),IF(BTL$7=$AND8,INDEX($ANB$8:$ANB$1007,$AND8,1),0),NA()) ->  | BTM8: =IF(ISNUMBER(AGS8),IF(BTM$7=$AND8,INDEX($ANB$8:$ANB$1007,$AND8,1),0),NA()) ->  | BTN8: =IF(ISNUMBER(AGT8),IF(BTN$7=$AND8,INDEX($ANB$8:$ANB$1007,$AND8,1),0),NA()) ->  | BTO8: =IF(ISNUMBER(AGU8),IF(BTO$7=$AND8,INDEX($ANB$8:$ANB$1007,$AND8,1),0),NA()) ->  | BTP8: =IF(ISNUMBER(AGV8),IF(BTP$7=$AND8,INDEX($ANB$8:$ANB$1007,$AND8,1),0),NA()) ->  | BTQ8: =IF(ISNUMBER(AGW8),IF(BTQ$7=$AND8,INDEX($ANB$8:$ANB$1007,$AND8,1),0),NA()) ->  | BTR8: =IF(ISNUMBER(AGX8),IF(BTR$7=$AND8,INDEX($ANB$8:$ANB$1007,$AND8,1),0),NA()) ->  | BTS8: =IF(ISNUMBER(AGY8),IF(BTS$7=$AND8,INDEX($ANB$8:$ANB$1007,$AND8,1),0),NA()) ->  | BTT8: =IF(ISNUMBER(AGZ8),IF(BTT$7=$AND8,INDEX($ANB$8:$ANB$1007,$AND8,1),0),NA()) ->  | BTU8: =IF(ISNUMBER(AHA8),IF(BTU$7=$AND8,INDEX($ANB$8:$ANB$1007,$AND8,1),0),NA()) ->  | BTV8: =IF(ISNUMBER(AHB8),IF(BTV$7=$AND8,INDEX($ANB$8:$ANB$1007,$AND8,1),0),NA()) ->  | BTW8: =IF(ISNUMBER(AHC8),IF(BTW$7=$AND8,INDEX($ANB$8:$ANB$1007,$AND8,1),0),NA()) ->  | BTX8: =IF(ISNUMBER(AHD8),IF(BTX$7=$AND8,INDEX($ANB$8:$ANB$1007,$AND8,1),0),NA()) ->  | BTY8: =IF(ISNUMBER(AHE8),IF(BTY$7=$AND8,INDEX($ANB$8:$ANB$1007,$AND8,1),0),NA()) ->  | BTZ8: =IF(ISNUMBER(AHF8),IF(BTZ$7=$AND8,INDEX($ANB$8:$ANB$1007,$AND8,1),0),NA()) ->  | BUA8: =IF(ISNUMBER(AHG8),IF(BUA$7=$AND8,INDEX($ANB$8:$ANB$1007,$AND8,1),0),NA()) ->  | BUB8: =IF(ISNUMBER(AHH8),IF(BUB$7=$AND8,INDEX($ANB$8:$ANB$1007,$AND8,1),0),NA()) ->  | BUC8: =IF(ISNUMBER(AHI8),IF(BUC$7=$AND8,INDEX($ANB$8:$ANB$1007,$AND8,1),0),NA()) ->  | BUD8: =IF(ISNUMBER(AHJ8),IF(BUD$7=$AND8,INDEX($ANB$8:$ANB$1007,$AND8,1),0),NA()) ->  | BUE8: =IF(ISNUMBER(AHK8),IF(BUE$7=$AND8,INDEX($ANB$8:$ANB$1007,$AND8,1),0),NA()) ->  | BUF8: =IF(ISNUMBER(AHL8),IF(BUF$7=$AND8,INDEX($ANB$8:$ANB$1007,$AND8,1),0),NA()) ->  | BUG8: =IF(ISNUMBER(AHM8),IF(BUG$7=$AND8,INDEX($ANB$8:$ANB$1007,$AND8,1),0),NA()) ->  | BUH8: =IF(ISNUMBER(AHN8),IF(BUH$7=$AND8,INDEX($ANB$8:$ANB$1007,$AND8,1),0),NA()) ->  | BUI8: =IF(ISNUMBER(AHO8),IF(BUI$7=$AND8,INDEX($ANB$8:$ANB$1007,$AND8,1),0),NA()) ->  | BUJ8: =IF(ISNUMBER(AHP8),IF(BUJ$7=$AND8,INDEX($ANB$8:$ANB$1007,$AND8,1),0),NA()) ->  | BUK8: =IF(ISNUMBER(AHQ8),IF(BUK$7=$AND8,INDEX($ANB$8:$ANB$1007,$AND8,1),0),NA()) ->  | BUL8: =IF(ISNUMBER(AHR8),IF(BUL$7=$AND8,INDEX($ANB$8:$ANB$1007,$AND8,1),0),NA()) ->  | BUM8: =IF(ISNUMBER(AHS8),IF(BUM$7=$AND8,INDEX($ANB$8:$ANB$1007,$AND8,1),0),NA()) ->  | BUN8: =IF(ISNUMBER(AHT8),IF(BUN$7=$AND8,INDEX($ANB$8:$ANB$1007,$AND8,1),0),NA()) ->  | BUO8: =IF(ISNUMBER(AHU8),IF(BUO$7=$AND8,INDEX($ANB$8:$ANB$1007,$AND8,1),0),NA()) ->  | BUP8: =IF(ISNUMBER(AHV8),IF(BUP$7=$AND8,INDEX($ANB$8:$ANB$1007,$AND8,1),0),NA()) ->  | BUQ8: =IF(ISNUMBER(AHW8),IF(BUQ$7=$AND8,INDEX($ANB$8:$ANB$1007,$AND8,1),0),NA()) ->  | BUR8: =IF(ISNUMBER(AHX8),IF(BUR$7=$AND8,INDEX($ANB$8:$ANB$1007,$AND8,1),0),NA()) ->  | BUS8: =IF(ISNUMBER(AHY8),IF(BUS$7=$AND8,INDEX($ANB$8:$ANB$1007,$AND8,1),0),NA()) ->  | BUT8: =IF(ISNUMBER(AHZ8),IF(BUT$7=$AND8,INDEX($ANB$8:$ANB$1007,$AND8,1),0),NA()) ->  | BUU8: =IF(ISNUMBER(AIA8),IF(BUU$7=$AND8,INDEX($ANB$8:$ANB$1007,$AND8,1),0),NA()) ->  | BUV8: =IF(ISNUMBER(AIB8),IF(BUV$7=$AND8,INDEX($ANB$8:$ANB$1007,$AND8,1),0),NA()) ->  | BUW8: =IF(ISNUMBER(AIC8),IF(BUW$7=$AND8,INDEX($ANB$8:$ANB$1007,$AND8,1),0),NA()) ->  | BUX8: =IF(ISNUMBER(AID8),IF(BUX$7=$AND8,INDEX($ANB$8:$ANB$1007,$AND8,1),0),NA()) ->  | BUY8: =IF(ISNUMBER(AIE8),IF(BUY$7=$AND8,INDEX($ANB$8:$ANB$1007,$AND8,1),0),NA()) ->  | BUZ8: =IF(ISNUMBER(AIF8),IF(BUZ$7=$AND8,INDEX($ANB$8:$ANB$1007,$AND8,1),0),NA()) ->  | BVA8: =IF(ISNUMBER(AIG8),IF(BVA$7=$AND8,INDEX($ANB$8:$ANB$1007,$AND8,1),0),NA()) ->  | BVB8: =IF(ISNUMBER(AIH8),IF(BVB$7=$AND8,INDEX($ANB$8:$ANB$1007,$AND8,1),0),NA()) ->  | BVC8: =IF(ISNUMBER(AII8),IF(BVC$7=$AND8,INDEX($ANB$8:$ANB$1007,$AND8,1),0),NA()) ->  | BVD8: =IF(ISNUMBER(AIJ8),IF(BVD$7=$AND8,INDEX($ANB$8:$ANB$1007,$AND8,1),0),NA()) ->  | BVE8: =IF(ISNUMBER(AIK8),IF(BVE$7=$AND8,INDEX($ANB$8:$ANB$1007,$AND8,1),0),NA()) ->  | BVF8: =IF(ISNUMBER(AIL8),IF(BVF$7=$AND8,INDEX($ANB$8:$ANB$1007,$AND8,1),0),NA()) ->  | BVG8: =IF(ISNUMBER(AIM8),IF(BVG$7=$AND8,INDEX($ANB$8:$ANB$1007,$AND8,1),0),NA()) ->  | BVH8: =IF(ISNUMBER(AIN8),IF(BVH$7=$AND8,INDEX($ANB$8:$ANB$1007,$AND8,1),0),NA()) ->  | BVI8: =IF(ISNUMBER(AIO8),IF(BVI$7=$AND8,INDEX($ANB$8:$ANB$1007,$AND8,1),0),NA()) ->  | BVJ8: =IF(ISNUMBER(AIP8),IF(BVJ$7=$AND8,INDEX($ANB$8:$ANB$1007,$AND8,1),0),NA()) ->  | BVK8: =IF(ISNUMBER(AIQ8),IF(BVK$7=$AND8,INDEX($ANB$8:$ANB$1007,$AND8,1),0),NA()) ->  | BVL8: =IF(ISNUMBER(AIR8),IF(BVL$7=$AND8,INDEX($ANB$8:$ANB$1007,$AND8,1),0),NA()) ->  | BVM8: =IF(ISNUMBER(AIS8),IF(BVM$7=$AND8,INDEX($ANB$8:$ANB$1007,$AND8,1),0),NA()) ->  | BVN8: =IF(ISNUMBER(AIT8),IF(BVN$7=$AND8,INDEX($ANB$8:$ANB$1007,$AND8,1),0),NA()) ->  | BVO8: =IF(ISNUMBER(AIU8),IF(BVO$7=$AND8,INDEX($ANB$8:$ANB$1007,$AND8,1),0),NA()) ->  | BVP8: =IF(ISNUMBER(AIV8),IF(BVP$7=$AND8,INDEX($ANB$8:$ANB$1007,$AND8,1),0),NA()) ->  | BVQ8: =IF(ISNUMBER(AIW8),IF(BVQ$7=$AND8,INDEX($ANB$8:$ANB$1007,$AND8,1),0),NA()) ->  | BVR8: =IF(ISNUMBER(AIX8),IF(BVR$7=$AND8,INDEX($ANB$8:$ANB$1007,$AND8,1),0),NA()) ->  | BVS8: =IF(ISNUMBER(AIY8),IF(BVS$7=$AND8,INDEX($ANB$8:$ANB$1007,$AND8,1),0),NA()) ->  | BVT8: =IF(ISNUMBER(AIZ8),IF(BVT$7=$AND8,INDEX($ANB$8:$ANB$1007,$AND8,1),0),NA()) ->  | BVU8: =IF(ISNUMBER(AJA8),IF(BVU$7=$AND8,INDEX($ANB$8:$ANB$1007,$AND8,1),0),NA()) ->  | BVV8: =IF(ISNUMBER(AJB8),IF(BVV$7=$AND8,INDEX($ANB$8:$ANB$1007,$AND8,1),0),NA()) ->  | BVW8: =IF(ISNUMBER(AJC8),IF(BVW$7=$AND8,INDEX($ANB$8:$ANB$1007,$AND8,1),0),NA()) ->  | BVX8: =IF(ISNUMBER(AJD8),IF(BVX$7=$AND8,INDEX($ANB$8:$ANB$1007,$AND8,1),0),NA()) ->  | BVY8: =IF(ISNUMBER(AJE8),IF(BVY$7=$AND8,INDEX($ANB$8:$ANB$1007,$AND8,1),0),NA()) ->  | BVZ8: =IF(ISNUMBER(AJF8),IF(BVZ$7=$AND8,INDEX($ANB$8:$ANB$1007,$AND8,1),0),NA()) ->  | BWA8: =IF(ISNUMBER(AJG8),IF(BWA$7=$AND8,INDEX($ANB$8:$ANB$1007,$AND8,1),0),NA()) ->  | BWB8: =IF(ISNUMBER(AJH8),IF(BWB$7=$AND8,INDEX($ANB$8:$ANB$1007,$AND8,1),0),NA()) ->  | BWC8: =IF(ISNUMBER(AJI8),IF(BWC$7=$AND8,INDEX($ANB$8:$ANB$1007,$AND8,1),0),NA()) ->  | BWD8: =IF(ISNUMBER(AJJ8),IF(BWD$7=$AND8,INDEX($ANB$8:$ANB$1007,$AND8,1),0),NA()) ->  | BWE8: =IF(ISNUMBER(AJK8),IF(BWE$7=$AND8,INDEX($ANB$8:$ANB$1007,$AND8,1),0),NA()) ->  | BWF8: =IF(ISNUMBER(AJL8),IF(BWF$7=$AND8,INDEX($ANB$8:$ANB$1007,$AND8,1),0),NA()) ->  | BWG8: =IF(ISNUMBER(AJM8),IF(BWG$7=$AND8,INDEX($ANB$8:$ANB$1007,$AND8,1),0),NA()) ->  | BWH8: =IF(ISNUMBER(AJN8),IF(BWH$7=$AND8,INDEX($ANB$8:$ANB$1007,$AND8,1),0),NA()) ->  | BWI8: =IF(ISNUMBER(AJO8),IF(BWI$7=$AND8,INDEX($ANB$8:$ANB$1007,$AND8,1),0),NA()) ->  | BWJ8: =IF(ISNUMBER(AJP8),IF(BWJ$7=$AND8,INDEX($ANB$8:$ANB$1007,$AND8,1),0),NA()) ->  | BWK8: =IF(ISNUMBER(AJQ8),IF(BWK$7=$AND8,INDEX($ANB$8:$ANB$1007,$AND8,1),0),NA()) ->  | BWL8: =IF(ISNUMBER(AJR8),IF(BWL$7=$AND8,INDEX($ANB$8:$ANB$1007,$AND8,1),0),NA()) ->  | BWM8: =IF(ISNUMBER(AJS8),IF(BWM$7=$AND8,INDEX($ANB$8:$ANB$1007,$AND8,1),0),NA()) ->  | BWN8: =IF(ISNUMBER(AJT8),IF(BWN$7=$AND8,INDEX($ANB$8:$ANB$1007,$AND8,1),0),NA()) ->  | BWO8: =IF(ISNUMBER(AJU8),IF(BWO$7=$AND8,INDEX($ANB$8:$ANB$1007,$AND8,1),0),NA()) ->  | BWP8: =IF(ISNUMBER(AJV8),IF(BWP$7=$AND8,INDEX($ANB$8:$ANB$1007,$AND8,1),0),NA()) ->  | BWQ8: =IF(ISNUMBER(AJW8),IF(BWQ$7=$AND8,INDEX($ANB$8:$ANB$1007,$AND8,1),0),NA()) ->  | BWR8: =IF(ISNUMBER(AJX8),IF(BWR$7=$AND8,INDEX($ANB$8:$ANB$1007,$AND8,1),0),NA()) ->  | BWS8: =IF(ISNUMBER(AJY8),IF(BWS$7=$AND8,INDEX($ANB$8:$ANB$1007,$AND8,1),0),NA()) ->  | BWT8: =IF(ISNUMBER(AJZ8),IF(BWT$7=$AND8,INDEX($ANB$8:$ANB$1007,$AND8,1),0),NA()) ->  | BWU8: =IF(ISNUMBER(AKA8),IF(BWU$7=$AND8,INDEX($ANB$8:$ANB$1007,$AND8,1),0),NA()) ->  | BWV8: =IF(ISNUMBER(AKB8),IF(BWV$7=$AND8,INDEX($ANB$8:$ANB$1007,$AND8,1),0),NA()) ->  | BWW8: =IF(ISNUMBER(AKC8),IF(BWW$7=$AND8,INDEX($ANB$8:$ANB$1007,$AND8,1),0),NA()) ->  | BWX8: =IF(ISNUMBER(AKD8),IF(BWX$7=$AND8,INDEX($ANB$8:$ANB$1007,$AND8,1),0),NA()) ->  | BWY8: =IF(ISNUMBER(AKE8),IF(BWY$7=$AND8,INDEX($ANB$8:$ANB$1007,$AND8,1),0),NA()) ->  | BWZ8: =IF(ISNUMBER(AKF8),IF(BWZ$7=$AND8,INDEX($ANB$8:$ANB$1007,$AND8,1),0),NA()) ->  | BXA8: =IF(ISNUMBER(AKG8),IF(BXA$7=$AND8,INDEX($ANB$8:$ANB$1007,$AND8,1),0),NA()) ->  | BXB8: =IF(ISNUMBER(AKH8),IF(BXB$7=$AND8,INDEX($ANB$8:$ANB$1007,$AND8,1),0),NA()) ->  | BXC8: =IF(ISNUMBER(AKI8),IF(BXC$7=$AND8,INDEX($ANB$8:$ANB$1007,$AND8,1),0),NA()) ->  | BXD8: =IF(ISNUMBER(AKJ8),IF(BXD$7=$AND8,INDEX($ANB$8:$ANB$1007,$AND8,1),0),NA()) ->  | BXE8: =IF(ISNUMBER(AKK8),IF(BXE$7=$AND8,INDEX($ANB$8:$ANB$1007,$AND8,1),0),NA()) ->  | BXF8: =IF(ISNUMBER(AKL8),IF(BXF$7=$AND8,INDEX($ANB$8:$ANB$1007,$AND8,1),0),NA()) ->  | BXG8: =IF(ISNUMBER(AKM8),IF(BXG$7=$AND8,INDEX($ANB$8:$ANB$1007,$AND8,1),0),NA()) ->  | BXH8: =IF(ISNUMBER(AKN8),IF(BXH$7=$AND8,INDEX($ANB$8:$ANB$1007,$AND8,1),0),NA()) ->  | BXI8: =IF(ISNUMBER(AKO8),IF(BXI$7=$AND8,INDEX($ANB$8:$ANB$1007,$AND8,1),0),NA()) ->  | BXJ8: =IF(ISNUMBER(AKP8),IF(BXJ$7=$AND8,INDEX($ANB$8:$ANB$1007,$AND8,1),0),NA()) ->  | BXK8: =IF(ISNUMBER(AKQ8),IF(BXK$7=$AND8,INDEX($ANB$8:$ANB$1007,$AND8,1),0),NA()) ->  | BXL8: =IF(ISNUMBER(AKR8),IF(BXL$7=$AND8,INDEX($ANB$8:$ANB$1007,$AND8,1),0),NA()) ->  | BXM8: =IF(ISNUMBER(AKS8),IF(BXM$7=$AND8,INDEX($ANB$8:$ANB$1007,$AND8,1),0),NA()) ->  | BXN8: =IF(ISNUMBER(AKT8),IF(BXN$7=$AND8,INDEX($ANB$8:$ANB$1007,$AND8,1),0),NA()) ->  | BXO8: =IF(ISNUMBER(AKU8),IF(BXO$7=$AND8,INDEX($ANB$8:$ANB$1007,$AND8,1),0),NA()) ->  | BXP8: =IF(ISNUMBER(AKV8),IF(BXP$7=$AND8,INDEX($ANB$8:$ANB$1007,$AND8,1),0),NA()) ->  | BXQ8: =IF(ISNUMBER(AKW8),IF(BXQ$7=$AND8,INDEX($ANB$8:$ANB$1007,$AND8,1),0),NA()) ->  | BXR8: =IF(ISNUMBER(AKX8),IF(BXR$7=$AND8,INDEX($ANB$8:$ANB$1007,$AND8,1),0),NA()) ->  | BXS8: =IF(ISNUMBER(AKY8),IF(BXS$7=$AND8,INDEX($ANB$8:$ANB$1007,$AND8,1),0),NA()) ->  | BXT8: =IF(ISNUMBER(AKZ8),IF(BXT$7=$AND8,INDEX($ANB$8:$ANB$1007,$AND8,1),0),NA()) ->  | BXU8: =IF(ISNUMBER(ALA8),IF(BXU$7=$AND8,INDEX($ANB$8:$ANB$1007,$AND8,1),0),NA()) ->  | BXV8: =IF(ISNUMBER(ALB8),IF(BXV$7=$AND8,INDEX($ANB$8:$ANB$1007,$AND8,1),0),NA()) ->  | BXW8: =IF(ISNUMBER(ALC8),IF(BXW$7=$AND8,INDEX($ANB$8:$ANB$1007,$AND8,1),0),NA()) ->  | BXX8: =IF(ISNUMBER(ALD8),IF(BXX$7=$AND8,INDEX($ANB$8:$ANB$1007,$AND8,1),0),NA()) ->  | BXY8: =IF(ISNUMBER(ALE8),IF(BXY$7=$AND8,INDEX($ANB$8:$ANB$1007,$AND8,1),0),NA()) ->  | BXZ8: =IF(ISNUMBER(ALF8),IF(BXZ$7=$AND8,INDEX($ANB$8:$ANB$1007,$AND8,1),0),NA()) ->  | BYA8: =IF(ISNUMBER(ALG8),IF(BYA$7=$AND8,INDEX($ANB$8:$ANB$1007,$AND8,1),0),NA()) ->  | BYB8: =IF(ISNUMBER(ALH8),IF(BYB$7=$AND8,INDEX($ANB$8:$ANB$1007,$AND8,1),0),NA()) ->  | BYC8: =IF(ISNUMBER(ALI8),IF(BYC$7=$AND8,INDEX($ANB$8:$ANB$1007,$AND8,1),0),NA()) ->  | BYD8: =IF(ISNUMBER(ALJ8),IF(BYD$7=$AND8,INDEX($ANB$8:$ANB$1007,$AND8,1),0),NA()) ->  | BYE8: =IF(ISNUMBER(ALK8),IF(BYE$7=$AND8,INDEX($ANB$8:$ANB$1007,$AND8,1),0),NA()) ->  | BYF8: =IF(ISNUMBER(ALL8),IF(BYF$7=$AND8,INDEX($ANB$8:$ANB$1007,$AND8,1),0),NA()) ->  | BYG8: =IF(ISNUMBER(ALM8),IF(BYG$7=$AND8,INDEX($ANB$8:$ANB$1007,$AND8,1),0),NA()) ->  | BYH8: =IF(ISNUMBER(ALN8),IF(BYH$7=$AND8,INDEX($ANB$8:$ANB$1007,$AND8,1),0),NA()) ->  | BYI8: =IF(ISNUMBER(ALO8),IF(BYI$7=$AND8,INDEX($ANB$8:$ANB$1007,$AND8,1),0),NA()) ->  | BYJ8: =IF(ISNUMBER(ALP8),IF(BYJ$7=$AND8,INDEX($ANB$8:$ANB$1007,$AND8,1),0),NA()) ->  | BYK8: =IF(ISNUMBER(ALQ8),IF(BYK$7=$AND8,INDEX($ANB$8:$ANB$1007,$AND8,1),0),NA()) ->  | BYL8: =IF(ISNUMBER(ALR8),IF(BYL$7=$AND8,INDEX($ANB$8:$ANB$1007,$AND8,1),0),NA()) ->  | BYM8: =IF(ISNUMBER(ALS8),IF(BYM$7=$AND8,INDEX($ANB$8:$ANB$1007,$AND8,1),0),NA()) ->  | BYN8: =IF(ISNUMBER(ALT8),IF(BYN$7=$AND8,INDEX($ANB$8:$ANB$1007,$AND8,1),0),NA()) ->  | BYO8: =IF(ISNUMBER(ALU8),IF(BYO$7=$AND8,INDEX($ANB$8:$ANB$1007,$AND8,1),0),NA()) ->  | BYP8: =IF(ISNUMBER(ALV8),IF(BYP$7=$AND8,INDEX($ANB$8:$ANB$1007,$AND8,1),0),NA()) ->  | BYQ8: =IF(ISNUMBER(ALW8),IF(BYQ$7=$AND8,INDEX($ANB$8:$ANB$1007,$AND8,1),0),NA()) ->  | BYR8: =IF(ISNUMBER(ALX8),IF(BYR$7=$AND8,INDEX($ANB$8:$ANB$1007,$AND8,1),0),NA()) ->  | BYS8: =IF(ISNUMBER(ALY8),IF(BYS$7=$AND8,INDEX($ANB$8:$ANB$1007,$AND8,1),0),NA()) ->  | BYT8: =IF(ISNUMBER(ALZ8),IF(BYT$7=$AND8,INDEX($ANB$8:$ANB$1007,$AND8,1),0),NA()) ->  | BYU8: =IF(ISNUMBER(AMA8),IF(BYU$7=$AND8,INDEX($ANB$8:$ANB$1007,$AND8,1),0),NA()) ->  | BYV8: =IF(ISNUMBER(AMB8),IF(BYV$7=$AND8,INDEX($ANB$8:$ANB$1007,$AND8,1),0),NA()) ->  | BYW8: =IF(ISNUMBER(AMC8),IF(BYW$7=$AND8,INDEX($ANB$8:$ANB$1007,$AND8,1),0),NA()) ->  | BYX8: =IF(ISNUMBER(AMD8),IF(BYX$7=$AND8,INDEX($ANB$8:$ANB$1007,$AND8,1),0),NA()) ->  | BYY8: =IF(ISNUMBER(AME8),IF(BYY$7=$AND8,INDEX($ANB$8:$ANB$1007,$AND8,1),0),NA()) ->  | BYZ8: =IF(ISNUMBER(AMF8),IF(BYZ$7=$AND8,INDEX($ANB$8:$ANB$1007,$AND8,1),0),NA()) ->  | BZA8: =IF(ISNUMBER(AMG8),IF(BZA$7=$AND8,INDEX($ANB$8:$ANB$1007,$AND8,1),0),NA()) ->  | BZB8: =IF(ISNUMBER(AMH8),IF(BZB$7=$AND8,INDEX($ANB$8:$ANB$1007,$AND8,1),0),NA()) ->  | BZC8: =IF(ISNUMBER(AMI8),IF(BZC$7=$AND8,INDEX($ANB$8:$ANB$1007,$AND8,1),0),NA()) ->  | BZD8: =IF(ISNUMBER(AMJ8),IF(BZD$7=$AND8,INDEX($ANB$8:$ANB$1007,$AND8,1),0),NA()) ->  | BZE8: =IF(ISNUMBER(AMK8),IF(BZE$7=$AND8,INDEX($ANB$8:$ANB$1007,$AND8,1),0),NA()) ->  | BZF8: =IF(ISNUMBER(AML8),IF(BZF$7=$AND8,INDEX($ANB$8:$ANB$1007,$AND8,1),0),NA()) ->  | BZG8: =IF(ISNUMBER(AMM8),IF(BZG$7=$AND8,INDEX($ANB$8:$ANB$1007,$AND8,1),0),NA()) ->  | BZH8: =IF(ISNUMBER(AMN8),IF(BZH$7=$AND8,INDEX($ANB$8:$ANB$1007,$AND8,1),0),NA()) ->  | BZI8: =IF(ISNUMBER(AMO8),IF(BZI$7=$AND8,INDEX($ANB$8:$ANB$1007,$AND8,1),0),NA()) ->  | BZJ8: =IF(ISNUMBER(AMP8),IF(BZJ$7=$AND8,INDEX($ANB$8:$ANB$1007,$AND8,1),0),NA()) ->  | BZK8: =IF(ISNUMBER(AMQ8),IF(BZK$7=$AND8,INDEX($ANB$8:$ANB$1007,$AND8,1),0),NA()) ->  | BZL8: =IF(ISNUMBER(AMR8),IF(BZL$7=$AND8,INDEX($ANB$8:$ANB$1007,$AND8,1),0),NA()) ->  | BZM8: =IF(ISNUMBER(AMS8),IF(BZM$7=$AND8,INDEX($ANB$8:$ANB$1007,$AND8,1),0),NA()) ->  | BZN8: =IF(ISNUMBER(AMT8),IF(BZN$7=$AND8,INDEX($ANB$8:$ANB$1007,$AND8,1),0),NA()) ->  | BZO8: =IF(ISNUMBER(AMU8),IF(BZO$7=$AND8,INDEX($ANB$8:$ANB$1007,$AND8,1),0),NA()) ->  | BZP8: =IF(ISNUMBER(AMV8),IF(BZP$7=$AND8,INDEX($ANB$8:$ANB$1007,$AND8,1),0),NA()) ->  | BZR8: γ0 or B0 | BZS8: =MMULT(MINVERSE(MMULT(TRANSPOSE(INDIRECT(K4)),INDIRECT(K4))), MMULT(TRANSPOSE(INDIRECT(K4)),MMULT(INDIRECT(ANI4),MMULT(INDIRECT(K4),MINVERSE( MMULT(TRANSPOSE(INDIRECT(K4)),INDIRECT(K4))))))) -> 2.622831529 | BZT8: -2.622831529 | BZU8: -0.5500255611 | BZV8: 0.5500255611
B9: =IF(ISNUMBER('2. Enter Raw Data'!B12),'2. Enter Raw Data'!B12,".") -> 4.5 | C9: =IF(ISNUMBER('2. Enter Raw Data'!C12),'2. Enter Raw Data'!C12,".") -> 0 | D9: =IF(ISNUMBER('2. Enter Raw Data'!D12),'2. Enter Raw Data'!D12,".") -> 4.25 | E9: =IF(ISNUMBER(B9*C9*D9),1,0) -> 1 | H9: =IF(ISNUMBER(B9),1,".") -> 1 | I9: =IF(E9=1,C9,".") -> 0 | J9: =IF(E9=1,(D9),".") -> 4.25 | K9: 0 | M9: -1.116769929 | N9: 1.608535214 | O9: 0.2154180515 | P9: -0.3089103445 | R9: γ1 or B1 | S9: -3.772653231 | W9: 5.698147334 | X9: -1.198147334 | AA9: Sum of Squares degrees of freedom | AB9: SSdf | AC9: =E1009-4 -> 125 | AE9: γ1 or B1 | AF9: -1.091855253 | AG9: 1.572649457 | AH9: 0.2106121637 | AI9: -0.3020186822 | AK9: 1.040834086e-16 | AL9: 0.05302220409 | AM9: 3.400058013e-16 | AN9: 2.359223927e-16 | AO9: 1.387778781e-17 | AP9: 1.318389842e-16 | AQ9: 0 | AR9: -0.02963280397 | AS9: 0.0007089078488 | AT9: 0.04011825768 | AU9: 2.220446049e-16 | AV9: 2.775557562e-17 | AW9: 0.03139937498 | AX9: -9.020562075e-17 | AY9: 1.040834086e-16 | AZ9: 0.04011825768 | BA9: 2.15105711e-16 | BB9: 2.359223927e-16 | BC9: 2.081668171e-16 | BD9: 2.081668171e-16 | BE9: 1.179611964e-16 | BF9: 3.400058013e-16 | BG9: 1.318389842e-16 | BH9: 3.434752482e-16 | BI9: 2.359223927e-16 | BJ9: 0.009427790555 | BK9: 1.040834086e-16 | BL9: 2.15105711e-16 | BM9: 0.04883714039 | BN9: 1.387778781e-17 | BO9: 0 | BP9: 2.15105711e-16 | BQ9: 0.03558443867 | BR9: 1.040834086e-16 | BS9: 0 | BT9: 2.15105711e-16 | BU9: -1.040834086e-16 | BV9: 2.220446049e-16 | BW9: 1.040834086e-16 | BX9: 0.02268049227 | BY9: -1.040834086e-16 | BZ9: 2.012279232e-16 | CA9: 0.005242726856 | CB9: 0.05302220409 | CC9: -0.02091392126 | CD9: 1.179611964e-16 | CE9: -0.008009974858 | CF9: 1.040834086e-16 | CG9: 2.15105711e-16 | CH9: 2.775557562e-17 | CI9: 3.053113318e-16 | CJ9: -2.081668171e-16 | CK9: -1.804112415e-16 | CL9: -9.020562075e-17 | CM9: 0.009427790555 | CN9: 0.02268049227 | CO9: 1.942890293e-16 | CP9: 1.179611964e-16 | CQ9: 3.122502257e-16 | CR9: 2.359223927e-16 | CS9: -1.942890293e-16 | CT9: 1.179611964e-16 | CU9: 2.359223927e-16 | CV9: 0.06174108679 | CW9: -9.020562075e-17 | CX9: 1.040834086e-16 | CY9: 1.040834086e-16 | CZ9: 1.873501354e-16 | DA9: 2.081668171e-16 | DB9: 0.009427790555 | DC9: 0.06174108679 | DD9: 0 | DE9: 1.040834086e-16 | DF9: -0.00347615585 | DG9: 0.02686555597 | DH9: 1.040834086e-16 | DI9: 1.318389842e-16 | DJ9: 0.01814667326 | DK9: 0.03558443867 | DL9: 2.15105711e-16 | DM9: 2.15105711e-16 | DN9: 0.0575560231 | DO9: -1.942890293e-16 | DP9: -0.02544774027 | DQ9: 2.012279232e-16 | DR9: 2.081668171e-16 | DS9: 2.220446049e-16 | DT9: 2.359223927e-16 | DU9: 2.220446049e-16 | DV9: 0.05302220409 | DW9: -2.081668171e-16 | DX9: 2.15105711e-16 | DY9: 1.318389842e-16 | DZ9: 0.05302220409 | EA9: 1.040834086e-16 | EB9: 1.387778781e-17 | EC9: 3.400058013e-16 | ED9: -0.02544774027 | EE9: 0.02268049227 | EF9: 0.005242726856 | EG9: 2.359223927e-16 | EH9: -1.942890293e-16 | EI9: 2.081668171e-16 | EJ9: -2.081668171e-16 | EK9: 0.05302220409 | EL9: 0.03558443867 | EM9: 2.220446049e-16 | EN9: -2.081668171e-16 | EO9: 2.15105711e-16 | EP9: 2.775557562e-17 | EQ9: -1.942890293e-16 | ER9: 0.04430332138 | ES9: 0.04011825768 | ET9: 1.318389842e-16 | EU9: 0 | EV9: -1.040834086e-16 | EW9: -1.942890293e-16 | EX9: -0.02091392126 | EY9: 0.03558443867 | EZ9: 3.400058013e-16 | FA9: 0.0575560231 | FB9: -0.00347615585 | FC9: -1.804112415e-16 | FD9: 2.359223927e-16 | FE9: 0.02686555597 | FF9: 0.04883714039 | FG9: 0.01814667326 | FH9: 1.179611964e-16 | FI9: -1.040834086e-16 | AMX9: =AMX8+1 -> 2 | AMY9: 1.435557035 | ANA9: =ANA8+1 -> 2 | ANB9: 1.600813947 | AND9: =AND8+1 -> 2 | ANE9: 0 | ANF9: 1.600813947 | ANG9: 0 | ANH9: 0 | ANI9: 0 | ANJ9: 0 | ANK9: 0 | ANL9: 0 | ANM9: 0 | ANN9: 0 | ANO9: 0 | ANP9: 0 | ANQ9: 0 | ANR9: 0 | ANS9: 0 | ANT9: 0 | ANU9: 0 | ANV9: 0 | ANW9: 0 | ANX9: 0 | ANY9: 0 | ANZ9: 0 | AOA9: 0 | AOB9: 0 | AOC9: 0 | AOD9: 0 | AOE9: 0 | AOF9: 0 | AOG9: 0 | AOH9: 0 | AOI9: 0 | AOJ9: 0 | AOK9: 0 | AOL9: 0 | AOM9: 0 | AON9: 0 | AOO9: 0 | AOP9: 0 | AOQ9: 0 | AOR9: 0 | AOS9: 0 | AOT9: 0 | AOU9: 0 | AOV9: 0 | AOW9: 0 | AOX9: 0 | AOY9: 0 | AOZ9: 0 | APA9: 0 | APB9: 0 | APC9: 0 | APD9: 0 | APE9: 0 | APF9: 0 | APG9: 0 | APH9: 0 | API9: 0 | APJ9: 0 | APK9: 0 | APL9: 0 | APM9: 0 | APN9: 0 | APO9: 0 | APP9: 0 | APQ9: 0 | APR9: 0 | APS9: 0 | APT9: 0 | APU9: 0 | APV9: 0 | APW9: 0 | APX9: 0 | APY9: 0 | APZ9: 0 | AQA9: 0 | AQB9: 0 | AQC9: 0 | AQD9: 0 | AQE9: 0 | AQF9: 0 | AQG9: 0 | AQH9: 0 | AQI9: 0 | AQJ9: 0 | AQK9: 0 | AQL9: 0 | AQM9: 0 | AQN9: 0 | AQO9: 0 | AQP9: 0 | AQQ9: 0 | AQR9: 0 | AQS9: 0 | AQT9: 0 | AQU9: 0 | AQV9: 0 | AQW9: 0 | AQX9: 0 | AQY9: 0 | AQZ9: 0 | ARA9: 0 | ARB9: 0 | ARC9: 0 | ARD9: 0 | ARE9: 0 | ARF9: 0 | ARG9: 0 | ARH9: 0 | ARI9: 0 | ARJ9: 0 | ARK9: 0 | ARL9: 0 | ARM9: 0 | ARN9: 0 | ARO9: 0 | ARP9: 0 | ARQ9: 0 | ARR9: 0 | ARS9: 0 | ART9: 0 | ARU9: 0 | ARV9: 0 | ARW9: 0 | ARX9: 0 | ARY9: 0 | ARZ9: 0 | ASA9: 0 | ASB9: 0 | ASC9: 0 | BZR9: γ1 or B1 | BZS9: -2.622831529 | BZT9: 2.898366354 | BZU9: 0.5500255611 | BZV9: -0.6006764274
B10: =IF(ISNUMBER('2. Enter Raw Data'!B13),'2. Enter Raw Data'!B13,".") -> 5.5 | C10: =IF(ISNUMBER('2. Enter Raw Data'!C13),'2. Enter Raw Data'!C13,".") -> 1 | D10: =IF(ISNUMBER('2. Enter Raw Data'!D13),'2. Enter Raw Data'!D13,".") -> 5 | E10: 1 | H10: 1 | I10: 1 | J10: 5 | K10: 5 | M10: -0.2154180515 | N10: 0.2154180515 | O10: 0.0424805931 | P10: -0.0424805931 | R10: γ2 or B2 | S10: -0.4724908112 | W10: 5.738889391 | X10: -0.2388893915 | AA10: Mean Square (Residual) | AB10: MSRes | AC10: =AC8/AC9 -> 0.9776904126 | AE10: γ2 or B2 | AF10: -0.2106121637 | AG10: 0.2106121637 | AH10: 0.0415328686 | AI10: -0.0415328686 | AK10: 0.01203957765 | AL10: -8.326672685e-17 | AM10: 0.01171219542 | AN10: 0.01045303299 | AO10: 0.01015083401 | AP10: 0.009823451782 | AQ10: 0.01140999643 | AR10: -5.551115123e-17 | AS10: 8.326672685e-17 | AT10: 2.775557562e-17 | AU10: 0.01234177663 | AV10: 0.00889167159 | AW10: 0 | AX10: 0.009521252801 | AY10: 0.01203957765 | AZ10: 2.775557562e-17 | BA10: 0.01297135784 | BB10: 0.01045303299 | BC10: 0.01360093905 | BD10: 0.01360093905 | BE10: 0.0110826142 | BF10: 0.01171219542 | BG10: 0.009823451782 | BH10: 0.01707622734 | BI10: 0.01045303299 | BJ10: -1.387778781e-16 | BK10: 0.01266915886 | BL10: 0.01329874007 | BM10: -8.326672685e-17 | BN10: 0.01015083401 | BO10: 0.01140999643 | BP10: 0.01329874007 | BQ10: 0 | BR10: 0.01266915886 | BS10: 0.01140999643 | BT10: 0.01297135784 | BU10: 0.01078041522 | BV10: 0.01234177663 | BW10: 0.01203957765 | BX10: -1.387778781e-16 | BY10: 0.01078041522 | BZ10: 0.01423052026 | CA10: -1.387778781e-16 | CB10: -8.326672685e-17 | CC10: -2.775557562e-16 | CD10: 0.0110826142 | CE10: -5.551115123e-17 | CF10: 0.01266915886 | CG10: 0.01329874007 | CH10: 0.00889167159 | CI10: 0.0151874837 | CJ10: 0.009193870571 | CK10: 0.006675545726 | CL10: 0.009521252801 | CM10: -1.387778781e-16 | CN10: -1.387778781e-16 | CO10: 0.01486010147 | CP10: 0.0110826142 | CQ10: 0.01455790249 | CR10: 0.01045303299 | CS10: 0.008262090378 | CT10: 0.0110826142 | CU10: 0.01045303299 | CV10: -8.326672685e-17 | CW10: 0.009521252801 | CX10: 0.01203957765 | CY10: 0.01203957765 | CZ10: 0.01548968268 | DA10: 0.01392832128 | DB10: -1.387778781e-16 | DC10: -8.326672685e-17 | DD10: 0.01140999643 | DE10: 0.01266915886 | DF10: -1.387778781e-16 | DG10: 0 | DH10: 0.01203957765 | DI10: 0.009823451782 | DJ10: -1.387778781e-16 | DK10: 0 | DL10: 0.01329874007 | DM10: 0.01297135784 | DN10: -8.326672685e-17 | DO10: 0.007934708148 | DP10: -5.551115123e-17 | DQ10: 0.01423052026 | DR10: 0.01360093905 | DS10: 0.01234177663 | DT10: 0.01045303299 | DU10: 0.01234177663 | DV10: -8.326672685e-17 | DW10: 0.009193870571 | DX10: 0.01297135784 | DY10: 0.009823451782 | DZ10: -8.326672685e-17 | EA10: 0.01266915886 | EB10: 0.01015083401 | EC10: 0.01171219542 | ED10: -5.551115123e-17 | EE10: -1.387778781e-16 | EF10: -1.387778781e-16 | EG10: 0.01045303299 | EH10: 0.007934708148 | EI10: 0.01360093905 | EJ10: 0.009193870571 | EK10: -8.326672685e-17 | EL10: 0 | EM10: 0.01234177663 | EN10: 0.009193870571 | EO10: 0.01297135784 | EP10: 0.00856428936 | EQ10: 0.007632509167 | ER10: 2.775557562e-17 | ES10: 2.775557562e-17 | ET10: 0.009823451782 | EU10: 0.01140999643 | EV10: 0.01078041522 | EW10: 0.008262090378 | EX10: -2.775557562e-16 | EY10: 0 | EZ10: 0.01171219542 | FA10: -8.326672685e-17 | FB10: -1.387778781e-16 | FC10: 0.006675545726 | FD10: 0.01045303299 | FE10: 0 | FF10: -8.326672685e-17 | FG10: -1.387778781e-16 | FH10: 0.0110826142 | FI10: 0.01078041522 | AMX10: =AMX9+1 -> 3 | AMY10: 0.05706814135 | ANA10: =ANA9+1 -> 3 | ANB10: 0.05842878505 | AND10: =AND9+1 -> 3 | ANE10: 0 | ANF10: 0 | ANG10: 0.05842878505 | ANH10: 0 | ANI10: 0 | ANJ10: 0 | ANK10: 0 | ANL10: 0 | ANM10: 0 | ANN10: 0 | ANO10: 0 | ANP10: 0 | ANQ10: 0 | ANR10: 0 | ANS10: 0 | ANT10: 0 | ANU10: 0 | ANV10: 0 | ANW10: 0 | ANX10: 0 | ANY10: 0 | ANZ10: 0 | AOA10: 0 | AOB10: 0 | AOC10: 0 | AOD10: 0 | AOE10: 0 | AOF10: 0 | AOG10: 0 | AOH10: 0 | AOI10: 0 | AOJ10: 0 | AOK10: 0 | AOL10: 0 | AOM10: 0 | AON10: 0 | AOO10: 0 | AOP10: 0 | AOQ10: 0 | AOR10: 0 | AOS10: 0 | AOT10: 0 | AOU10: 0 | AOV10: 0 | AOW10: 0 | AOX10: 0 | AOY10: 0 | AOZ10: 0 | APA10: 0 | APB10: 0 | APC10: 0 | APD10: 0 | APE10: 0 | APF10: 0 | APG10: 0 | APH10: 0 | API10: 0 | APJ10: 0 | APK10: 0 | APL10: 0 | APM10: 0 | APN10: 0 | APO10: 0 | APP10: 0 | APQ10: 0 | APR10: 0 | APS10: 0 | APT10: 0 | APU10: 0 | APV10: 0 | APW10: 0 | APX10: 0 | APY10: 0 | APZ10: 0 | AQA10: 0 | AQB10: 0 | AQC10: 0 | AQD10: 0 | AQE10: 0 | AQF10: 0 | AQG10: 0 | AQH10: 0 | AQI10: 0 | AQJ10: 0 | AQK10: 0 | AQL10: 0 | AQM10: 0 | AQN10: 0 | AQO10: 0 | AQP10: 0 | AQQ10: 0 | AQR10: 0 | AQS10: 0 | AQT10: 0 | AQU10: 0 | AQV10: 0 | AQW10: 0 | AQX10: 0 | AQY10: 0 | AQZ10: 0 | ARA10: 0 | ARB10: 0 | ARC10: 0 | ARD10: 0 | ARE10: 0 | ARF10: 0 | ARG10: 0 | ARH10: 0 | ARI10: 0 | ARJ10: 0 | ARK10: 0 | ARL10: 0 | ARM10: 0 | ARN10: 0 | ARO10: 0 | ARP10: 0 | ARQ10: 0 | ARR10: 0 | ARS10: 0 | ART10: 0 | ARU10: 0 | ARV10: 0 | ARW10: 0 | ARX10: 0 | ARY10: 0 | ARZ10: 0 | ASA10: 0 | ASB10: 0 | ASC10: 0 | BZR10: γ2 or B2 | BZS10: -0.5500255611 | BZT10: 0.5500255611 | BZU10: 0.1165789136 | BZV10: -0.1165789136
B11: =IF(ISNUMBER('2. Enter Raw Data'!B14),'2. Enter Raw Data'!B14,".") -> 5.66 | C11: =IF(ISNUMBER('2. Enter Raw Data'!C14),'2. Enter Raw Data'!C14,".") -> 1 | D11: =IF(ISNUMBER('2. Enter Raw Data'!D14),'2. Enter Raw Data'!D14,".") -> 5.5 | E11: 1 | H11: 1 | I11: 1 | J11: 5.5 | K11: 5.5 | M11: 0.2154180515 | N11: -0.3089103445 | O11: -0.0424805931 | P11: 0.06067538673 | R11: γ3 or B3 | S11: 0.8335526792 | W11: 5.919420325 | X11: -0.2594203255 | AE11: γ3 or B3 | AF11: 0.2106121637 | AG11: -0.3020186822 | AH11: -0.0415328686 | AI11: 0.05932174389 | AK11: 0.009597753638 | AL11: -8.326672685e-17 | AM11: 0.01045303299 | AN11: 0.01374256898 | AO11: 0.01453205761 | AP11: 0.01538733697 | AQ11: 0.01124252163 | AR11: -5.551115123e-17 | AS11: 8.326672685e-17 | AT11: 4.163336342e-17 | AU11: 0.008808265002 | AV11: 0.0178215936 | AW11: 0 | AX11: 0.01617682561 | AY11: 0.009597753638 | AZ11: 4.163336342e-17 | BA11: 0.00716349701 | BB11: 0.01374256898 | BC11: 0.005518729018 | BD11: 0.005518729018 | BE11: 0.01209780099 | BF11: 0.01045303299 | BG11: 0.01538733697 | BH11: -0.003560390298 | BI11: 0.01374256898 | BJ11: -1.526556659e-16 | BK11: 0.007952985646 | BL11: 0.006308217654 | BM11: -8.326672685e-17 | BN11: 0.01453205761 | BO11: 0.01124252163 | BP11: 0.006308217654 | BQ11: 0 | BR11: 0.007952985646 | BS11: 0.01124252163 | BT11: 0.00716349701 | BU11: 0.01288728962 | BV11: 0.008808265002 | BW11: 0.009597753638 | BX11: -1.526556659e-16 | BY11: 0.01288728962 | BZ11: 0.003873961026 | CA11: -1.387778781e-16 | CB11: -8.326672685e-17 | CC11: -2.775557562e-16 | CD11: 0.01209780099 | CE11: -8.326672685e-17 | CF11: 0.007952985646 | CG11: 0.006308217654 | CH11: 0.0178215936 | CI11: 0.001373913678 | CJ11: 0.01703210496 | CK11: 0.02361117693 | CL11: 0.01617682561 | CM11: -1.526556659e-16 | CN11: -1.526556659e-16 | CO11: 0.002229193034 | CP11: 0.01209780099 | CQ11: 0.00301868167 | CR11: 0.01374256898 | CS11: 0.01946636159 | CT11: 0.01209780099 | CU11: 0.01374256898 | CV11: -1.110223025e-16 | CW11: 0.01617682561 | CX11: 0.009597753638 | CY11: 0.009597753638 | CZ11: 0.0005844250416 | DA11: 0.004663449662 | DB11: -1.526556659e-16 | DC11: -1.110223025e-16 | DD11: 0.01124252163 | DE11: 0.007952985646 | DF11: -1.387778781e-16 | DG11: 0 | DH11: 0.009597753638 | DI11: 0.01538733697 | DJ11: -1.526556659e-16 | DK11: 0 | DL11: 0.006308217654 | DM11: 0.00716349701 | DN11: -8.326672685e-17 | DO11: 0.02032164095 | DP11: -5.551115123e-17 | DQ11: 0.003873961026 | DR11: 0.005518729018 | DS11: 0.008808265002 | DT11: 0.01374256898 | DU11: 0.008808265002 | DV11: -8.326672685e-17 | DW11: 0.01703210496 | DX11: 0.00716349701 | DY11: 0.01538733697 | DZ11: -8.326672685e-17 | EA11: 0.007952985646 | EB11: 0.01453205761 | EC11: 0.01045303299 | ED11: -5.551115123e-17 | EE11: -1.526556659e-16 | EF11: -1.387778781e-16 | EG11: 0.01374256898 | EH11: 0.02032164095 | EI11: 0.005518729018 | EJ11: 0.01703210496 | EK11: -8.326672685e-17 | EL11: 0 | EM11: 0.008808265002 | EN11: 0.01703210496 | EO11: 0.00716349701 | EP11: 0.01867687295 | EQ11: 0.02111112958 | ER11: 2.775557562e-17 | ES11: 4.163336342e-17 | ET11: 0.01538733697 | EU11: 0.01124252163 | EV11: 0.01288728962 | EW11: 0.01946636159 | EX11: -2.775557562e-16 | EY11: 0 | EZ11: 0.01045303299 | FA11: -8.326672685e-17 | FB11: -1.387778781e-16 | FC11: 0.02361117693 | FD11: 0.01374256898 | FE11: 0 | FF11: -8.326672685e-17 | FG11: -1.526556659e-16 | FH11: 0.01209780099 | FI11: 0.01288728962 | AMX11: 4 | AMY11: 0.06729890526 | ANA11: 4 | ANB11: 0.06918746568 | AND11: 4 | ANE11: 0 | ANF11: 0 | ANG11: 0 | ANH11: 0.06918746568 | ANI11: 0 | ANJ11: 0 | ANK11: 0 | ANL11: 0 | ANM11: 0 | ANN11: 0 | ANO11: 0 | ANP11: 0 | ANQ11: 0 | ANR11: 0 | ANS11: 0 | ANT11: 0 | ANU11: 0 | ANV11: 0 | ANW11: 0 | ANX11: 0 | ANY11: 0 | ANZ11: 0 | AOA11: 0 | AOB11: 0 | AOC11: 0 | AOD11: 0 | AOE11: 0 | AOF11: 0 | AOG11: 0 | AOH11: 0 | AOI11: 0 | AOJ11: 0 | AOK11: 0 | AOL11: 0 | AOM11: 0 | AON11: 0 | AOO11: 0 | AOP11: 0 | AOQ11: 0 | AOR11: 0 | AOS11: 0 | AOT11: 0 | AOU11: 0 | AOV11: 0 | AOW11: 0 | AOX11: 0 | AOY11: 0 | AOZ11: 0 | APA11: 0 | APB11: 0 | APC11: 0 | APD11: 0 | APE11: 0 | APF11: 0 | APG11: 0 | APH11: 0 | API11: 0 | APJ11: 0 | APK11: 0 | APL11: 0 | APM11: 0 | APN11: 0 | APO11: 0 | APP11: 0 | APQ11: 0 | APR11: 0 | APS11: 0 | APT11: 0 | APU11: 0 | APV11: 0 | APW11: 0 | APX11: 0 | APY11: 0 | APZ11: 0 | AQA11: 0 | AQB11: 0 | AQC11: 0 | AQD11: 0 | AQE11: 0 | AQF11: 0 | AQG11: 0 | AQH11: 0 | AQI11: 0 | AQJ11: 0 | AQK11: 0 | AQL11: 0 | AQM11: 0 | AQN11: 0 | AQO11: 0 | AQP11: 0 | AQQ11: 0 | AQR11: 0 | AQS11: 0 | AQT11: 0 | AQU11: 0 | AQV11: 0 | AQW11: 0 | AQX11: 0 | AQY11: 0 | AQZ11: 0 | ARA11: 0 | ARB11: 0 | ARC11: 0 | ARD11: 0 | ARE11: 0 | ARF11: 0 | ARG11: 0 | ARH11: 0 | ARI11: 0 | ARJ11: 0 | ARK11: 0 | ARL11: 0 | ARM11: 0 | ARN11: 0 | ARO11: 0 | ARP11: 0 | ARQ11: 0 | ARR11: 0 | ARS11: 0 | ART11: 0 | ARU11: 0 | ARV11: 0 | ARW11: 0 | ARX11: 0 | ARY11: 0 | ARZ11: 0 | ASA11: 0 | ASB11: 0 | ASC11: 0 | BZR11: γ3 or B3 | BZS11: 0.5500255611 | BZT11: -0.6006764274 | BZU11: -0.1165789136 | BZV11: 0.1261617605
B12: =IF(ISNUMBER('2. Enter Raw Data'!B15),'2. Enter Raw Data'!B15,".") -> 6.16 | C12: =IF(ISNUMBER('2. Enter Raw Data'!C15),'2. Enter Raw Data'!C15,".") -> 1 | D12: =IF(ISNUMBER('2. Enter Raw Data'!D15),'2. Enter Raw Data'!D15,".") -> 5.62 | E12: 1 | H12: 1 | I12: 1 | J12: 5.62 | K12: 5.62 | W12: 5.96274775 | X12: 0.1972522504 | AK12: 0.009011715876 | AL12: -8.326672685e-17 | AM12: 0.01015083401 | AN12: 0.01453205761 | AO12: 0.01558355128 | AP12: 0.01672266941 | AQ12: 0.01120232768 | AR12: -5.551115123e-17 | AS12: 8.326672685e-17 | AT12: 5.551115123e-17 | AU12: 0.007960222211 | AV12: 0.01996477488 | AW12: 0 | AX12: 0.01777416308 | AY12: 0.009011715876 | AZ12: 5.551115123e-17 | BA12: 0.005769610411 | BB12: 0.01453205761 | BC12: 0.00357899861 | BD12: 0.00357899861 | BE12: 0.01234144581 | BF12: 0.01015083401 | BG12: 0.01672266941 | BH12: -0.00851317853 | BI12: 0.01453205761 | BJ12: -1.526556659e-16 | BK12: 0.006821104075 | BL12: 0.004630492274 | BM12: -5.551115123e-17 | BN12: 0.01558355128 | BO12: 0.01120232768 | BP12: 0.004630492274 | BQ12: 0 | BR12: 0.006821104075 | BS12: 0.01120232768 | BT12: 0.005769610411 | BU12: 0.01339293948 | BV12: 0.007960222211 | BW12: 0.009011715876 | BX12: -1.561251128e-16 | BY12: 0.01339293948 | BZ12: 0.001388386809 | CA12: -1.665334537e-16 | CB12: -8.326672685e-17 | CC12: -2.775557562e-16 | CD12: 0.01234144581 | CE12: -8.326672685e-17 | CF12: 0.006821104075 | CG12: 0.004630492274 | CH12: 0.01996477488 | CI12: -0.001941343128 | CJ12: 0.01891328122 | CK12: 0.02767572842 | CL12: 0.01777416308 | CM12: -1.526556659e-16 | CN12: -1.561251128e-16 | CO12: -0.0008022249917 | CP12: 0.01234144581 | CQ12: 0.0002492686727 | CR12: 0.01453205761 | CS12: 0.02215538668 | CT12: 0.01234144581 | CU12: 0.01453205761 | CV12: -5.551115123e-17 | CW12: 0.01777416308 | CX12: 0.009011715876 | CY12: 0.009011715876 | CZ12: -0.002992836792 | DA12: 0.002439880473 | DB12: -1.526556659e-16 | DC12: -5.551115123e-17 | DD12: 0.01120232768 | DE12: 0.006821104075 | DF12: -1.665334537e-16 | DG12: 0 | DH12: 0.009011715876 | DI12: 0.01672266941 | DJ12: -1.595945598e-16 | DK12: 0 | DL12: 0.004630492274 | DM12: 0.005769610411 | DN12: -5.551115123e-17 | DO12: 0.02329450482 | DP12: -1.110223025e-16 | DQ12: 0.001388386809 | DR12: 0.00357899861 | DS12: 0.007960222211 | DT12: 0.01453205761 | DU12: 0.007960222211 | DV12: -8.326672685e-17 | DW12: 0.01891328122 | DX12: 0.005769610411 | DY12: 0.01672266941 | DZ12: -8.326672685e-17 | EA12: 0.006821104075 | EB12: 0.01558355128 | EC12: 0.01015083401 | ED12: -1.110223025e-16 | EE12: -1.561251128e-16 | EF12: -1.665334537e-16 | EG12: 0.01453205761 | EH12: 0.02329450482 | EI12: 0.00357899861 | EJ12: 0.01891328122 | EK12: -8.326672685e-17 | EL12: 0 | EM12: 0.007960222211 | EN12: 0.01891328122 | EO12: 0.005769610411 | EP12: 0.02110389302 | EQ12: 0.02434599848 | ER12: 2.775557562e-17 | ES12: 5.551115123e-17 | ET12: 0.01672266941 | EU12: 0.01120232768 | EV12: 0.01339293948 | EW12: 0.02215538668 | EX12: -2.775557562e-16 | EY12: 0 | EZ12: 0.01015083401 | FA12: -5.551115123e-17 | FB12: -1.665334537e-16 | FC12: 0.02767572842 | FD12: 0.01453205761 | FE12: 0 | FF12: -5.551115123e-17 | FG12: -1.595945598e-16 | FH12: 0.01234144581 | FI12: 0.01339293948 | AMX12: 5 | AMY12: 0.03890845028 | ANA12: 5 | ANB12: 0.04015006103 | AND12: 5 | ANE12: 0 | ANF12: 0 | ANG12: 0 | ANH12: 0 | ANI12: 0.04015006103 | ANJ12: 0 | ANK12: 0 | ANL12: 0 | ANM12: 0 | ANN12: 0 | ANO12: 0 | ANP12: 0 | ANQ12: 0 | ANR12: 0 | ANS12: 0 | ANT12: 0 | ANU12: 0 | ANV12: 0 | ANW12: 0 | ANX12: 0 | ANY12: 0 | ANZ12: 0 | AOA12: 0 | AOB12: 0 | AOC12: 0 | AOD12: 0 | AOE12: 0 | AOF12: 0 | AOG12: 0 | AOH12: 0 | AOI12: 0 | AOJ12: 0 | AOK12: 0 | AOL12: 0 | AOM12: 0 | AON12: 0 | AOO12: 0 | AOP12: 0 | AOQ12: 0 | AOR12: 0 | AOS12: 0 | AOT12: 0 | AOU12: 0 | AOV12: 0 | AOW12: 0 | AOX12: 0 | AOY12: 0 | AOZ12: 0 | APA12: 0 | APB12: 0 | APC12: 0 | APD12: 0 | APE12: 0 | APF12: 0 | APG12: 0 | APH12: 0 | API12: 0 | APJ12: 0 | APK12: 0 | APL12: 0 | APM12: 0 | APN12: 0 | APO12: 0 | APP12: 0 | APQ12: 0 | APR12: 0 | APS12: 0 | APT12: 0 | APU12: 0 | APV12: 0 | APW12: 0 | APX12: 0 | APY12: 0 | APZ12: 0 | AQA12: 0 | AQB12: 0 | AQC12: 0 | AQD12: 0 | AQE12: 0 | AQF12: 0 | AQG12: 0 | AQH12: 0 | AQI12: 0 | AQJ12: 0 | AQK12: 0 | AQL12: 0 | AQM12: 0 | AQN12: 0 | AQO12: 0 | AQP12: 0 | AQQ12: 0 | AQR12: 0 | AQS12: 0 | AQT12: 0 | AQU12: 0 | AQV12: 0 | AQW12: 0 | AQX12: 0 | AQY12: 0 | AQZ12: 0 | ARA12: 0 | ARB12: 0 | ARC12: 0 | ARD12: 0 | ARE12: 0 | ARF12: 0 | ARG12: 0 | ARH12: 0 | ARI12: 0 | ARJ12: 0 | ARK12: 0 | ARL12: 0 | ARM12: 0 | ARN12: 0 | ARO12: 0 | ARP12: 0 | ARQ12: 0 | ARR12: 0 | ARS12: 0 | ART12: 0 | ARU12: 0 | ARV12: 0 | ARW12: 0 | ARX12: 0 | ARY12: 0 | ARZ12: 0 | ASA12: 0 | ASB12: 0 | ASC12: 0
B13: =IF(ISNUMBER('2. Enter Raw Data'!B16),'2. Enter Raw Data'!B16,".") -> 6 | C13: =IF(ISNUMBER('2. Enter Raw Data'!C16),'2. Enter Raw Data'!C16,".") -> 1 | D13: =IF(ISNUMBER('2. Enter Raw Data'!D16),'2. Enter Raw Data'!D16,".") -> 5.75 | E13: 1 | H13: 1 | I13: 1 | J13: 5.75 | K13: 5.75 | W13: 6.009685792 | X13: -0.009685792455 | AK13: 0.008376841634 | AL13: -8.326672685e-17 | AM13: 0.009823451782 | AN13: 0.01538733697 | AO13: 0.01672266941 | AP13: 0.01816927956 | AQ13: 0.01115878423 | AR13: -5.551115123e-17 | AS13: 8.326672685e-17 | AT13: 4.163336342e-17 | AU13: 0.007041509189 | AV13: 0.0222865546 | AW13: 0 | AX13: 0.01950461201 | AY13: 0.008376841634 | AZ13: 4.163336342e-17 | BA13: 0.004259566595 | BB13: 0.01538733697 | BC13: 0.001477624001 | BD13: 0.001477624001 | BE13: 0.01260539438 | BF13: 0.009823451782 | BG13: 0.01816927956 | BH13: -0.01387869912 | BI13: 0.01538733697 | BJ13: -1.526556659e-16 | BK13: 0.00559489904 | BL13: 0.002812956446 | BM13: -8.326672685e-17 | BN13: 0.01672266941 | BO13: 0.01115878423 | BP13: 0.002812956446 | BQ13: 0 | BR13: 0.00559489904 | BS13: 0.01115878423 | BT13: 0.004259566595 | BU13: 0.01394072682 | BV13: 0.007041509189 | BW13: 0.008376841634 | BX13: -1.595945598e-16 | BY13: 0.01394072682 | BZ13: -0.001304318592 | CA13: -1.387778781e-16 | CB13: -8.326672685e-17 | CC13: -2.775557562e-16 | CD13: 0.01260539438 | CE13: -8.326672685e-17 | CF13: 0.00559489904 | CG13: 0.002812956446 | CH13: 0.0222865546 | CI13: -0.005532871334 | CJ13: 0.02095122216 | CK13: 0.03207899253 | CL13: 0.01950461201 | CM13: -1.526556659e-16 | CN13: -1.595945598e-16 | CO13: -0.004086261186 | CP13: 0.01260539438 | CQ13: -0.002750928741 | CR13: 0.01538733697 | CS13: 0.0250684972 | CT13: 0.01260539438 | CU13: 0.01538733697 | CV13: -5.551115123e-17 | CW13: 0.01950461201 | CX13: 0.008376841634 | CY13: 0.008376841634 | CZ13: -0.006868203779 | DA13: 3.101385277e-05 | DB13: -1.526556659e-16 | DC13: -5.551115123e-17 | DD13: 0.01115878423 | DE13: 0.00559489904 | DF13: -1.387778781e-16 | DG13: 0 | DH13: 0.008376841634 | DI13: 0.01816927956 | DJ13: -1.595945598e-16 | DK13: 0 | DL13: 0.002812956446 | DM13: 0.004259566595 | DN13: -8.326672685e-17 | DO13: 0.02651510734 | DP13: -1.110223025e-16 | DQ13: -0.001304318592 | DR13: 0.001477624001 | DS13: 0.007041509189 | DT13: 0.01538733697 | DU13: 0.007041509189 | DV13: -8.326672685e-17 | DW13: 0.02095122216 | DX13: 0.004259566595 | DY13: 0.01816927956 | DZ13: -8.326672685e-17 | EA13: 0.00559489904 | EB13: 0.01672266941 | EC13: 0.009823451782 | ED13: -1.110223025e-16 | EE13: -1.595945598e-16 | EF13: -1.387778781e-16 | EG13: 0.01538733697 | EH13: 0.02651510734 | EI13: 0.001477624001 | EJ13: 0.02095122216 | EK13: -8.326672685e-17 | EL13: 0 | EM13: 0.007041509189 | EN13: 0.02095122216 | EO13: 0.004259566595 | EP13: 0.02373316475 | EQ13: 0.02785043979 | ER13: 2.775557562e-17 | ES13: 4.163336342e-17 | ET13: 0.01816927956 | EU13: 0.01115878423 | EV13: 0.01394072682 | EW13: 0.0250684972 | EX13: -2.775557562e-16 | EY13: 0 | EZ13: 0.009823451782 | FA13: -8.326672685e-17 | FB13: -1.387778781e-16 | FC13: 0.03207899253 | FD13: 0.01538733697 | FE13: 0 | FF13: -8.326672685e-17 | FG13: -1.595945598e-16 | FH13: 0.01260539438 | FI13: 0.01394072682 | AMX13: 6 | AMY13: 9.381457548e-05 | ANA13: 6 | ANB13: 9.731887604e-05 | AND13: 6 | ANE13: 0 | ANF13: 0 | ANG13: 0 | ANH13: 0 | ANI13: 0 | ANJ13: 9.731887604e-05 | ANK13: 0 | ANL13: 0 | ANM13: 0 | ANN13: 0 | ANO13: 0 | ANP13: 0 | ANQ13: 0 | ANR13: 0 | ANS13: 0 | ANT13: 0 | ANU13: 0 | ANV13: 0 | ANW13: 0 | ANX13: 0 | ANY13: 0 | ANZ13: 0 | AOA13: 0 | AOB13: 0 | AOC13: 0 | AOD13: 0 | AOE13: 0 | AOF13: 0 | AOG13: 0 | AOH13: 0 | AOI13: 0 | AOJ13: 0 | AOK13: 0 | AOL13: 0 | AOM13: 0 | AON13: 0 | AOO13: 0 | AOP13: 0 | AOQ13: 0 | AOR13: 0 | AOS13: 0 | AOT13: 0 | AOU13: 0 | AOV13: 0 | AOW13: 0 | AOX13: 0 | AOY13: 0 | AOZ13: 0 | APA13: 0 | APB13: 0 | APC13: 0 | APD13: 0 | APE13: 0 | APF13: 0 | APG13: 0 | APH13: 0 | API13: 0 | APJ13: 0 | APK13: 0 | APL13: 0 | APM13: 0 | APN13: 0 | APO13: 0 | APP13: 0 | APQ13: 0 | APR13: 0 | APS13: 0 | APT13: 0 | APU13: 0 | APV13: 0 | APW13: 0 | APX13: 0 | APY13: 0 | APZ13: 0 | AQA13: 0 | AQB13: 0 | AQC13: 0 | AQD13: 0 | AQE13: 0 | AQF13: 0 | AQG13: 0 | AQH13: 0 | AQI13: 0 | AQJ13: 0 | AQK13: 0 | AQL13: 0 | AQM13: 0 | AQN13: 0 | AQO13: 0 | AQP13: 0 | AQQ13: 0 | AQR13: 0 | AQS13: 0 | AQT13: 0 | AQU13: 0 | AQV13: 0 | AQW13: 0 | AQX13: 0 | AQY13: 0 | AQZ13: 0 | ARA13: 0 | ARB13: 0 | ARC13: 0 | ARD13: 0 | ARE13: 0 | ARF13: 0 | ARG13: 0 | ARH13: 0 | ARI13: 0 | ARJ13: 0 | ARK13: 0 | ARL13: 0 | ARM13: 0 | ARN13: 0 | ARO13: 0 | ARP13: 0 | ARQ13: 0 | ARR13: 0 | ARS13: 0 | ART13: 0 | ARU13: 0 | ARV13: 0 | ARW13: 0 | ARX13: 0 | ARY13: 0 | ARZ13: 0 | ASA13: 0 | ASB13: 0 | ASC13: 0 | BZS13: Diagonals from HC3
B14: =IF(ISNUMBER('2. Enter Raw Data'!B17),'2. Enter Raw Data'!B17,".") -> 4.66 | C14: =IF(ISNUMBER('2. Enter Raw Data'!C17),'2. Enter Raw Data'!C17,".") -> 1 | D14: =IF(ISNUMBER('2. Enter Raw Data'!D17),'2. Enter Raw Data'!D17,".") -> 5.12 | E14: 1 | H14: 1 | I14: 1 | J14: 5.12 | K14: 5.12 | W14: 5.782216816 | X14: -1.122216816 | AK14: 0.01145353988 | AL14: -8.326672685e-17 | AM14: 0.01140999643 | AN14: 0.01124252163 | AO14: 0.01120232768 | AP14: 0.01115878423 | AQ14: 0.01136980248 | AR14: -5.551115123e-17 | AS14: 8.326672685e-17 | AT14: 4.163336342e-17 | AU14: 0.01149373384 | AV14: 0.01103485287 | AW14: 0 | AX14: 0.01111859027 | AY14: 0.01145353988 | AZ14: 4.163336342e-17 | BA14: 0.01157747124 | BB14: 0.01124252163 | BC14: 0.01166120864 | BD14: 0.01166120864 | BE14: 0.01132625903 | BF14: 0.01140999643 | BG14: 0.01115878423 | BH14: 0.0121234391 | BI14: 0.01124252163 | BJ14: -1.387778781e-16 | BK14: 0.01153727729 | BL14: 0.01162101469 | BM14: -8.326672685e-17 | BN14: 0.01120232768 | BO14: 0.01136980248 | BP14: 0.01162101469 | BQ14: 0 | BR14: 0.01153727729 | BS14: 0.01136980248 | BT14: 0.01157747124 | BU14: 0.01128606508 | BV14: 0.01149373384 | BW14: 0.01145353988 | BX14: -1.42247325e-16 | BY14: 0.01128606508 | BZ14: 0.01174494604 | CA14: -1.387778781e-16 | CB14: -8.326672685e-17 | CC14: -2.775557562e-16 | CD14: 0.01132625903 | CE14: -5.551115123e-17 | CF14: 0.01153727729 | CG14: 0.01162101469 | CH14: 0.01103485287 | CI14: 0.0118722269 | CJ14: 0.01107504682 | CK14: 0.01074009721 | CL14: 0.01111859027 | CM14: -1.387778781e-16 | CN14: -1.42247325e-16 | CO14: 0.01182868345 | CP14: 0.01132625903 | CQ14: 0.01178848949 | CR14: 0.01124252163 | CS14: 0.01095111547 | CT14: 0.01132625903 | CU14: 0.01124252163 | CV14: -8.326672685e-17 | CW14: 0.01111859027 | CX14: 0.01145353988 | CY14: 0.01145353988 | CZ14: 0.01191242085 | DA14: 0.01170475209 | DB14: -1.387778781e-16 | DC14: -8.326672685e-17 | DD14: 0.01136980248 | DE14: 0.01153727729 | DF14: -1.665334537e-16 | DG14: 0 | DH14: 0.01145353988 | DI14: 0.01115878423 | DJ14: -1.45716772e-16 | DK14: 0 | DL14: 0.01162101469 | DM14: 0.01157747124 | DN14: -8.326672685e-17 | DO14: 0.01090757202 | DP14: -1.110223025e-16 | DQ14: 0.01174494604 | DR14: 0.01166120864 | DS14: 0.01149373384 | DT14: 0.01124252163 | DU14: 0.01149373384 | DV14: -8.326672685e-17 | DW14: 0.01107504682 | DX14: 0.01157747124 | DY14: 0.01115878423 | DZ14: -8.326672685e-17 | EA14: 0.01153727729 | EB14: 0.01120232768 | EC14: 0.01140999643 | ED14: -1.110223025e-16 | EE14: -1.42247325e-16 | EF14: -1.387778781e-16 | EG14: 0.01124252163 | EH14: 0.01090757202 | EI14: 0.01166120864 | EJ14: 0.01107504682 | EK14: -8.326672685e-17 | EL14: 0 | EM14: 0.01149373384 | EN14: 0.01107504682 | EO14: 0.01157747124 | EP14: 0.01099130942 | EQ14: 0.01086737807 | ER14: 4.163336342e-17 | ES14: 4.163336342e-17 | ET14: 0.01115878423 | EU14: 0.01136980248 | EV14: 0.01128606508 | EW14: 0.01095111547 | EX14: -2.775557562e-16 | EY14: 0 | EZ14: 0.01140999643 | FA14: -8.326672685e-17 | FB14: -1.665334537e-16 | FC14: 0.01074009721 | FD14: 0.01124252163 | FE14: 0 | FF14: -8.326672685e-17 | FG14: -1.45716772e-16 | FH14: 0.01132625903 | FI14: 0.01128606508 | AMX14: 7 | AMY14: 1.259370581 | ANA14: 7 | ANB14: 1.288504087 | AND14: 7 | ANE14: 0 | ANF14: 0 | ANG14: 0 | ANH14: 0 | ANI14: 0 | ANJ14: 0 | ANK14: 1.288504087 | ANL14: 0 | ANM14: 0 | ANN14: 0 | ANO14: 0 | ANP14: 0 | ANQ14: 0 | ANR14: 0 | ANS14: 0 | ANT14: 0 | ANU14: 0 | ANV14: 0 | ANW14: 0 | ANX14: 0 | ANY14: 0 | ANZ14: 0 | AOA14: 0 | AOB14: 0 | AOC14: 0 | AOD14: 0 | AOE14: 0 | AOF14: 0 | AOG14: 0 | AOH14: 0 | AOI14: 0 | AOJ14: 0 | AOK14: 0 | AOL14: 0 | AOM14: 0 | AON14: 0 | AOO14: 0 | AOP14: 0 | AOQ14: 0 | AOR14: 0 | AOS14: 0 | AOT14: 0 | AOU14: 0 | AOV14: 0 | AOW14: 0 | AOX14: 0 | AOY14: 0 | AOZ14: 0 | APA14: 0 | APB14: 0 | APC14: 0 | APD14: 0 | APE14: 0 | APF14: 0 | APG14: 0 | APH14: 0 | API14: 0 | APJ14: 0 | APK14: 0 | APL14: 0 | APM14: 0 | APN14: 0 | APO14: 0 | APP14: 0 | APQ14: 0 | APR14: 0 | APS14: 0 | APT14: 0 | APU14: 0 | APV14: 0 | APW14: 0 | APX14: 0 | APY14: 0 | APZ14: 0 | AQA14: 0 | AQB14: 0 | AQC14: 0 | AQD14: 0 | AQE14: 0 | AQF14: 0 | AQG14: 0 | AQH14: 0 | AQI14: 0 | AQJ14: 0 | AQK14: 0 | AQL14: 0 | AQM14: 0 | AQN14: 0 | AQO14: 0 | AQP14: 0 | AQQ14: 0 | AQR14: 0 | AQS14: 0 | AQT14: 0 | AQU14: 0 | AQV14: 0 | AQW14: 0 | AQX14: 0 | AQY14: 0 | AQZ14: 0 | ARA14: 0 | ARB14: 0 | ARC14: 0 | ARD14: 0 | ARE14: 0 | ARF14: 0 | ARG14: 0 | ARH14: 0 | ARI14: 0 | ARJ14: 0 | ARK14: 0 | ARL14: 0 | ARM14: 0 | ARN14: 0 | ARO14: 0 | ARP14: 0 | ARQ14: 0 | ARR14: 0 | ARS14: 0 | ART14: 0 | ARU14: 0 | ARV14: 0 | ARW14: 0 | ARX14: 0 | ARY14: 0 | ARZ14: 0 | ASA14: 0 | ASB14: 0 | ASC14: 0 | BZS14: =OFFSET($BZS$8,COLUMN()-COLUMN($BZS$1010),COLUMN()-COLUMN($BZS$1010)) -> 2.622831529 | BZT14: =OFFSET($BZS$8,COLUMN()-COLUMN($BZS$1010),COLUMN()-COLUMN($BZS$1010)) -> 2.898366354 | BZU14: =OFFSET($BZS$8,COLUMN()-COLUMN($BZS$1010),COLUMN()-COLUMN($BZS$1010)) -> 0.1165789136 | BZV14: =OFFSET($BZS$8,COLUMN()-COLUMN($BZS$1010),COLUMN()-COLUMN($BZS$1010)) -> 0.1261617605
B15: =IF(ISNUMBER('2. Enter Raw Data'!B18),'2. Enter Raw Data'!B18,".") -> 6.5 | C15: =IF(ISNUMBER('2. Enter Raw Data'!C18),'2. Enter Raw Data'!C18,".") -> 0 | D15: =IF(ISNUMBER('2. Enter Raw Data'!D18),'2. Enter Raw Data'!D18,".") -> 6.62 | E15: 1 | H15: 1 | I15: 0 | J15: 6.62 | K15: 0 | W15: 4.578344112 | X15: 1.921655888 | AK15: 3.830269435e-17 | AL15: -0.02963280397 | AM15: 4.057865155e-16 | AN15: 3.674838212e-16 | AO15: 1.454392162e-16 | AP15: 3.291811268e-16 | AQ15: 0 | AR15: 0.1263214314 | AS15: 0.06907240827 | AT15: -0.005285518283 | AU15: 2.220446049e-16 | AV15: 2.908784325e-16 | AW15: 0.01116535042 | AX15: 1.071365219e-16 | AY15: 3.830269435e-17 | AZ15: -0.005285518283 | BA15: 1.493249968e-16 | BB15: 3.674838212e-16 | BC15: 7.66053887e-17 | BD15: 7.66053887e-17 | BE15: 1.837419106e-16 | BF15: 4.057865155e-16 | BG15: 3.291811268e-16 | BH15: -8.409939412e-17 | BI15: 3.674838212e-16 | BJ15: 0.05262153957 | BK15: 3.830269435e-17 | BL15: 1.493249968e-16 | BM15: -0.02173638699 | BN15: 1.454392162e-16 | BO15: 0 | BP15: 1.493249968e-16 | BQ15: 0.003268933445 | BR15: 3.830269435e-17 | BS15: 0 | BT15: 1.493249968e-16 | BU15: -3.830269435e-17 | BV15: 2.220446049e-16 | BW15: 3.830269435e-17 | BX15: 0.02761621913 | BY15: -3.830269435e-17 | BZ15: 3.885780586e-18 | CA15: 0.06051795655 | CB15: -0.02963280397 | CC15: 0.1098705627 | CD15: 1.837419106e-16 | CE15: 0.08552327698 | CF15: 3.830269435e-17 | CG15: 1.493249968e-16 | CH15: 2.908784325e-16 | CI15: 4.218847494e-17 | CJ15: -7.66053887e-17 | CK15: 2.142730438e-16 | CL15: 1.071365219e-16 | CM15: 0.05262153957 | CN15: 0.02761621913 | CO15: -6.883382753e-17 | CP15: 1.837419106e-16 | CQ15: 1.14908083e-16 | CR15: 3.674838212e-16 | CS15: 6.883382753e-17 | CT15: 1.837419106e-16 | CU15: 3.674838212e-16 | CV15: -0.04608367268 | CW15: 1.071365219e-16 | CX15: 3.830269435e-17 | CY15: 3.830269435e-17 | CZ15: -1.415534356e-16 | DA15: 7.66053887e-17 | DB15: 0.05262153957 | DC15: -0.04608367268 | DD15: 0 | DE15: 3.830269435e-17 | DF15: 0.07696882525 | DG15: 0.01971980215 | DH15: 3.830269435e-17 | DI15: 3.291811268e-16 | DJ15: 0.03617067086 | DK15: 0.003268933445 | DL15: 1.493249968e-16 | DM15: 1.493249968e-16 | DN15: -0.0381872557 | DO15: 6.883382753e-17 | DP15: 0.1184250144 | DQ15: 3.885780586e-18 | DR15: 7.66053887e-17 | DS15: 2.220446049e-16 | DT15: 3.674838212e-16 | DU15: 2.220446049e-16 | DV15: -0.02963280397 | DW15: -7.66053887e-17 | DX15: 1.493249968e-16 | DY15: 3.291811268e-16 | DZ15: -0.02963280397 | EA15: 3.830269435e-17 | EB15: 1.454392162e-16 | EC15: 4.057865155e-16 | ED15: 0.1184250144 | EE15: 0.02761621913 | EF15: 0.06051795655 | EG15: 3.674838212e-16 | EH15: 6.883382753e-17 | EI15: 7.66053887e-17 | EJ15: -7.66053887e-17 | EK15: -0.02963280397 | EL15: 0.003268933445 | EM15: 2.220446049e-16 | EN15: -7.66053887e-17 | EO15: 1.493249968e-16 | EP15: 2.908784325e-16 | EQ15: 6.883382753e-17 | ER15: -0.01318193526 | ES15: -0.005285518283 | ET15: 3.291811268e-16 | EU15: 0 | EV15: -3.830269435e-17 | EW15: 6.883382753e-17 | EX15: 0.1098705627 | EY15: 0.003268933445 | EZ15: 4.057865155e-16 | FA15: -0.0381872557 | FB15: 0.07696882525 | FC15: 2.142730438e-16 | FD15: 3.674838212e-16 | FE15: 0.01971980215 | FF15: -0.02173638699 | FG15: 0.03617067086 | FH15: 1.837419106e-16 | FI15: -3.830269435e-17 | AMX15: 8 | AMY15: 3.692761353 | ANA15: 8 | ANB15: 4.837799629 | AND15: 8 | ANE15: 0 | ANF15: 0 | ANG15: 0 | ANH15: 0 | ANI15: 0 | ANJ15: 0 | ANK15: 0 | ANL15: 4.837799629 | ANM15: 0 | ANN15: 0 | ANO15: 0 | ANP15: 0 | ANQ15: 0 | ANR15: 0 | ANS15: 0 | ANT15: 0 | ANU15: 0 | ANV15: 0 | ANW15: 0 | ANX15: 0 | ANY15: 0 | ANZ15: 0 | AOA15: 0 | AOB15: 0 | AOC15: 0 | AOD15: 0 | AOE15: 0 | AOF15: 0 | AOG15: 0 | AOH15: 0 | AOI15: 0 | AOJ15: 0 | AOK15: 0 | AOL15: 0 | AOM15: 0 | AON15: 0 | AOO15: 0 | AOP15: 0 | AOQ15: 0 | AOR15: 0 | AOS15: 0 | AOT15: 0 | AOU15: 0 | AOV15: 0 | AOW15: 0 | AOX15: 0 | AOY15: 0 | AOZ15: 0 | APA15: 0 | APB15: 0 | APC15: 0 | APD15: 0 | APE15: 0 | APF15: 0 | APG15: 0 | APH15: 0 | API15: 0 | APJ15: 0 | APK15: 0 | APL15: 0 | APM15: 0 | APN15: 0 | APO15: 0 | APP15: 0 | APQ15: 0 | APR15: 0 | APS15: 0 | APT15: 0 | APU15: 0 | APV15: 0 | APW15: 0 | APX15: 0 | APY15: 0 | APZ15: 0 | AQA15: 0 | AQB15: 0 | AQC15: 0 | AQD15: 0 | AQE15: 0 | AQF15: 0 | AQG15: 0 | AQH15: 0 | AQI15: 0 | AQJ15: 0 | AQK15: 0 | AQL15: 0 | AQM15: 0 | AQN15: 0 | AQO15: 0 | AQP15: 0 | AQQ15: 0 | AQR15: 0 | AQS15: 0 | AQT15: 0 | AQU15: 0 | AQV15: 0 | AQW15: 0 | AQX15: 0 | AQY15: 0 | AQZ15: 0 | ARA15: 0 | ARB15: 0 | ARC15: 0 | ARD15: 0 | ARE15: 0 | ARF15: 0 | ARG15: 0 | ARH15: 0 | ARI15: 0 | ARJ15: 0 | ARK15: 0 | ARL15: 0 | ARM15: 0 | ARN15: 0 | ARO15: 0 | ARP15: 0 | ARQ15: 0 | ARR15: 0 | ARS15: 0 | ART15: 0 | ARU15: 0 | ARV15: 0 | ARW15: 0 | ARX15: 0 | ARY15: 0 | ARZ15: 0 | ASA15: 0 | ASB15: 0 | ASC15: 0
... 18 more rows

Sheet 4. Error Check
A1: Instructions for this sheet: This sheet checks the data for any problems that could hinder the completion of the Johnson-Neyman technique.
B4: Check for missing data | C4: =IF('3. HC3'!E1009<MAX('3. HC3'!B1009:D1009),1,0) -> 0 | D4: If this cell contains a 1, it appears some observations have variable values missing. Please check the raw data in sheet 2.
B5: Determinant of (XT*X) | C5: =IF(ISNUMBER('3. HC3'!P4),'3. HC3'!P4,0) -> 4667978.244 | D5: If this cell contains a 0, either the data matrix is not full rank or its determinant could not be computed. This can occur when data sets are very small, there is missing data, or there is not enough variability in the data.
B6: Maximum hat matrix diagonal | C6: =MAX(IF(ISERROR('3. HC3'!AK1010:AMV1010),0,'3. HC3'!AK1010:AMV1010)) -> 0.1263214314 | D6: If this cell contains a 1, the hat matrix has a 1 on the diagonal, and HC3 cannot be calculated. This can be interpreted as some observation having too much "leverage" or influence in the regression. This often occurs when X1 or X2 values are all identical except for a single observation.
B7: Zero variance or covariance term in HC3 | C7: =IF(ISNUMBER('3. HC3'!BZT9*'3. HC3'!BZV9*'3. HC3'!BZV11),'3. HC3'!BZT9*'3. HC3'!BZV9*'3. HC3'!BZV11,1) -> -0.2196451456 | D7: If this cell contains a 0, then there is a 0 in the HC3 matrix, which can result in the lack of a confidence region in the Johnson-Neyman figure. This can happen when there is a perfect relationship between the X1, X2, and Y variables.

Sheet 5. Johnson-Neyman Figure
A1: Instructions for this sheet: Click on the figure (anywhere) in order to highlight it. Then click the "Create Figure" button. Note that if you insert or delete columns into this sheet, then the figure creation will fail.
A3: Pasting Data from Previous Sheets… | E3: Figure Creation | Q3: Scaling the figure
A4: Sample Size | B4: N | C4: ='3. HC3'!E1009 -> 129 | N4: Fill under a line in a Figure: | O4: .
A5: Significance level | B5: α | C5: ='2. Enter Raw Data'!C4 -> 0.05 | N5: http://peltiertech.com/fill-under-between-series-in-excel-chart/ | O5: . | Q5: http://excel.tips.net/T002404_Rounding_by_Powers_of_10.html | R5: .
A6: number of predictors (including product term) | B6: k | C6: 3 | M6: Bottom Area | N6: Delta Fill | P6: . | Q6: Hor Min | R6: =MIN(K10:K610) -> 2.765692042
A7: critical t-value | B7: tcrit | C7: =TINV(C5,C4-C6) -> 1.978970602 | L7: 0 | M7: 0 | N7: 0 | P7: . | Q7: Hor Max | R7: =MAX(K10:K610) -> 7.468261447
A8: The Intercept | B8: γ0 or B0 | C8: ='3. HC3'!S8 -> 7.706233282 | F8: SE | G8: CI Lower Limit | H8: Simple Slope | I8: CI Upper Limit | J8: SD of X2 | K8: The Moderator (X2) | L8: =L9 -> 127.6153403 | M8: 0 | N8: 0 | P8: . | Q8: Hor Difference | R8: =R7-R6 -> 4.702569405
A9: The first slope | B9: γ1 or B1 | C9: ='3. HC3'!S9 -> -3.772653231 | F9: =SQRT($C$12+2*K9*$C$13+K9^2*$C$14) -> 0.738082833 | G9: =H9-F9*$C$7 -> -2.934480513 | H9: =$C$9+$C$11*K9 -> -1.473836285 | I9: =H9+F9*$C$7 -> -0.01319205663 | J9: -3.01 | K9: =$C$16+J9*$C$15 -> 2.757854426 | L9: =L10 -> 127.6153403 | M9: =I9 -> -0.01319205663 | N9: =G9-I9 -> -2.921288457
A10: The second slope | B10: γ2 or B2 | C10: ='3. HC3'!S10 -> -0.4724908112 | F10: 0.7353993813 | G10: -2.922636976 | H10: -1.467303219 | I10: -0.01196946316 | J10: =J9+0.01 -> -3 | K10: 2.765692042 | L10: =1000*(K10-$Q$23)/(Q$24-Q$23) -> 127.6153403 | M10: -0.01196946316 | N10: -2.910667513 | P10: . | Q10: Ver Min | R10: =MIN(G9:I610) -> -2.934480513
A11: The third slope | B11: γ3 or B3 | C11: ='3. HC3'!S11 -> 0.8335526792 | F11: 0.7327166788 | G11: -2.910794921 | H11: -1.460770154 | I11: -0.01074538697 | J11: =J10+0.01 -> -2.99 | K11: 2.773529657 | L11: 128.9216095 | M11: -0.01074538697 | N11: -2.900049534 | P11: . | Q11: Ver Max | R11: =MAX(G9:I610) -> 4.394563177
A12: Variance of γ1 or B1 | B12: Var(B1) | C12: ='3. HC3'!BZT9 -> 2.898366354 | F12: 0.7300347338 | G12: -2.898954365 | H12: -1.454237088 | I12: -0.009519811714 | J12: -2.98 | K12: 2.781367273 | L12: 130.2278788 | M12: -0.009519811714 | N12: -2.889434553 | P12: . | Q12: Ver Difference | R12: =R11-R10 -> 7.32904369
A13: Covariance of γ1 and γ3; Covariance of B1 and B3 | B13: Cov(B1,B3) | C13: ='3. HC3'!BZT11 -> -0.6006764274 | F13: 0.7273535547 | G13: -2.887115325 | H13: -1.447704023 | I13: -0.008292720808 | J13: -2.97 | K13: 2.789204889 | L13: 131.5341481 | M13: -0.008292720808 | N13: -2.878822604
A14: Variance of γ3; Variance of B3 | B14: Var(B3) | C14: ='3. HC3'!BZV11 -> 0.1261617605 | F14: 0.72467315 | G14: -2.875277817 | H14: -1.441170957 | I14: -0.00706409743 | J14: -2.96 | K14: 2.797042504 | L14: 132.8404174 | M14: -0.00706409743 | N14: -2.86821372
A15: Standard Deviation of the Moderator (M) | B15: SD of M | C15: ='3. HC3'!D1010 -> 0.7837615675 | F15: 0.7219935282 | G15: -2.863441859 | H15: -1.434637892 | I15: -0.005833924513 | J15: -2.95 | K15: 2.80488012 | L15: 134.1466867 | M15: -0.005833924513 | N15: -2.857607934
A16: Mean of the Moderator (M) | B16: Mean of M | C16: ='3. HC3'!J1008 -> 5.116976744 | F16: 0.7193146983 | G16: -2.851607468 | H16: -1.428104826 | I16: -0.004602184738 | J16: -2.94 | K16: 2.812717736 | L16: 135.4529559 | M16: -0.004602184738 | N16: -2.847005283
A17: critical t-value squared | C17: =C7^2 -> 3.916324644 | F17: 0.7166366689 | G17: -2.839774661 | H17: -1.421571761 | I17: -0.003368860535 | J17: -2.93 | K17: 2.820555351 | L17: 136.7592252 | M17: -0.003368860535 | N17: -2.8364058 | Q17: Link Excel Chart Axis Scale to Values in Cells: | R17: .
A18: Computations from Bauer & Curran (2005) | F18: 0.7139594492 | G18: -2.827943456 | H18: -1.415038695 | I18: -0.002133934074 | J18: -2.92 | K18: 2.828392967 | L18: 138.0654945 | M18: -0.002133934074 | N18: -2.825809522 | Q18: http://peltiertech.com/link-excel-chart-axis-scale-to-values-in-cells/ | R18: .
A19: A (see Bauer & Curran, 2005, Eq. 18) | C19: =C17*C14-C11^2 -> -0.2007196572 | F19: 0.7112830483 | G19: -2.816113872 | H19: -1.40850563 | I19: -0.0008973872637 | J19: -2.91 | K19: 2.836230583 | L19: 139.3717638 | M19: -0.0008973872637 | N19: -2.815216485
A20: B (see Bauer & Curran, 2005, Eq. 19) | C20: =2*((C17*C13)-C9*C11) -> 1.584522626 | F20: 0.7086074754 | G20: -2.804285926 | H20: -1.401972564 | I20: 0.0003407982568 | J20: -2.9 | K20: 2.844068198 | L20: 140.678033 | M20: 0.0003407982568 | N20: -2.804626725
A21: C (see Bauer & Curran, 2005, Eq. 20) | C21: =C17*C12-C9^2 -> -2.881968821 | F21: 0.7059327401 | G21: -2.792459638 | H21: -1.395439498 | I21: 0.00158064112 | J21: -2.89 | K21: 2.851905814 | L21: 141.9843023 | M21: 0.00158064112 | N21: -2.794040279 | Q21: Figure Adjustments
F22: 0.7032588517 | G22: -2.780635026 | H22: -1.388906433 | I22: 0.002822160236 | J22: -2.88 | K22: 2.85974343 | L22: 143.2905716 | M22: 0.002822160236 | N22: -2.783457186
A23: Regions of Significance | F23: 0.7005858201 | G23: -2.76881211 | H23: -1.382373367 | I23: 0.004065374798 | J23: -2.87 | K23: 2.867581045 | L23: 144.5968409 | M23: 0.004065374798 | N23: -2.772877484 | Q23: =IF(R6<0.00000000001,(-1)*CEILING(ABS(R6),1*10^(INT(LOG10(ABS(R8))))),FLOOR(ABS(R6),1*10^(INT(LOG10(ABS(R8)))))) -> 2 | R23: Hor Min for Figure
A24: Simple Slope crosses over the significance barrier at… | C24: =((-C20)-SQRT(C20^2-4*C19*C21))/(2*C19) -> 5.052295497 | F24: 0.6979136551 | G24: -2.756990908 | H24: -1.375840302 | I24: 0.005310304287 | J24: -2.86 | K24: 2.875418661 | L24: 145.9031102 | M24: 0.005310304287 | N24: -2.762301212 | Q24: =IF(R7<0.00000000001,(-1)*FLOOR(ABS(R7),1*10^(INT(LOG10(ABS(R8))))),CEILING(ABS(R7),1*10^(INT(LOG10(ABS(R8)))))) -> 8 | R24: Hor Max for Figure
A25: Simple Slope crosses over the significance barrier at… | C25: =((-C20)+SQRT(C20^2-4*C19*C21))/(2*C19) -> 2.841912014 | F25: 0.6952423666 | G25: -2.745171441 | H25: -1.369307236 | I25: 0.006556968477 | J25: -2.85 | K25: 2.883256277 | L25: 147.2093794 | M25: 0.006556968477 | N25: -2.75172841 | Q25: =CEILING(ABS((R7-R6)/10),1*10^(INT(LOG10(ABS((R7-R6)/10))))) -> 0.5 | R25: Hor Major Unit
F26: 0.6925719648 | G26: -2.733353729 | H26: -1.362774171 | I26: 0.007805387441 | J26: -2.84 | K26: 2.891093892 | L26: 148.5156487 | M26: 0.007805387441 | N26: -2.741159116
A27: Regions of Significance -- values to be plotted (if in range of M) | F27: 0.6899024601 | G27: -2.721537792 | H27: -1.356241105 | I27: 0.009055581554 | J27: -2.83 | K27: 2.898931508 | L27: 149.821918 | M27: 0.009055581554 | N27: -2.730593373 | Q27: =IF(R10<0.00000000001,(-1)*CEILING(ABS(R10),1*10^(INT(LOG10(ABS(R12))))),FLOOR(ABS(R10),1*10^(INT(LOG10(ABS(R12)))))) -> -3 | R27: Ver Min for Figure
B28: =IF(AND(C24>K10,C24<K610),C24,#NUM!) -> 5.052295497 | C28: 10000000000000 | F28: 0.6872338628 | G28: -2.709723651 | H28: -1.34970804 | I28: 0.0103075715 | J28: -2.82 | K28: 2.906769124 | L28: 151.1281873 | M28: 0.0103075715 | N28: -2.720031222 | Q28: =IF(R11<0.00000000001,(-1)*FLOOR(ABS(R11),1*10^(INT(LOG10(ABS(R12))))),CEILING(ABS(R11),1*10^(INT(LOG10(ABS(R12)))))) -> 5 | R28: Ver Max for Figure
B29: =IF(AND(C24>K10,C24<K610),C24,#NUM!) -> 5.052295497 | C29: -10000000000000 | F29: 0.6845661836 | G29: -2.697911326 | H29: -1.343174974 | I29: 0.01156137829 | J29: -2.81 | K29: 2.914606739 | L29: 152.4344566 | M29: 0.01156137829 | N29: -2.709472705 | Q29: =CEILING(ABS((R11-R10)/10),1*10^(INT(LOG10(ABS((R11-R10)/10))))) -> 0.8 | R29: Ver Major Unit
B30: =IF(AND(C25>K10,C25<K610),C25,#NUM!) -> 2.841912014 | C30: 10000000000000 | F30: 0.6818994332 | G30: -2.68610084 | H30: -1.336641909 | I30: 0.01281702324 | J30: -2.8 | K30: 2.922444355 | L30: 153.7407258 | M30: 0.01281702324 | N30: -2.698917864
B31: =IF(AND(C25>K10,C25<K610),C25,#NUM!) -> 2.841912014 | C31: -10000000000000 | F31: 0.6792336226 | G31: -2.674292214 | H31: -1.330108843 | I31: 0.014074528 | J31: -2.79 | K31: 2.930281971 | L31: 155.0469951 | M31: 0.014074528 | N31: -2.688366742
F32: 0.6765687629 | G32: -2.662485469 | H32: -1.323575777 | I32: 0.01533391456 | J32: -2.78 | K32: 2.938119586 | L32: 156.3532644 | M32: 0.01533391456 | N32: -2.677819384
A33: Figure Labels | F33: 0.6739048654 | G33: -2.650680629 | H33: -1.317042712 | I33: 0.01659520523 | J33: -2.77 | K33: 2.945957202 | L33: 157.6595337 | M33: 0.01659520523 | N33: -2.667275834
A34: Horizontal Axis Title | B34: =CONCATENATE("Value of ", '2. Enter Raw Data'!C7, " (M)") -> Value of Sexism (M) | F34: 0.6712419415 | G34: -2.638877715 | H34: -1.310509646 | I34: 0.0178584227 | J34: -2.76 | K34: 2.953794818 | L34: 158.965803 | M34: 0.0178584227 | N34: -2.656736138
A35: Vertical Axis Label | B35: =CONCATENATE("Simple Slope of ", '2. Enter Raw Data'!C6, " (X) predicting ", '2. Enter Raw Data'!C5, " (Y)") -> Simple Slope of Protest (X) predicting Liking (Y) | F35: 0.6685800029 | G35: -2.627076752 | H35: -1.303976581 | I35: 0.01912358997 | J35: -2.75 | K35: 2.961632433 | L35: 160.2720722 | M35: 0.01912358997 | N35: -2.646200342
F36: 0.6659190614 | G36: -2.615277761 | H36: -1.297443515 | I36: 0.02039073045 | J36: -2.74 | K36: 2.969470049 | L36: 161.5783415 | M36: 0.02039073045 | N36: -2.635668491
F37: 0.6632591289 | G37: -2.603480767 | H37: -1.29091045 | I37: 0.02165986786 | J37: -2.73 | K37: 2.977307665 | L37: 162.8846108 | M37: 0.02165986786 | N37: -2.625140635
F38: 0.6606002177 | G38: -2.591685795 | H38: -1.284377384 | I38: 0.02293102635 | J38: -2.72 | K38: 2.98514528 | L38: 164.1908801 | M38: 0.02293102635 | N38: -2.614616821
F39: 0.6579423402 | G39: -2.579892868 | H39: -1.277844319 | I39: 0.0242042304 | J39: -2.71 | K39: 2.992982896 | L39: 165.4971494 | M39: 0.0242042304 | N39: -2.604097098
F40: 0.6552855089 | G40: -2.568102011 | H40: -1.271311253 | I40: 0.02547950491 | J40: -2.7 | K40: 3.000820512 | L40: 166.8034186 | M40: 0.02547950491 | N40: -2.593581516
F41: 0.6526297366 | G41: -2.55631325 | H41: -1.264778188 | I41: 0.02675687517 | J41: -2.69 | K41: 3.008658127 | L41: 168.1096879 | M41: 0.02675687517 | N41: -2.583070125
F42: 0.6499750363 | G42: -2.544526611 | H42: -1.258245122 | I42: 0.02803636686 | J42: -2.68 | K42: 3.016495743 | L42: 169.4159572 | M42: 0.02803636686 | N42: -2.572562978
F43: 0.6473214212 | G43: -2.532742119 | H43: -1.251712056 | I43: 0.02931800609 | J43: -2.67 | K43: 3.024333359 | L43: 170.7222265 | M43: 0.02931800609 | N43: -2.562060125
F44: 0.6446689046 | G44: -2.520959801 | H44: -1.245178991 | I44: 0.03060181938 | J44: -2.66 | K44: 3.032170975 | L44: 172.0284958 | M44: 0.03060181938 | N44: -2.551561621
F45: 0.6420175003 | G45: -2.509179684 | H45: -1.238645925 | I45: 0.03188783367 | J45: -2.65 | K45: 3.04000859 | L45: 173.334765 | M45: 0.03188783367 | N45: -2.541067518
F46: 0.639367222 | G46: -2.497401796 | H46: -1.23211286 | I46: 0.03317607634 | J46: -2.64 | K46: 3.047846206 | L46: 174.6410343 | M46: 0.03317607634 | N46: -2.530577872
F47: 0.6367180838 | G47: -2.485626164 | H47: -1.225579794 | I47: 0.03446657522 | J47: -2.63 | K47: 3.055683822 | L47: 175.9473036 | M47: 0.03446657522 | N47: -2.520092739
F48: 0.6340700999 | G48: -2.473852816 | H48: -1.219046729 | I48: 0.0357593586 | J48: -2.62 | K48: 3.063521437 | L48: 177.2535729 | M48: 0.0357593586 | N48: -2.509612175
F49: 0.631423285 | G49: -2.462081782 | H49: -1.212513663 | I49: 0.0370544552 | J49: -2.61 | K49: 3.071359053 | L49: 178.5598421 | M49: 0.0370544552 | N49: -2.499136237
F50: 0.6287776537 | G50: -2.45031309 | H50: -1.205980598 | I50: 0.03835189425 | J50: -2.6 | K50: 3.079196669 | L50: 179.8661114 | M50: 0.03835189425 | N50: -2.488664984
F51: 0.6261332211 | G51: -2.43854677 | H51: -1.199447532 | I51: 0.03965170543 | J51: -2.59 | K51: 3.087034284 | L51: 181.1723807 | M51: 0.03965170543 | N51: -2.478198475
F52: 0.6234900025 | G52: -2.426782852 | H52: -1.192914467 | I52: 0.04095391893 | J52: -2.58 | K52: 3.0948719 | L52: 182.47865 | M52: 0.04095391893 | N52: -2.467736771
F53: 0.6208480132 | G53: -2.415021367 | H53: -1.186381401 | I53: 0.04225856544 | J53: -2.57 | K53: 3.102709516 | L53: 183.7849193 | M53: 0.04225856544 | N53: -2.457279933
F54: 0.6182072692 | G54: -2.403262347 | H54: -1.179848335 | I54: 0.04356567614 | J54: -2.56 | K54: 3.110547131 | L54: 185.0911885 | M54: 0.04356567614 | N54: -2.446828023
F55: 0.6155677863 | G55: -2.391505823 | H55: -1.17331527 | I55: 0.04487528275 | J55: -2.55 | K55: 3.118384747 | L55: 186.3974578 | M55: 0.04487528275 | N55: -2.436381105
F56: 0.612929581 | G56: -2.379751826 | H56: -1.166782204 | I56: 0.04618741751 | J56: -2.54 | K56: 3.126222363 | L56: 187.7037271 | M56: 0.04618741751 | N56: -2.425939244
F57: 0.6102926698 | G57: -2.368000391 | H57: -1.160249139 | I57: 0.04750211322 | J57: -2.53 | K57: 3.134059978 | L57: 189.0099964 | M57: 0.04750211322 | N57: -2.415502504
F58: 0.6076570694 | G58: -2.35625155 | H58: -1.153716073 | I58: 0.0488194032 | J58: -2.52 | K58: 3.141897594 | L58: 190.3162657 | M58: 0.0488194032 | N58: -2.405070953
F59: 0.6050227972 | G59: -2.344505337 | H59: -1.147183008 | I59: 0.05013932137 | J59: -2.51 | K59: 3.14973521 | L59: 191.6225349 | M59: 0.05013932137 | N59: -2.394644658
F60: 0.6023898704 | G60: -2.332761787 | H60: -1.140649942 | I60: 0.0514619022 | J60: -2.5 | K60: 3.157572825 | L60: 192.9288042 | M60: 0.0514619022 | N60: -2.384223689
F61: 0.5997583068 | G61: -2.321020934 | H61: -1.134116877 | I61: 0.05278718077 | J61: -2.49 | K61: 3.165410441 | L61: 194.2350735 | M61: 0.05278718077 | N61: -2.373808115
F62: 0.5971281244 | G62: -2.309282815 | H62: -1.127583811 | I62: 0.05411519273 | J62: -2.48 | K62: 3.173248057 | L62: 195.5413428 | M62: 0.05411519273 | N62: -2.363398008
F63: 0.5944993416 | G63: -2.297547465 | H63: -1.121050746 | I63: 0.05544597436 | J63: -2.47 | K63: 3.181085672 | L63: 196.8476121 | M63: 0.05544597436 | N63: -2.35299344
F64: 0.591871977 | G64: -2.285814923 | H64: -1.11451768 | I64: 0.05677956258 | J64: -2.46 | K64: 3.188923288 | L64: 198.1538813 | M64: 0.05677956258 | N64: -2.342594485
F65: 0.5892460495 | G65: -2.274085224 | H65: -1.107984614 | I65: 0.05811599492 | J65: -2.45 | K65: 3.196760904 | L65: 199.4601506 | M65: 0.05811599492 | N65: -2.332201219
F66: 0.5866215786 | G66: -2.262358407 | H66: -1.101451549 | I66: 0.05945530957 | J66: -2.44 | K66: 3.204598519 | L66: 200.7664199 | M66: 0.05945530957 | N66: -2.321813717
F67: 0.5839985837 | G67: -2.250634512 | H67: -1.094918483 | I67: 0.06079754541 | J67: -2.43 | K67: 3.212436135 | L67: 202.0726892 | M67: 0.06079754541 | N67: -2.311432058
F68: 0.581377085 | G68: -2.238913578 | H68: -1.088385418 | I68: 0.06214274196 | J68: -2.42 | K68: 3.220273751 | L68: 203.3789585 | M68: 0.06214274196 | N68: -2.30105632
F69: 0.5787571026 | G69: -2.227195644 | H69: -1.081852352 | I69: 0.06349093945 | J69: -2.41 | K69: 3.228111366 | L69: 204.6852277 | M69: 0.06349093945 | N69: -2.290686583
F70: 0.5761386574 | G70: -2.215480752 | H70: -1.075319287 | I70: 0.06484217883 | J70: -2.4 | K70: 3.235948982 | L70: 205.991497 | M70: 0.06484217883 | N70: -2.280322931
F71: 0.5735217703 | G71: -2.203768944 | H71: -1.068786221 | I71: 0.06619650176 | J71: -2.39 | K71: 3.243786598 | L71: 207.2977663 | M71: 0.06619650176 | N71: -2.269965446
F72: 0.5709064628 | G72: -2.192060262 | H72: -1.062253156 | I72: 0.06755395065 | J72: -2.38 | K72: 3.251624213 | L72: 208.6040356 | M72: 0.06755395065 | N72: -2.259614213
F73: =SQRT($C$12+2*K73*$C$13+K73^2*$C$14) -> 0.5682927567 | G73: =H73-F73*$C$7 -> -2.180354749 | H73: =$C$9+$C$11*K73 -> -1.05572009 | I73: =H73+F73*$C$7 -> 0.06891456864 | J73: -2.37 | K73: =$C$16+J73*$C$15 -> 3.259461829 | L73: 209.9103048 | M73: =I73 -> 0.06891456864 | N73: =G73-I73 -> -2.249269318
F74: 0.5656806741 | G74: -2.168652449 | H74: -1.049187025 | I74: 0.07027839968 | J74: -2.36 | K74: 3.267299445 | L74: =1000*(K74-$Q$23)/(Q$24-Q$23) -> 211.2165741 | M74: 0.07027839968 | N74: -2.238930848
F75: 0.5630702378 | G75: -2.156953407 | H75: -1.042653959 | I75: 0.07164548847 | J75: =J74+0.01 -> -2.35 | K75: 3.27513706 | L75: 212.5228434 | M75: 0.07164548847 | N75: -2.228598895
F76: 0.5604614707 | G76: -2.145257667 | H76: -1.036120893 | I76: 0.07301588053 | J76: -2.34 | K76: 3.282974676 | L76: 213.8291127 | M76: 0.07301588053 | N76: -2.218273548
F77: 0.5578543961 | G77: -2.133565278 | H77: -1.029587828 | I77: 0.07438962221 | J77: -2.33 | K77: 3.290812292 | L77: 215.135382 | M77: 0.07438962221 | N77: -2.2079549
F78: 0.555249038 | G78: -2.121876285 | H78: -1.023054762 | I78: 0.0757667607 | J78: -2.32 | K78: 3.298649907 | L78: 216.4416512 | M78: 0.0757667607 | N78: -2.197643046
F79: 0.5526454207 | G79: -2.110190738 | H79: -1.016521697 | I79: 0.07714734402 | J79: -2.31 | K79: 3.306487523 | L79: 217.7479205 | M79: 0.07714734402 | N79: -2.187338082
F80: 0.5500435688 | G80: -2.098508684 | H80: -1.009988631 | I80: 0.0785314211 | J80: -2.3 | K80: 3.314325139 | L80: 219.0541898 | M80: 0.0785314211 | N80: -2.177040105
F81: 0.5474435075 | G81: -2.086830173 | H81: -1.003455566 | I81: 0.07991904176 | J81: -2.29 | K81: 3.322162754 | L81: 220.3604591 | M81: 0.07991904176 | N81: -2.166749215
F82: 0.5448452624 | G82: -2.075155257 | H82: -0.9969225002 | I82: 0.08131025672 | J82: -2.28 | K82: 3.33000037 | L82: 221.6667284 | M82: 0.08131025672 | N82: -2.156465514
F83: 0.5422488597 | G83: -2.063483987 | H83: -0.9903894347 | I83: 0.08270511766 | J83: -2.27 | K83: 3.337837986 | L83: 222.9729976 | M83: 0.08270511766 | N83: -2.146189105
F84: 0.539654326 | G84: -2.051816415 | H84: -0.9838563691 | I84: 0.08410367719 | J84: -2.26 | K84: 3.345675602 | L84: 224.2792669 | M84: 0.08410367719 | N84: -2.135920093
F85: 0.5370616882 | G85: -2.040152596 | H85: -0.9773233036 | I85: 0.08550598892 | J85: -2.25 | K85: 3.353513217 | L85: 225.5855362 | M85: 0.08550598892 | N85: -2.125658585
F86: 0.5344709742 | G86: -2.028492584 | H86: -0.970790238 | I86: 0.08691210746 | J86: -2.24 | K86: 3.361350833 | L86: 226.8918055 | M86: 0.08691210746 | N86: -2.115404691
F87: 0.5318822118 | G87: -2.016836433 | H87: -0.9642571725 | I87: 0.08832208843 | J87: -2.23 | K87: 3.369188449 | L87: 228.1980748 | M87: 0.08832208843 | N87: -2.105158522
F88: 0.5292954298 | G88: -2.005184202 | H88: -0.9577241069 | I88: 0.08973598851 | J88: -2.22 | K88: 3.377026064 | L88: 229.504344 | M88: 0.08973598851 | N88: -2.094920191
F89: 0.5267106574 | G89: -1.993535948 | H89: -0.9511910414 | I89: 0.09115386543 | J89: -2.21 | K89: 3.38486368 | L89: 230.8106133 | M89: 0.09115386543 | N89: -2.084689814
F90: 0.5241279243 | G90: -1.98189173 | H90: -0.9446579758 | I90: 0.09257577804 | J90: -2.2 | K90: 3.392701296 | L90: 232.1168826 | M90: 0.09257577804 | N90: -2.074467508
F91: 0.5215472608 | G91: -1.970251607 | H91: -0.9381249103 | I91: 0.09400178629 | J91: -2.19 | K91: 3.400538911 | L91: 233.4231519 | M91: 0.09400178629 | N91: -2.064253393
F92: 0.5189686977 | G92: -1.958615641 | H92: -0.9315918447 | I92: 0.09543195128 | J92: -2.18 | K92: 3.408376527 | L92: 234.7294212 | M92: 0.09543195128 | N92: -2.054047592
F93: 0.5163922665 | G93: -1.946983894 | H93: -0.9250587792 | I93: 0.09686633527 | J93: -2.17 | K93: 3.416214143 | L93: 236.0356904 | M93: 0.09686633527 | N93: -2.043850229
F94: 0.5138179993 | G94: -1.935356429 | H94: -0.9185257137 | I94: 0.09830500173 | J94: -2.16 | K94: 3.424051758 | L94: 237.3419597 | M94: 0.09830500173 | N94: -2.033661431
F95: 0.5112459288 | G95: -1.923733312 | H95: -0.9119926481 | I95: 0.09974801536 | J95: -2.15 | K95: 3.431889374 | L95: 238.648229 | M95: 0.09974801536 | N95: -2.023481327
F96: 0.5086760883 | G96: -1.912114607 | H96: -0.9054595826 | I96: 0.1011954421 | J96: -2.14 | K96: 3.43972699 | L96: 239.9544983 | M96: 0.1011954421 | N96: -2.013310049
F97: 0.5061085118 | G97: -1.900500383 | H97: -0.898926517 | I97: 0.1026473492 | J97: -2.13 | K97: 3.447564605 | L97: 241.2607676 | M97: 0.1026473492 | N97: -2.003147732
F98: 0.5035432338 | G98: -1.888890708 | H98: -0.8923934515 | I98: 0.1041038051 | J98: -2.12 | K98: 3.455402221 | L98: 242.5670368 | M98: 0.1041038051 | N98: -1.992994513
F99: 0.5009802898 | G99: -1.877285652 | H99: -0.8858603859 | I99: 0.1055648798 | J99: -2.11 | K99: 3.463239837 | L99: 243.8733061 | M99: 0.1055648798 | N99: -1.982850531
F100: 0.4984197157 | G100: -1.865685285 | H100: -0.8793273204 | I100: 0.1070306444 | J100: -2.1 | K100: 3.471077452 | L100: 245.1795754 | M100: 0.1070306444 | N100: -1.97271593
F101: 0.4958615482 | G101: -1.854089681 | H101: -0.8727942548 | I101: 0.1085011718 | J101: -2.09 | K101: 3.478915068 | L101: 246.4858447 | M101: 0.1085011718 | N101: -1.962590853
F102: 0.4933058248 | G102: -1.842498914 | H102: -0.8662611893 | I102: 0.1099765358 | J102: -2.08 | K102: 3.486752684 | L102: 247.7921139 | M102: 0.1099765358 | N102: -1.95247545
F103: 0.4907525837 | G103: -1.83091306 | H103: -0.8597281238 | I103: 0.1114568122 | J103: -2.07 | K103: 3.494590299 | L103: 249.0983832 | M103: 0.1114568122 | N103: -1.942369872
F104: 0.4882018637 | G104: -1.819332194 | H104: -0.8531950582 | I104: 0.112942078 | J104: -2.06 | K104: 3.502427915 | L104: 250.4046525 | M104: 0.112942078 | N104: -1.932274272
F105: 0.4856537047 | G105: -1.807756397 | H105: -0.8466619927 | I105: 0.1144324117 | J105: -2.05 | K105: 3.510265531 | L105: 251.7109218 | M105: 0.1144324117 | N105: -1.922188809
F106: 0.4831081471 | G106: -1.796185748 | H106: -0.8401289271 | I106: 0.1159278937 | J106: -2.04 | K106: 3.518103146 | L106: 253.0171911 | M106: 0.1159278937 | N106: -1.912113642
F107: 0.4805652324 | G107: -1.784620329 | H107: -0.8335958616 | I107: 0.1174286056 | J107: -2.03 | K107: 3.525940762 | L107: 254.3234603 | M107: 0.1174286056 | N107: -1.902048934
F108: 0.4780250026 | G108: -1.773060223 | H108: -0.827062796 | I108: 0.118934631 | J108: -2.02 | K108: 3.533778378 | L108: 255.6297296 | M108: 0.118934631 | N108: -1.891994854
F109: 0.4754875007 | G109: -1.761505516 | H109: -0.8205297305 | I109: 0.1204460551 | J109: -2.01 | K109: 3.541615993 | L109: 256.9359989 | M109: 0.1204460551 | N109: -1.881951571
F110: 0.4729527708 | G110: -1.749956295 | H110: -0.8139966649 | I110: 0.1219629646 | J110: -2 | K110: 3.549453609 | L110: 258.2422682 | M110: 0.1219629646 | N110: -1.871919259
F111: 0.4704208576 | G111: -1.738412647 | H111: -0.8074635994 | I111: 0.1234854484 | J111: -1.99 | K111: 3.557291225 | L111: 259.5485375 | M111: 0.1234854484 | N111: -1.861898096
F112: 0.4678918069 | G112: -1.726874665 | H112: -0.8009305338 | I112: 0.1250135968 | J112: -1.98 | K112: 3.56512884 | L112: 260.8548067 | M112: 0.1250135968 | N112: -1.851888261
F113: 0.4653656652 | G113: -1.715342439 | H113: -0.7943974683 | I113: 0.1265475023 | J113: -1.97 | K113: 3.572966456 | L113: 262.161076 | M113: 0.1265475023 | N113: -1.841889941
F114: 0.4628424803 | G114: -1.703816065 | H114: -0.7878644028 | I114: 0.1280872591 | J114: -1.96 | K114: 3.580804072 | L114: 263.4673453 | M114: 0.1280872591 | N114: -1.831903324
F115: 0.4603223007 | G115: -1.692295638 | H115: -0.7813313372 | I115: 0.1296329634 | J115: -1.95 | K115: 3.588641687 | L115: 264.7736146 | M115: 0.1296329634 | N115: -1.821928601
F116: 0.4578051762 | G116: -1.680781257 | H116: -0.7747982717 | I116: 0.1311847135 | J116: -1.94 | K116: 3.596479303 | L116: 266.0798839 | M116: 0.1311847135 | N116: -1.81196597
F117: 0.4552911573 | G117: -1.669273022 | H117: -0.7682652061 | I117: 0.1327426095 | J117: -1.93 | K117: 3.604316919 | L117: 267.3861531 | M117: 0.1327426095 | N117: -1.802015631
F118: 0.4527802958 | G118: -1.657771035 | H118: -0.7617321406 | I118: 0.134306754 | J118: -1.92 | K118: 3.612154534 | L118: 268.6924224 | M118: 0.134306754 | N118: -1.792077789
F119: 0.4502726445 | G119: -1.646275401 | H119: -0.755199075 | I119: 0.1358772513 | J119: -1.91 | K119: 3.61999215 | L119: 269.9986917 | M119: 0.1358772513 | N119: -1.782152653
F120: 0.4477682574 | G120: -1.634786227 | H120: -0.7486660095 | I120: 0.1374542084 | J120: -1.9 | K120: 3.627829766 | L120: 271.304961 | M120: 0.1374542084 | N120: -1.772240436
F121: 0.4452671895 | G121: -1.623303622 | H121: -0.7421329439 | I121: 0.1390377341 | J121: -1.89 | K121: 3.635667382 | L121: 272.6112303 | M121: 0.1390377341 | N121: -1.762341356
F122: 0.442769497 | G122: -1.611827696 | H122: -0.7355998784 | I122: 0.1406279397 | J122: -1.88 | K122: 3.643504997 | L122: 273.9174995 | M122: 0.1406279397 | N122: -1.752455636
F123: 0.4402752375 | G123: -1.600358565 | H123: -0.7290668128 | I123: 0.142224939 | J123: -1.87 | K123: 3.651342613 | L123: 275.2237688 | M123: 0.142224939 | N123: -1.742583504
F124: 0.4377844696 | G124: -1.588896343 | H124: -0.7225337473 | I124: 0.1438288481 | J124: -1.86 | K124: 3.659180229 | L124: 276.5300381 | M124: 0.1438288481 | N124: -1.732725191
F125: 0.4352972532 | G125: -1.577441149 | H125: -0.7160006818 | I125: 0.1454397855 | J125: -1.85 | K125: 3.667017844 | L125: 277.8363074 | M125: 0.1454397855 | N125: -1.722880935
F126: 0.4328136496 | G126: -1.565993105 | H126: -0.7094676162 | I126: 0.1470578726 | J126: -1.84 | K126: 3.67485546 | L126: 279.1425766 | M126: 0.1470578726 | N126: -1.713050978
F127: 0.4303337213 | G127: -1.554552334 | H127: -0.7029345507 | I127: 0.1486832329 | J127: -1.83 | K127: 3.682693076 | L127: 280.4488459 | M127: 0.1486832329 | N127: -1.703235567
F128: 0.4278575323 | G128: -1.543118963 | H128: -0.6964014851 | I128: 0.1503159931 | J128: -1.82 | K128: 3.690530691 | L128: 281.7551152 | M128: 0.1503159931 | N128: -1.693434956
F129: 0.4253851477 | G129: -1.531693121 | H129: -0.6898684196 | I129: 0.1519562823 | J129: -1.81 | K129: 3.698368307 | L129: 283.0613845 | M129: 0.1519562823 | N129: -1.683649404
F130: 0.4229166344 | G130: -1.520274941 | H130: -0.683335354 | I130: 0.1536042326 | J130: -1.8 | K130: 3.706205923 | L130: 284.3676538 | M130: 0.1536042326 | N130: -1.673879173
F131: 0.4204520605 | G131: -1.508864556 | H131: -0.6768022885 | I131: 0.1552599789 | J131: -1.79 | K131: 3.714043538 | L131: 285.673923 | M131: 0.1552599789 | N131: -1.664124535
F132: 0.4179914958 | G132: -1.497462105 | H132: -0.6702692229 | I132: 0.1569236591 | J132: -1.78 | K132: 3.721881154 | L132: 286.9801923 | M132: 0.1569236591 | N132: -1.654385764
F133: 0.4155350114 | G133: -1.486067729 | H133: -0.6637361574 | I133: 0.1585954142 | J133: -1.77 | K133: 3.72971877 | L133: 288.2864616 | M133: 0.1585954142 | N133: -1.644663143
F134: 0.4130826801 | G134: -1.474681572 | H134: -0.6572030918 | I134: 0.1602753882 | J134: -1.76 | K134: 3.737556385 | L134: 289.5927309 | M134: 0.1602753882 | N134: -1.63495696
F135: 0.4106345763 | G135: -1.463303781 | H135: -0.6506700263 | I135: 0.1619637284 | J135: -1.75 | K135: 3.745394001 | L135: 290.8990002 | M135: 0.1619637284 | N135: -1.625267509
F136: 0.4081907762 | G136: -1.451934507 | H136: -0.6441369608 | I136: 0.1636605853 | J136: -1.74 | K136: 3.753231617 | L136: 292.2052694 | M136: 0.1636605853 | N136: -1.615595092
F137: =SQRT($C$12+2*K137*$C$13+K137^2*$C$14) -> 0.4057513574 | G137: =H137-F137*$C$7 -> -1.440573903 | H137: =$C$9+$C$11*K137 -> -0.6376038952 | I137: =H137+F137*$C$7 -> 0.1653661127 | J137: -1.73 | K137: =$C$16+J137*$C$15 -> 3.761069232 | L137: 293.5115387 | M137: =I137 -> 0.1653661127 | N137: =G137-I137 -> -1.605940016
F138: 0.4033163994 | G138: -1.429222127 | H138: -0.6310708297 | I138: 0.1670804681 | J138: -1.72 | K138: 3.768906848 | L138: =1000*(K138-$Q$23)/(Q$24-Q$23) -> 294.817808 | M138: 0.1670804681 | N138: -1.596302596
F139: 0.4008859836 | G139: -1.41787934 | H139: -0.6245377641 | I139: 0.1688038122 | J139: =J138+0.01 -> -1.71 | K139: 3.776744464 | L139: 296.1240773 | M139: 0.1688038122 | N139: -1.586683153
F140: 0.3984601931 | G140: -1.406545707 | H140: -0.6180046986 | I140: 0.1705363096 | J140: -1.7 | K140: 3.784582079 | L140: 297.4303466 | M140: 0.1705363096 | N140: -1.577082016
F141: 0.3960391128 | G141: -1.395221395 | H141: -0.611471633 | I141: 0.1722781285 | J141: -1.69 | K141: 3.792419695 | L141: 298.7366158 | M141: 0.1722781285 | N141: -1.567499523
F142: 0.3936228297 | G142: -1.383906576 | H142: -0.6049385675 | I142: 0.1740294408 | J142: -1.68 | K142: 3.800257311 | L142: 300.0428851 | M142: 0.1740294408 | N142: -1.557936017
F143: 0.3912114326 | G143: -1.372601426 | H143: -0.5984055019 | I143: 0.1757904224 | J143: -1.67 | K143: 3.808094926 | L143: 301.3491544 | M143: 0.1757904224 | N143: -1.548391849
F144: 0.3888050125 | G144: -1.361306126 | H144: -0.5918724364 | I144: 0.1775612533 | J144: -1.66 | K144: 3.815932542 | L144: 302.6554237 | M144: 0.1775612533 | N144: -1.538867379
F145: 0.3864036624 | G145: -1.350020859 | H145: -0.5853393709 | I145: 0.1793421175 | J145: -1.65 | K145: 3.823770158 | L145: 303.961693 | M145: 0.1793421175 | N145: -1.529362977
F146: 0.3840074773 | G146: -1.338745814 | H146: -0.5788063053 | I146: 0.1811332033 | J146: -1.64 | K146: 3.831607773 | L146: 305.2679622 | M146: 0.1811332033 | N146: -1.519879017
F147: 0.3816165546 | G147: -1.327481183 | H147: -0.5722732398 | I147: 0.182934703 | J147: -1.63 | K147: 3.839445389 | L147: 306.5742315 | M147: 0.182934703 | N147: -1.510415886
F148: 0.3792309938 | G148: -1.316227162 | H148: -0.5657401742 | I148: 0.1847468138 | J148: -1.62 | K148: 3.847283005 | L148: 307.8805008 | M148: 0.1847468138 | N148: -1.500973976
F149: 0.3768508967 | G149: -1.304983954 | H149: -0.5592071087 | I149: 0.1865697371 | J149: -1.61 | K149: 3.85512062 | L149: 309.1867701 | M149: 0.1865697371 | N149: -1.491553692
F150: 0.3744763674 | G150: -1.293751765 | H150: -0.5526740431 | I150: 0.1884036792 | J150: -1.6 | K150: 3.862958236 | L150: 310.4930394 | M150: 0.1884036792 | N150: -1.482155445
F151: 0.3721075127 | G151: -1.282530806 | H151: -0.5461409776 | I151: 0.1902488508 | J151: -1.59 | K151: 3.870795852 | L151: 311.7993086 | M151: 0.1902488508 | N151: -1.472779657
F152: 0.3697444415 | G152: -1.271321292 | H152: -0.539607912 | I152: 0.192105468 | J152: -1.58 | K152: 3.878633467 | L152: 313.1055779 | M152: 0.192105468 | N152: -1.46342676
F153: 0.3673872655 | G153: -1.260123444 | H153: -0.5330748465 | I153: 0.1939737515 | J153: -1.57 | K153: 3.886471083 | L153: 314.4118472 | M153: 0.1939737515 | N153: -1.454097196
F154: 0.3650360988 | G154: -1.248937489 | H154: -0.5265417809 | I154: 0.1958539273 | J154: -1.56 | K154: 3.894308699 | L154: 315.7181165 | M154: 0.1958539273 | N154: -1.444791416
F155: 0.3626910584 | G155: -1.237763658 | H155: -0.5200087154 | I155: 0.1977462267 | J155: -1.55 | K155: 3.902146314 | L155: 317.0243857 | M155: 0.1977462267 | N155: -1.435509884
F156: 0.3603522638 | G156: -1.226602186 | H156: -0.5134756499 | I156: 0.1996508865 | J156: -1.54 | K156: 3.90998393 | L156: 318.330655 | M156: 0.1996508865 | N156: -1.426253073
F157: 0.3580198374 | G157: -1.215453317 | H157: -0.5069425843 | I157: 0.2015681488 | J157: -1.53 | K157: 3.917821546 | L157: 319.6369243 | M157: 0.2015681488 | N157: -1.417021466
F158: 0.3556939045 | G158: -1.204317299 | H158: -0.5004095188 | I158: 0.2034982615 | J158: -1.52 | K158: 3.925659162 | L158: 320.9431936 | M158: 0.2034982615 | N158: -1.407815561
F159: 0.3533745933 | G159: -1.193194385 | H159: -0.4938764532 | I159: 0.2054414784 | J159: -1.51 | K159: 3.933496777 | L159: 322.2494629 | M159: 0.2054414784 | N159: -1.398635863
F160: 0.3510620351 | G160: -1.182084835 | H160: -0.4873433877 | I160: 0.2073980593 | J160: -1.5 | K160: 3.941334393 | L160: 323.5557321 | M160: 0.2073980593 | N160: -1.389482894
F161: 0.3487563642 | G161: -1.170988914 | H161: -0.4808103221 | I161: 0.20936827 | J161: -1.49 | K161: 3.949172009 | L161: 324.8620014 | M161: 0.20936827 | N161: -1.380357184
F162: 0.3464577182 | G162: -1.159906896 | H162: -0.4742772566 | I162: 0.2113523825 | J162: -1.48 | K162: 3.957009624 | L162: 326.1682707 | M162: 0.2113523825 | N162: -1.371259278
F163: 0.3441662376 | G163: -1.148839058 | H163: -0.467744191 | I163: 0.2133506754 | J163: -1.47 | K163: 3.96484724 | L163: 327.47454 | M163: 0.2133506754 | N163: -1.362189733
F164: 0.3418820668 | G164: -1.137785685 | H164: -0.4612111255 | I164: 0.215363434 | J164: -1.46 | K164: 3.972684856 | L164: 328.7808093 | M164: 0.215363434 | N164: -1.353149119
F165: 0.339605353 | G165: -1.12674707 | H165: -0.4546780599 | I165: 0.21739095 | J165: -1.45 | K165: 3.980522471 | L165: 330.0870785 | M165: 0.21739095 | N165: -1.34413802
F166: 0.3373362474 | G166: -1.115723511 | H166: -0.4481449944 | I166: 0.2194335222 | J166: -1.44 | K166: 3.988360087 | L166: 331.3933478 | M166: 0.2194335222 | N166: -1.335157033
F167: 0.3350749045 | G167: -1.104715314 | H167: -0.4416119289 | I167: 0.2214914566 | J167: -1.43 | K167: 3.996197703 | L167: 332.6996171 | M167: 0.2214914566 | N167: -1.326206771
F168: 0.3328214825 | G168: -1.093722793 | H168: -0.4350788633 | I168: 0.2235650662 | J168: -1.42 | K168: 4.004035318 | L168: 334.0058864 | M168: 0.2235650662 | N168: -1.317287859
F169: 0.3305761434 | G169: -1.082746267 | H169: -0.4285457978 | I169: 0.2256546717 | J169: -1.41 | K169: 4.011872934 | L169: 335.3121557 | M169: 0.2256546717 | N169: -1.308400939
F170: 0.328339053 | G170: -1.071786066 | H170: -0.4220127322 | I170: 0.2277606011 | J170: -1.4 | K170: 4.01971055 | L170: 336.6184249 | M170: 0.2277606011 | N170: -1.299546667
F171: 0.3261103811 | G171: -1.060842524 | H171: -0.4154796667 | I171: 0.2298831905 | J171: -1.39 | K171: 4.027548165 | L171: 337.9246942 | M171: 0.2298831905 | N171: -1.290725714
F172: 0.3238903014 | G172: -1.049915986 | H172: -0.4089466011 | I172: 0.2320227837 | J172: -1.38 | K172: 4.035385781 | L172: 339.2309635 | M172: 0.2320227837 | N172: -1.28193877
F173: 0.321678992 | G173: -1.039006804 | H173: -0.4024135356 | I173: 0.2341797328 | J173: -1.37 | K173: 4.043223397 | L173: 340.5372328 | M173: 0.2341797328 | N173: -1.273186537
F174: 0.3194766348 | G174: -1.028115338 | H174: -0.39588047 | I174: 0.2363543982 | J174: -1.36 | K174: 4.051061012 | L174: 341.8435021 | M174: 0.2363543982 | N174: -1.264469736
F175: 0.3172834163 | G175: -1.017241958 | H175: -0.3893474045 | I175: 0.2385471488 | J175: -1.35 | K175: 4.058898628 | L175: 343.1497713 | M175: 0.2385471488 | N175: -1.255789107
F176: 0.3150995273 | G176: -1.00638704 | H176: -0.382814339 | I176: 0.2407583623 | J176: -1.34 | K176: 4.066736244 | L176: 344.4560406 | M176: 0.2407583623 | N176: -1.247145402
F177: 0.3129251632 | G177: -0.9955509719 | H177: -0.3762812734 | I177: 0.2429884251 | J177: -1.33 | K177: 4.074573859 | L177: 345.7623099 | M177: 0.2429884251 | N177: -1.238539397
F178: 0.3107605238 | G178: -0.9847341488 | H178: -0.3697482079 | I178: 0.2452377331 | J178: -1.32 | K178: 4.082411475 | L178: 347.0685792 | M178: 0.2452377331 | N178: -1.229971882
F179: 0.3086058139 | G179: -0.9739369757 | H179: -0.3632151423 | I179: 0.247506691 | J179: -1.31 | K179: 4.090249091 | L179: 348.3748484 | M179: 0.247506691 | N179: -1.221443667
F180: 0.3064612429 | G180: -0.9631598671 | H180: -0.3566820768 | I180: 0.2497957135 | J180: -1.3 | K180: 4.098086706 | L180: 349.6811177 | M180: 0.2497957135 | N180: -1.212955581
F181: 0.304327025 | G181: -0.9524032472 | H181: -0.3501490112 | I181: 0.2521052247 | J181: -1.29 | K181: 4.105924322 | L181: 350.987387 | M181: 0.2521052247 | N181: -1.204508472
F182: 0.3022033797 | G182: -0.94166755 | H182: -0.3436159457 | I182: 0.2544356587 | J182: -1.28 | K182: 4.113761938 | L182: 352.2936563 | M182: 0.2544356587 | N182: -1.196103209
F183: 0.3000905315 | G183: -0.9309532199 | H183: -0.3370828801 | I183: 0.2567874596 | J183: -1.27 | K183: 4.121599553 | L183: 353.5999256 | M183: 0.2567874596 | N183: -1.187740679
F184: 0.2979887099 | G184: -0.9202607112 | H184: -0.3305498146 | I184: 0.259161082 | J184: -1.26 | K184: 4.129437169 | L184: 354.9061948 | M184: 0.259161082 | N184: -1.179421793
F185: 0.2958981499 | G185: -0.909590489 | H185: -0.324016749 | I185: 0.2615569909 | J185: -1.25 | K185: 4.137274785 | L185: 356.2124641 | M185: 0.2615569909 | N185: -1.17114748
F186: 0.293819092 | G186: -0.8989430289 | H186: -0.3174836835 | I186: 0.2639756619 | J186: -1.24 | K186: 4.1451124 | L186: 357.5187334 | M186: 0.2639756619 | N186: -1.162918691
F187: 0.2917517821 | G187: -0.8883188177 | H187: -0.310950618 | I187: 0.2664175818 | J187: -1.23 | K187: 4.152950016 | L187: 358.8250027 | M187: 0.2664175818 | N187: -1.1547364
F188: 0.2896964715 | G188: -0.877718353 | H188: -0.3044175524 | I188: 0.2688832482 | J188: -1.22 | K188: 4.160787632 | L188: 360.131272 | M188: 0.2688832482 | N188: -1.146601601
F189: 0.2876534176 | G189: -0.8671421439 | H189: -0.2978844869 | I189: 0.2713731702 | J189: -1.21 | K189: 4.168625247 | L189: 361.4375412 | M189: 0.2713731702 | N189: -1.138515314
F190: 0.2856228834 | G190: -0.8565907108 | H190: -0.2913514213 | I190: 0.2738878682 | J190: -1.2 | K190: 4.176462863 | L190: 362.7438105 | M190: 0.2738878682 | N190: -1.130478579
F191: 0.2836051377 | G191: -0.8460645859 | H191: -0.2848183558 | I191: 0.2764278744 | J191: -1.19 | K191: 4.184300479 | L191: 364.0500798 | M191: 0.2764278744 | N191: -1.12249246
F192: 0.2816004555 | G192: -0.8355643132 | H192: -0.2782852902 | I192: 0.2789937328 | J192: -1.18 | K192: 4.192138094 | L192: 365.3563491 | M192: 0.2789937328 | N192: -1.114558046
F193: 0.2796091178 | G193: -0.8250904489 | H193: -0.2717522247 | I193: 0.2815859995 | J193: -1.17 | K193: 4.19997571 | L193: 366.6626184 | M193: 0.2815859995 | N193: -1.106676448
F194: 0.2776314117 | G194: -0.814643561 | H194: -0.2652191591 | I194: 0.2842052427 | J194: -1.16 | K194: 4.207813326 | L194: 367.9688876 | M194: 0.2842052427 | N194: -1.098848804
F195: 0.2756676305 | G195: -0.8042242303 | H195: -0.2586860936 | I195: 0.2868520431 | J195: -1.15 | K195: 4.215650942 | L195: 369.2751569 | M195: 0.2868520431 | N195: -1.091076273
F196: 0.273718074 | G196: -0.7938330498 | H196: -0.252153028 | I196: 0.2895269937 | J196: -1.14 | K196: 4.223488557 | L196: 370.5814262 | M196: 0.2895269937 | N196: -1.083360044
F197: 0.2717830484 | G197: -0.7834706254 | H197: -0.2456199625 | I197: 0.2922307004 | J197: -1.13 | K197: 4.231326173 | L197: 371.8876955 | M197: 0.2922307004 | N197: -1.075701326
F198: 0.2698628661 | G198: -0.7731375756 | H198: -0.239086897 | I198: 0.2949637817 | J198: -1.12 | K198: 4.239163789 | L198: 373.1939648 | M198: 0.2949637817 | N198: -1.068101357
F199: 0.2679578463 | G199: -0.7628345319 | H199: -0.2325538314 | I199: 0.2977268691 | J199: -1.11 | K199: 4.247001404 | L199: 374.500234 | M199: 0.2977268691 | N199: -1.060561401
F200: 0.2660683147 | G200: -0.7525621389 | H200: -0.2260207659 | I200: 0.3005206071 | J200: -1.1 | K200: 4.25483902 | L200: 375.8065033 | M200: 0.3005206071 | N200: -1.053082746
F201: =SQRT($C$12+2*K201*$C$13+K201^2*$C$14) -> 0.2641946036 | G201: =H201-F201*$C$7 -> -0.7423210541 | H201: =$C$9+$C$11*K201 -> -0.2194877003 | I201: =H201+F201*$C$7 -> 0.3033456535 | J201: -1.09 | K201: =$C$16+J201*$C$15 -> 4.262676636 | L201: 377.1127726 | M201: =I201 -> 0.3033456535 | N201: =G201-I201 -> -1.045666708
... 411 more rows

Sheet 6. Simple Slopes
A1: Instructions for this sheet: No action required. The user may use the plot that uses only low and high value of the moderator (on the left) or the one that includes the average value as well (on the right).
A4: The critical value | B4: tcrit | C4: ='5. Johnson-Neyman Figure'!C7 -> 1.978970602
A5: The intercept | B5: γ0 or B0 | C5: ='5. Johnson-Neyman Figure'!C8 -> 7.706233282
A6: The first slope | B6: γ1 or B1 | C6: ='5. Johnson-Neyman Figure'!C9 -> -3.772653231
A7: The second slope | B7: γ2 or B2 | C7: ='5. Johnson-Neyman Figure'!C10 -> -0.4724908112
A8: The third slope | B8: γ3 or B3 | C8: ='5. Johnson-Neyman Figure'!C11 -> 0.8335526792
A9: Variance of γ1 or B1 | B9: Var(B1) | C9: ='5. Johnson-Neyman Figure'!C12 -> 2.898366354
A10: Covariance of γ1 and γ3; Covariance of B1 and B3 | B10: Cov(B1,B3) | C10: ='5. Johnson-Neyman Figure'!C13 -> -0.6006764274
A11: Variance of γ3; Variance of B3 | B11: Var(B3) | C11: ='5. Johnson-Neyman Figure'!C14 -> 0.1261617605
B13: Average of M (the moderator) | C13: ='5. Johnson-Neyman Figure'!C16 -> 5.116976744
B14: Standard Deviation of M | C14: ='5. Johnson-Neyman Figure'!C15 -> 0.7837615675
B15: Number of SDs for Simple Slope Tests | C15: 1
F16: Simple Slope | G16: Standard Error | H16: t-test | I16: Lower 95% CI | J16: Upper 95% CI
B17: Low Moderator (Low M) | C17: =$C$13-$C$15*$C$14 -> 4.333215177 | E17: Low M | F17: =($C$6+$C$8*C17) -> -0.1606901104 | G17: =SQRT($C$9+2*C17*$C$10+C17^2*$C$11) -> 0.248101276 | H17: =F17/G17 -> -0.6476795 | I17: =F17-$C$4*G17 -> -0.651675242 | J17: =F17+$C$4*G17 -> 0.3302950212
B18: High Moderator (High M) | C18: =C13+C15*C14 -> 5.900738312 | E18: High M | F18: =($C$6+$C$8*C18) -> 1.145922999 | G18: =SQRT($C$9+2*C18*$C$10+C18^2*$C$11) -> 0.4497639621 | H18: =F18/G18 -> 2.547831963 | I18: =F18-$C$4*G18 -> 0.2558533398 | J18: =F18+$C$4*G18 -> 2.035992657
B20: X Cross (-b2/b3) | C20: =(-C7)/C8 -> 0.5668397727 | F20: X Value | G20: X Labels | H20: Low M (-1 SD) | I20: High M (+1 SD) | J20: Average M
E21: Low X | F21: =IF(B25="Yes", B26, '3. HC3'!C1008 - '3. HC3'!C1010) -> 0 | G21: =IF(B25="Yes", CONCATENATE("Low X (X=",B26,")"), "Low X (-1 SD)") -> Low X (X=0) | H21: =$C$5+$C$7*$C$17+($C$6+$C$8*$C$17)*F21 -> 5.658828928 | I21: =$C$5+$C$7*$C$18+($C$6+$C$8*$C$18)*F21 -> 4.91818865 | J21: =$C$5+$C$7*$C$13+($C$6+$C$8*$C$13)*F21 -> 5.288508789
E22: High X | F22: =IF(B25="Yes", B27, '3. HC3'!C1008 + '3. HC3'!C1010) -> 1 | G22: =IF(B25="Yes", CONCATENATE("High X (X=",B27,")"), "High X (+1 SD)") -> High X (X=1) | H22: =$C$5+$C$7*$C$17+($C$6+$C$8*$C$17)*F22 -> 5.498138818 | I22: =$C$5+$C$7*$C$18+($C$6+$C$8*$C$18)*F22 -> 6.064111649 | J22: =$C$5+$C$7*$C$13+($C$6+$C$8*$C$13)*F22 -> 5.781125233
A24: Number of distinct values of X | B24: =SUMPRODUCT(1/COUNTIF(OFFSET('3. HC3'!I8,0,0,'3. HC3'!H3,1),OFFSET('3. HC3'!I8,0,0,'3. HC3'!H3,1))) -> 2
A25: Is the focal predictor (X) dichotomous? | B25: =IF(B24=2,"Yes","No") -> Yes
A26: Low value of X | B26: =MIN(OFFSET('3. HC3'!I8,0,0,'3. HC3'!H3,1)) -> 0
A27: High value of X | B27: =MAX(OFFSET('3. HC3'!I8,0,0,'3. HC3'!H3,1)) -> 1
